Service Delivery Area(T),Service Delivery Team(T),ExpenditureGroup(T),Account(T),Supplier Name(T),Trans Date,Amount
Adult Social Care,ASC Directorate,Supplies & Services,Other Grants (Expenses),Department of Health and Social Care,13/12/2022,"61,644.55"
Adult Social Care,ASC Directorate,Supplies & Services,Other Grants (Expenses),Department of Health and Social Care,13/12/2022,"100,637.23"
Adult Social Care,ASC Prevention & Enablement,Transport-Related Expenditure,Taxi Costs,Cartello Ambulance,22/12/2022,130.00
Adult Social Care,ASC Prevention & Enablement,Transport-Related Expenditure,Taxi Costs,Cartello Ambulance,22/12/2022,182.00
Adult Social Care,ASC Prevention & Enablement,Transport-Related Expenditure,Taxi Costs,Cartello Ambulance,22/12/2022,156.00
Adult Social Care,ASC Prevention & Enablement,Transport-Related Expenditure,Taxi Costs,Cartello Ambulance,22/12/2022,234.00
Adult Social Care,ASC Prevention & Enablement,Transport-Related Expenditure,Taxi Costs,Cartello Ambulance,22/12/2022,208.00
Adult Social Care,ASC Prevention & Enablement,Transport-Related Expenditure,Taxi Costs,Telford Taxi Hire Limited,22/12/2022,120.00
Adult Social Care,ASC Prevention & Enablement,Transport-Related Expenditure,Taxi Costs,Cartello Ambulance,22/12/2022,156.00
Adult Social Care,ASC Prevention & Enablement,Transport-Related Expenditure,Taxi Costs,Cartello Ambulance,22/12/2022,156.00
Adult Social Care,ASC Prevention & Enablement,Transport-Related Expenditure,Taxi Costs,Cartello Ambulance,22/12/2022,156.00
Adult Social Care,ASC Prevention & Enablement,Transport-Related Expenditure,Taxi Costs,Cartello Ambulance,22/12/2022,156.00
Adult Social Care,ASC Prevention & Enablement,Transport-Related Expenditure,Taxi Costs,Cartello Ambulance,22/12/2022,156.00
Adult Social Care,ASC Prevention & Enablement,Third Party Payments,Nursing Expenditure,"NHS Shropshire, Telford and Wrekin CCG",22/12/2022,"14,640.00"
Adult Social Care,ASC Prevention & Enablement,Supplies & Services,Mobile Phones,EE LTD EQUIPMENT ,01/12/2022,142.00
Adult Social Care,ASC Prevention & Enablement,Supplies & Services,Equipment - Purchase,Lawley Pharmacy,06/12/2022,140.00
Adult Social Care,"Commissioning, Procurement & Brokerage",Supplies & Services,Conference Expenses,BIP SOLUTIONS LTD,02/12/2022,145.00
Adult Social Care,"Commissioning, Procurement & Brokerage",Third Party Payments,Interpreters Fees,EXPRESS INTERPRETING & TRANSLATION,12/12/2022,"7,796.08"
Adult Social Care,"Commissioning, Procurement & Brokerage",Third Party Payments,Interpreters Fees,EXPRESS INTERPRETING & TRANSLATION,22/12/2022,"8,947.67"
Adult Social Care,"Commissioning, Procurement & Brokerage",Supplies & Services,Other Grants (Expenses),TELFORD & WREKIN CVS,13/12/2022,"90,000.00"
Adult Social Care,"Commissioning, Procurement & Brokerage",Supplies & Services,Other Grants (Expenses),SHROPSHIRE COMMUNITY HEALTH NHS TRUST,12/12/2022,"24,088.81"
Adult Social Care,"Commissioning, Procurement & Brokerage",Supplies & Services,Other Grants (Expenses),TELFORD & WREKIN CVS,22/12/2022,"25,000.00"
Adult Social Care,"Commissioning, Procurement & Brokerage",Supplies & Services,Other Grants (Expenses),AGE UK SHROPSHIRE TELFORD & WREKIN,29/12/2022,"17,977.34"
Adult Social Care,"Commissioning, Procurement & Brokerage",Supplies & Services,Other Grants (Expenses),AGE UK SHROPSHIRE TELFORD & WREKIN,29/12/2022,"28,346.59"
Adult Social Care,"Commissioning, Procurement & Brokerage",Supplies & Services,Other Grants (Expenses),ANCHOR HOUSING TRUST,01/12/2022,133.33
Adult Social Care,"Commissioning, Procurement & Brokerage",Supplies & Services,Other Grants (Expenses),HANOVER HOUSING ASSOCIATION,01/12/2022,750.00
Adult Social Care,"Commissioning, Procurement & Brokerage",Supplies & Services,Other Grants (Expenses),OLD B HOMES,01/12/2022,433.33
Adult Social Care,"Commissioning, Procurement & Brokerage",Supplies & Services,Other Grants (Expenses),SANCTUARY HOUSING ASSOCIATION ,01/12/2022,610.70
Adult Social Care,"Commissioning, Procurement & Brokerage",Supplies & Services,Other Grants (Expenses),BROMFORD HOUSING ASSOCIATION LIMITED,01/12/2022,"36,666.67"
Adult Social Care,"Commissioning, Procurement & Brokerage",Supplies & Services,Other Grants (Expenses),TELFORD CHRISTIAN COUNCIL SUPPORTED HOUS,01/12/2022,"36,401.83"
Adult Social Care,"Commissioning, Procurement & Brokerage",Supplies & Services,Other Grants (Expenses),WREKIN HOUSING TRUST ,01/12/2022,"25,568.33"
Adult Social Care,"Commissioning, Procurement & Brokerage",Supplies & Services,Other Grants (Expenses),HANOVER HOUSING ASSOCIATION,23/12/2022,750.00
Adult Social Care,"Commissioning, Procurement & Brokerage",Supplies & Services,Other Grants (Expenses),WREKIN HOUSING TRUST ,23/12/2022,"25,568.33"
Adult Social Care,"Commissioning, Procurement & Brokerage",Supplies & Services,Other Grants (Expenses),ANCHOR HOUSING TRUST,23/12/2022,133.33
Adult Social Care,"Commissioning, Procurement & Brokerage",Supplies & Services,Other Grants (Expenses),OLD B HOMES,23/12/2022,433.33
Adult Social Care,"Commissioning, Procurement & Brokerage",Supplies & Services,Other Grants (Expenses),SANCTUARY HOUSING ASSOCIATION ,23/12/2022,610.70
Adult Social Care,"Commissioning, Procurement & Brokerage",Supplies & Services,Other Grants (Expenses),BROMFORD HOUSING ASSOCIATION LIMITED,23/12/2022,"36,666.67"
Adult Social Care,"Commissioning, Procurement & Brokerage",Supplies & Services,Other Grants (Expenses),TELFORD CHRISTIAN COUNCIL SUPPORTED HOUS,23/12/2022,"36,401.83"
Adult Social Care,"Commissioning, Procurement & Brokerage",Capital Expenditure,Other Capital Expenditure,CCS MEDIA LIMITED,06/12/2022,"1,788.00"
Adult Social Care,Community Social Work & Adult Safeguarding,Supplies & Services,Other Grants (Expenses),Healthwatch,13/12/2022,"25,000.00"
Adult Social Care,Community Social Work & Adult Safeguarding,Transport-Related Expenditure,Taxi Costs,Ezy Car Ltd,13/12/2022,"1,078.80"
Adult Social Care,Community Social Work & Adult Safeguarding,Transport-Related Expenditure,Taxi Costs,Ezy Car Ltd,13/12/2022,"1,168.70"
Adult Social Care,Community Social Work & Adult Safeguarding,Transport-Related Expenditure,Taxi Costs,Ezy Car Ltd,13/12/2022,537.40
Adult Social Care,Community Social Work & Adult Safeguarding,Transport-Related Expenditure,Taxi Costs,Ezy Car Ltd,13/12/2022,"1,168.70"
Adult Social Care,Community Social Work & Adult Safeguarding,Transport-Related Expenditure,Taxi Costs,Ezy Car Ltd,13/12/2022,"1,168.70"
Adult Social Care,Community Social Work & Adult Safeguarding,Supplies & Services,Legal Expenses,WEIGHMANS,13/12/2022,200.00
Adult Social Care,Community Social Work & Adult Safeguarding,Supplies & Services,Legal Expenses,WEIGHMANS,13/12/2022,101.50
Adult Social Care,Community Social Work & Adult Safeguarding,Supplies & Services,Legal Expenses,WEIGHTMANS SOLICITORS,13/12/2022,145.00
Adult Social Care,Community Social Work & Adult Safeguarding,Supplies & Services,Medical Consultants Fees,REDACTED PERSONAL INFORMATION,05/12/2022,"1,232.51"
Adult Social Care,Community Social Work (Principal Social Worker),Third Party Payments,Other Care Purchasing,Severn Trent Water Ltd,08/12/2022,298.85
Adult Social Care,Community Social Work (Principal Social Worker),Premises-Related Expenditure,General Rents,Inclusion Housing CIC Ltd,08/12/2022,658.43
Adult Social Care,Community Social Work (Principal Social Worker),Premises-Related Expenditure,General Rents,First Choice Housing Association LTD,08/12/2022,"1,606.04"
Adult Social Care,Community Social Work (Principal Social Worker),Premises-Related Expenditure,General Rents,First Choice Housing Association LTD,08/12/2022,743.35
Adult Social Care,Community Social Work (Principal Social Worker),Premises-Related Expenditure,General Rents,Inclusion Housing CIC Ltd,08/12/2022,658.43
Adult Social Care,Community Social Work (Principal Social Worker),Premises-Related Expenditure,General Rents,Inclusion Housing CIC Ltd,08/12/2022,526.74
Adult Social Care,Community Social Work (Principal Social Worker),Premises-Related Expenditure,General Rents,First Choice Housing Association LTD,08/12/2022,"1,606.04"
Adult Social Care,Community Social Work (Principal Social Worker),Premises-Related Expenditure,General Rents,First Choice Housing Association LTD,08/12/2022,"1,606.04"
Adult Social Care,Community Social Work (Principal Social Worker),Premises-Related Expenditure,General Rents,Inclusion Housing CIC Ltd,08/12/2022,526.74
Adult Social Care,My Options,Employees,Training Expenses,SHROPSHIRE PARTNERS IN CARE LTD,20/12/2022,650.00
Adult Social Care,My Options,Premises-Related Expenditure,Clean Mats & Toilet Requisites,PHS GROUP,13/12/2022,125.22
Adult Social Care,My Options,Premises-Related Expenditure,Hire Of Rooms,Dawley Baptist Church,13/12/2022,275.00
Adult Social Care,My Options,Supplies & Services,Licences,PPL PRS Ltd,01/12/2022,504.77
Adult Social Care,My Options,Employees,Agency Supply Costs,Iconic Care Limited,13/12/2022,702.00
Adult Social Care,My Options,Employees,Agency Supply Costs,Safehands Recruitment,13/12/2022,"1,058.00"
Adult Social Care,My Options,Employees,Agency Supply Costs,Iconic Care Limited,13/12/2022,609.00
Adult Social Care,My Options,Employees,Agency Supply Costs,Safehands Recruitment,13/12/2022,371.00
Adult Social Care,My Options,Employees,Agency Supply Costs,Iconic Care Limited,13/12/2022,"1,058.50"
Adult Social Care,My Options,Employees,Agency Supply Costs,Iconic Care Limited,13/12/2022,"1,158.00"
Adult Social Care,My Options,Employees,Agency Supply Costs,Nurse Plus and Carer Plus Limited,13/12/2022,"1,708.55"
Adult Social Care,My Options,Employees,Agency Supply Costs,Safehands Recruitment,01/12/2022,456.00
Adult Social Care,My Options,Employees,Agency Supply Costs,Nurse Plus and Carer Plus Limited,01/12/2022,"1,699.03"
Adult Social Care,My Options,Employees,Agency Supply Costs,Safehands Recruitment,20/12/2022,"1,425.50"
Adult Social Care,My Options,Employees,Agency Supply Costs,Nurse Plus and Carer Plus Limited,20/12/2022,"2,346.10"
Adult Social Care,My Options,Employees,Agency Supply Costs,Iconic Care Limited,20/12/2022,876.00
Adult Social Care,My Options,Premises-Related Expenditure,Clean Mats & Toilet Requisites,BERWICK CARE EQUIPMENT LTD,01/12/2022,181.05
Adult Social Care,My Options,Supplies & Services,Equipment - Hire,CARTWRIGHTS WASTE DISPOSAL SERV LTD,01/12/2022,185.00
Adult Social Care,My Options,Employees,Training Expenses,SHROPSHIRE PARTNERS IN CARE LTD,20/12/2022,"1,300.00"
Adult Social Care,My Options,Employees,Agency Supply Costs,Safehands Recruitment,13/12/2022,410.50
Adult Social Care,My Options,Employees,Agency Supply Costs,Safehands Recruitment,13/12/2022,"1,460.05"
Adult Social Care,My Options,Employees,Agency Supply Costs,Safehands Recruitment,13/12/2022,536.00
Adult Social Care,My Options,Employees,Agency Supply Costs,Safehands Recruitment,13/12/2022,133.00
Adult Social Care,My Options,Employees,Agency Supply Costs,Nurse Plus and Carer Plus Limited,13/12/2022,956.11
Adult Social Care,My Options,Employees,Agency Supply Costs,JN Recruitment,13/12/2022,886.90
Adult Social Care,My Options,Employees,Agency Supply Costs,Nurse Plus and Carer Plus Limited,13/12/2022,107.50
Adult Social Care,My Options,Employees,Agency Supply Costs,Nurse Plus and Carer Plus Limited,13/12/2022,"4,471.16"
Adult Social Care,My Options,Employees,Agency Supply Costs,Nurse Plus and Carer Plus Limited,13/12/2022,150.50
Adult Social Care,My Options,Employees,Agency Supply Costs,Nurse Plus and Carer Plus Limited,13/12/2022,"1,751.35"
Adult Social Care,My Options,Employees,Agency Supply Costs,Nurse Plus and Carer Plus Limited,13/12/2022,"1,072.20"
Adult Social Care,My Options,Employees,Agency Supply Costs,Safehands Recruitment,01/12/2022,"1,143.03"
Adult Social Care,My Options,Employees,Agency Supply Costs,Safehands Recruitment,01/12/2022,558.50
Adult Social Care,My Options,Employees,Agency Supply Costs,Safehands Recruitment,01/12/2022,102.00
Adult Social Care,My Options,Employees,Agency Supply Costs,Safehands Recruitment,01/12/2022,571.00
Adult Social Care,My Options,Employees,Agency Supply Costs,Nurse Plus and Carer Plus Limited,01/12/2022,386.00
Adult Social Care,My Options,Employees,Agency Supply Costs,Safehands Recruitment,01/12/2022,"1,272.48"
Adult Social Care,My Options,Employees,Agency Supply Costs,Safehands Recruitment,01/12/2022,266.00
Adult Social Care,My Options,Employees,Agency Supply Costs,Safehands Recruitment,01/12/2022,606.00
Adult Social Care,My Options,Employees,Agency Supply Costs,Nurse Plus and Carer Plus Limited,01/12/2022,"3,226.09"
Adult Social Care,My Options,Employees,Agency Supply Costs,Nurse Plus and Carer Plus Limited,01/12/2022,"2,243.43"
Adult Social Care,My Options,Employees,Agency Supply Costs,Nurse Plus and Carer Plus Limited,01/12/2022,"1,319.73"
Adult Social Care,My Options,Employees,Agency Supply Costs,Nurse Plus and Carer Plus Limited,01/12/2022,528.43
Adult Social Care,My Options,Employees,Agency Supply Costs,JN Recruitment,01/12/2022,"1,002.38"
Adult Social Care,My Options,Employees,Agency Supply Costs,JN Recruitment,20/12/2022,886.88
Adult Social Care,My Options,Employees,Agency Supply Costs,Safehands Recruitment,20/12/2022,490.00
Adult Social Care,My Options,Employees,Agency Supply Costs,Safehands Recruitment,20/12/2022,332.50
Adult Social Care,My Options,Employees,Agency Supply Costs,Nurse Plus and Carer Plus Limited,20/12/2022,125.65
Adult Social Care,My Options,Employees,Agency Supply Costs,Nurse Plus and Carer Plus Limited,20/12/2022,441.28
Adult Social Care,My Options,Employees,Agency Supply Costs,Nurse Plus and Carer Plus Limited,20/12/2022,"5,058.22"
Adult Social Care,My Options,Employees,Agency Supply Costs,Nurse Plus and Carer Plus Limited,20/12/2022,"1,186.00"
Adult Social Care,My Options,Employees,Agency Supply Costs,Nurse Plus and Carer Plus Limited,20/12/2022,875.41
Adult Social Care,My Options,Employees,Agency Supply Costs,Safehands Recruitment,20/12/2022,395.50
Adult Social Care,My Options,Employees,Agency Supply Costs,Safehands Recruitment,20/12/2022,888.00
Adult Social Care,My Options,Employees,Agency Supply Costs,Nurse Plus and Carer Plus Limited,20/12/2022,588.20
Adult Social Care,My Options,Employees,Agency Supply Costs,Nurse Plus and Carer Plus Limited,20/12/2022,295.50
Adult Social Care,My Options,Employees,Agency Supply Costs,Safehands Recruitment,20/12/2022,533.00
Adult Social Care,My Options,Supplies & Services,Adult Flexi / Day Care,REDACTED PERSONAL INFORMATION,09/12/2022,213.60
Adult Social Care,My Options,Supplies & Services,Adult Flexi / Day Care,REDACTED PERSONAL INFORMATION,09/12/2022,160.20
Adult Social Care,My Options,Supplies & Services,Adult Flexi / Day Care,REDACTED PERSONAL INFORMATION,09/12/2022,267.00
Adult Social Care,My Options,Supplies & Services,Adult Flexi / Day Care,REDACTED PERSONAL INFORMATION,09/12/2022,480.60
Adult Social Care,My Options,Supplies & Services,Respite Care,REDACTED PERSONAL INFORMATION,09/12/2022,854.40
Adult Social Care,My Options,Supplies & Services,Respite Care,REDACTED PERSONAL INFORMATION,09/12/2022,373.80
Adult Social Care,My Options,Supplies & Services,Respite Care,REDACTED PERSONAL INFORMATION,08/12/2022,"1,555.15"
Adult Social Care,My Options,Supplies & Services,Respite Care,REDACTED PERSONAL INFORMATION,08/12/2022,"1,949.15"
Adult Social Care,My Options,Supplies & Services,Respite Care,REDACTED PERSONAL INFORMATION,08/12/2022,"1,191.40"
Adult Social Care,My Options,Employees,Agency Supply Costs,Safehands Recruitment,13/12/2022,"12,360.50"
Adult Social Care,My Options,Employees,Agency Supply Costs,Iconic Care Limited,13/12/2022,210.00
Adult Social Care,My Options,Employees,Agency Supply Costs,Iconic Care Limited,13/12/2022,360.00
Adult Social Care,My Options,Employees,Agency Supply Costs,Iconic Care Limited,13/12/2022,"4,178.50"
Adult Social Care,My Options,Employees,Agency Supply Costs,Iconic Care Limited,13/12/2022,"1,457.00"
Adult Social Care,My Options,Employees,Agency Supply Costs,Safehands Recruitment,13/12/2022,741.00
Adult Social Care,My Options,Employees,Agency Supply Costs,Iconic Care Limited,13/12/2022,"2,069.50"
Adult Social Care,My Options,Employees,Agency Supply Costs,Iconic Care Limited,13/12/2022,360.00
Adult Social Care,My Options,Employees,Agency Supply Costs,Iconic Care Limited,13/12/2022,720.00
Adult Social Care,My Options,Employees,Agency Supply Costs,Iconic Care Limited,13/12/2022,960.00
Adult Social Care,My Options,Employees,Agency Supply Costs,Iconic Care Limited,13/12/2022,837.25
Adult Social Care,My Options,Employees,Agency Supply Costs,Iconic Care Limited,13/12/2022,"2,327.50"
Adult Social Care,My Options,Employees,Agency Supply Costs,Safehands Recruitment,01/12/2022,966.00
Adult Social Care,My Options,Employees,Agency Supply Costs,Safehands Recruitment,01/12/2022,"14,848.75"
Adult Social Care,My Options,Employees,Agency Supply Costs,Safehands Recruitment,01/12/2022,"10,037.25"
Adult Social Care,My Options,Employees,Agency Supply Costs,Safehands Recruitment,01/12/2022,"10,626.75"
Adult Social Care,My Options,Employees,Agency Supply Costs,Safehands Recruitment,01/12/2022,"13,310.75"
Adult Social Care,My Options,Employees,Agency Supply Costs,Safehands Recruitment,20/12/2022,"13,057.50"
Adult Social Care,My Options,Employees,Agency Supply Costs,Safehands Recruitment,20/12/2022,381.00
Adult Social Care,My Options,Supplies & Services,Mobile Phones,EE LTD EQUIPMENT,13/12/2022,"-1,300.00"
Adult Social Care,My Options,Supplies & Services,Mobile Phones,EE LTD EQUIPMENT,23/12/2022,142.00
Adult Social Care,My Options,Supplies & Services,Mobile Phones,EE LTD EQUIPMENT,14/12/2022,"3,692.00"
Adult Social Care,Prevention & Independence - Older Adults & Disability,Supplies & Services,Aids & Appliances,Medequip,07/12/2022,256.42
Adult Social Care,Prevention & Independence - Older Adults & Disability,Supplies & Services,Aids & Appliances,Easylink,07/12/2022,131.36
Adult Social Care,Prevention & Independence - Older Adults & Disability,Employees,Agency Supply Costs,Reed Talent Solutions Ltd,05/12/2022,143.37
Adult Social Care,Prevention & Independence - Older Adults & Disability,Employees,Agency Supply Costs,Reed Talent Solutions Ltd,05/12/2022,"4,320.00"
Adult Social Care,Prevention & Independence - Older Adults & Disability,Employees,Agency Supply Costs,Reed Talent Solutions Ltd,05/12/2022,152.36
Adult Social Care,Prevention & Independence - Older Adults & Disability,Employees,Agency Supply Costs,Reed Talent Solutions Ltd,05/12/2022,189.00
Adult Social Care,Prevention & Independence - Older Adults & Disability,Supplies & Services,Equipment - Repair,ARJO UK LTD,28/12/2022,119.00
Adult Social Care,Prevention & Independence - Older Adults & Disability,Employees,Agency Supply Costs,Reed Talent Solutions Ltd,05/12/2022,"3,600.00"
Adult Social Care,Prevention & Independence - Older Adults & Disability,Transport-Related Expenditure,Taxi Costs,Cartello Ambulance,05/12/2022,182.00
Adult Social Care,Prevention & Independence - Older Adults & Disability,Supplies & Services,Equipment - Repair,STANNAH LIFT SERVICES LTD,16/12/2022,466.66
Adult Social Care,Prevention & Independence - Older Adults & Disability,Supplies & Services,Equipment - Repair,STANNAH LIFT SERVICES LTD,16/12/2022,975.88
Adult Social Care,Prevention & Independence - Older Adults & Disability,Supplies & Services,Equipment - Repair,STANNAH LIFT SERVICES LTD,16/12/2022,623.00
Adult Social Care,Prevention & Independence - Older Adults & Disability,Supplies & Services,Equipment - Repair,STANNAH LIFT SERVICES LTD,16/12/2022,555.22
Adult Social Care,Prevention & Independence - Older Adults & Disability,Supplies & Services,Equipment - Repair,STANNAH LIFT SERVICES LTD,02/12/2022,186.25
Adult Social Care,Prevention & Independence - Older Adults & Disability,Supplies & Services,Equipment - Repair,STANNAH LIFT SERVICES LTD,02/12/2022,171.16
Adult Social Care,Prevention & Independence - Older Adults & Disability,Supplies & Services,Equipment - Repair,ARJO UK LTD,02/12/2022,104.23
Adult Social Care,Prevention & Independence - Older Adults & Disability,Supplies & Services,Equipment - Repair,Closomat Limited,02/12/2022,190.00
Adult Social Care,Prevention & Independence - Older Adults & Disability,Supplies & Services,Aids & Appliances,IC,01/12/2022,115.00
Adult Social Care,Prevention & Independence - Older Adults & Disability,Supplies & Services,Aids & Appliances,Alert-it Care Alarms,12/12/2022,525.00
Adult Social Care,Prevention & Independence - Older Adults & Disability,Supplies & Services,Aids & Appliances,Medequip,12/12/2022,204.75
Adult Social Care,Prevention & Independence - Older Adults & Disability,Supplies & Services,Aids & Appliances,Easylink,01/12/2022,138.92
Adult Social Care,Prevention & Independence - Older Adults & Disability,Supplies & Services,Equipment - Repair,WESSEX LIFT CO. LTD,06/12/2022,"7,297.00"
Adult Social Care,Prevention & Independence - Older Adults & Disability,Supplies & Services,Mobile Phones,EE LTD EQUIPMENT ,12/12/2022,142.00
Adult Social Care,Prevention & Independence - Older Adults & Disability,Supplies & Services,Mobile Phones,EE LTD EQUIPMENT ,12/12/2022,142.00
Adult Social Care,Prevention & Independence - Older Adults & Disability,Supplies & Services,Equipment - Repair,STANNAH LIFT SERVICES LTD,15/12/2022,"5,965.25"
Adult Social Care,Prevention & Independence - Older Adults & Disability,Supplies & Services,Equipment - Purchase,VISS Sign Language Interpreting Service,14/12/2022,115.00
Adult Social Care,Prevention & Independence - Older Adults & Disability,Supplies & Services,Aids & Appliances,MANGAR INTERNATIONAL LTD,14/12/2022,"7,425.00"
Adult Social Care,Prevention & Independence - Older Adults & Disability,Supplies & Services,Aids & Appliances,OSPREY HEALTHCARE LTD,08/12/2022,105.00
Adult Social Care,Prevention & Independence - Older Adults & Disability,Supplies & Services,Aids & Appliances,OSPREY HEALTHCARE LTD,08/12/2022,105.00
Adult Social Care,Prevention & Independence - Older Adults & Disability,Supplies & Services,Aids & Appliances,Care & Independence,02/12/2022,179.00
Adult Social Care,Prevention & Independence - Older Adults & Disability,Supplies & Services,Aids & Appliances,Accora,12/12/2022,112.00
Adult Social Care,Prevention & Independence - Older Adults & Disability,Supplies & Services,Aids & Appliances,W Rehab,09/12/2022,410.60
Adult Social Care,Prevention & Independence - Older Adults & Disability,Supplies & Services,Aids & Appliances,W Rehab,09/12/2022,135.00
Adult Social Care,Prevention & Independence - Older Adults & Disability,Supplies & Services,Aids & Appliances,OSPREY HEALTHCARE LTD,01/12/2022,192.00
Adult Social Care,Prevention & Independence - Older Adults & Disability,Supplies & Services,Aids & Appliances,OSPREY SLING COMPANY LTD,08/12/2022,150.00
Adult Social Care,Prevention & Independence - Older Adults & Disability,Supplies & Services,Aids & Appliances,OSPREY SLING COMPANY LTD,08/12/2022,150.00
Adult Social Care,Prevention & Independence - Older Adults & Disability,Supplies & Services,Aids & Appliances,OSPREY SLING COMPANY LTD,08/12/2022,105.00
Adult Social Care,Prevention & Independence - Older Adults & Disability,Supplies & Services,Aids & Appliances,OSPREY HEALTHCARE LTD,22/12/2022,160.00
Adult Social Care,Prevention & Independence - Older Adults & Disability,Supplies & Services,Aids & Appliances,OSPREY HEALTHCARE LTD,22/12/2022,192.00
Adult Social Care,Prevention & Independence - Older Adults & Disability,Supplies & Services,Aids & Appliances,OSPREY HEALTHCARE LTD,22/12/2022,101.20
Adult Social Care,Prevention & Independence - Older Adults & Disability,Supplies & Services,Aids & Appliances,OSPREY HEALTHCARE LTD,23/12/2022,195.00
Adult Social Care,Prevention & Independence - Older Adults & Disability,Transport-Related Expenditure,Taxi Costs,24X7 Ltd,05/12/2022,344.04
Adult Social Care,Prevention & Independence - Older Adults & Disability,Transport-Related Expenditure,Taxi Costs,Telford and Wrekin Community Enterprise LTD,05/12/2022,559.00
Adult Social Care,Service Improvement & Efficiency,Supplies & Services,Systems Procurement,Prepaid Financial Services Limited,15/12/2022,988.24
Adult Social Care,Service Improvement & Efficiency,Supplies & Services,Comp Hardware (Purch / Hire),ICT Revolutions Ltd,20/12/2022,"6,000.00"
Children�s Safeguarding & Family Support,Child Protection & Family Support,Supplies & Services,Mobile Phones,EE LTD EQUIPMENT,14/12/2022,142.00
Children�s Safeguarding & Family Support,Child Protection & Family Support,Third Party Payments,Joint Financing,West Mercia Police & Crime Commissioner,20/12/2022,"64,255.50"
Children�s Safeguarding & Family Support,Child Protection & Family Support,Third Party Payments,Joint Financing,West Mercia Police & Crime Commissioner,01/12/2022,"64,255.50"
Children�s Safeguarding & Family Support,Child Protection & Family Support,Employees,Staff Training,Strengthening Practice,01/12/2022,"1,650.00"
Children�s Safeguarding & Family Support,Child Protection & Family Support,Supplies & Services,Mobile Phones,EE LTD EQUIPMENT ,14/12/2022,142.00
Children�s Safeguarding & Family Support,Child Protection & Family Support,Premises-Related Expenditure,Hire Of Rooms,Mercure Telford Centre Hotel,07/12/2022,120.83
Children�s Safeguarding & Family Support,Child Protection & Family Support,Third Party Payments,Joint Financing,SHROPSHIRE COUNCIL ,29/12/2022,"675,408.85"
Children�s Safeguarding & Family Support,Child Protection & Family Support,Third Party Payments,Joint Financing,SSAFA,01/12/2022,"81,726.00"
Children�s Safeguarding & Family Support,Child Protection & Family Support,Premises-Related Expenditure,Hire Of Rooms,Mercure Telford Centre Hotel,12/12/2022,323.00
Children�s Safeguarding & Family Support,Child Protection & Family Support,Supplies & Services,Conference Expenses,Mercure Telford Centre Hotel,12/12/2022,375.33
Children�s Safeguarding & Family Support,Child Protection & Family Support,Employees,Staff Training,Strengthening Practice,30/12/2022,"3,350.00"
Children�s Safeguarding & Family Support,Child Protection & Family Support,Employees,Staff Training,Strengthening Practice,30/12/2022,985.00
Children�s Safeguarding & Family Support,Child Protection & Family Support,Supplies & Services,Comp Software (Purch / Hire),PHOENIX SOFTWARE LTD,06/12/2022,165.00
Children�s Safeguarding & Family Support,Child Protection & Family Support,Supplies & Services,Comp Software (Purch / Hire),PHOENIX SOFTWARE LTD,06/12/2022,165.00
Children�s Safeguarding & Family Support,Family Connect & Childrens Centres,Premises-Related Expenditure,Hire Of Rooms,MEETING POINT TRUST LTD,05/12/2022,158.33
Children�s Safeguarding & Family Support,Family Connect & Childrens Centres,Employees,Course Fees,N Q Inspire Ltd,05/12/2022,157.50
Children�s Safeguarding & Family Support,Family Connect & Childrens Centres,Premises-Related Expenditure,Hire Of Rooms,CHILDCARE SOS,08/12/2022,128.00
Children�s Safeguarding & Family Support,Family Connect & Childrens Centres,Premises-Related Expenditure,Hire Of Rooms,MEETING POINT TRUST LTD,05/12/2022,158.33
Children�s Safeguarding & Family Support,Family Connect & Childrens Centres,Employees,Course Fees,N Q Inspire Ltd,05/12/2022,157.50
Children�s Safeguarding & Family Support,Family Connect & Childrens Centres,Premises-Related Expenditure,Hire Of Rooms,CHILDCARE SOS,08/12/2022,128.00
Children�s Safeguarding & Family Support,Family Connect & Childrens Centres,Premises-Related Expenditure,Hire Of Rooms,HOLLINSWOOD & RANDLAY PARISH COUNCIL,08/12/2022,122.00
Children�s Safeguarding & Family Support,Family Connect & Childrens Centres,Supplies & Services,Equipment - Purchase,IANSYST LTD,05/12/2022,230.40
Children�s Safeguarding & Family Support,Family Connect & Childrens Centres,Premises-Related Expenditure,Hire Of Rooms,MEETING POINT TRUST LTD,05/12/2022,158.33
Children�s Safeguarding & Family Support,Family Connect & Childrens Centres,Supplies & Services,Administrative/Office Supplies,Kings of the Road,05/12/2022,180.00
Children�s Safeguarding & Family Support,Family Connect & Childrens Centres,Supplies & Services,Administrative/Office Supplies,Kings of the Road,05/12/2022,200.00
Children�s Safeguarding & Family Support,Family Connect & Childrens Centres,Employees,Course Fees,N Q Inspire Ltd,05/12/2022,157.50
Children�s Safeguarding & Family Support,Family Connect & Childrens Centres,Premises-Related Expenditure,Hire Of Rooms,CHILDCARE SOS,08/12/2022,128.00
Children�s Safeguarding & Family Support,Family Connect & Childrens Centres,Supplies & Services,Bulk Refuse Contracts Hire,GREEN SKIPS LTD,08/12/2022,120.00
Children�s Safeguarding & Family Support,Family Connect & Childrens Centres,Supplies & Services,Stationery,PODS,01/12/2022,"15,075.00"
Children�s Safeguarding & Family Support,Family Connect & Childrens Centres,Supplies & Services,Stationery,N Q Inspire Ltd,05/12/2022,472.50
Children�s Safeguarding & Family Support,"Family Placements, Children in Care, Leaving Care & Emergency Duty Team",Supplies & Services,Legal Expenses,B J Solicitors,02/12/2022,300.00
Children�s Safeguarding & Family Support,"Family Placements, Children in Care, Leaving Care & Emergency Duty Team",Supplies & Services,Mobile Phones,EE LTD EQUIPMENT,14/12/2022,142.00
Children�s Safeguarding & Family Support,"Family Placements, Children in Care, Leaving Care & Emergency Duty Team",Supplies & Services,Doctors Fees,WELLINGTON ROAD SURGERY,21/12/2022,133.33
Children�s Safeguarding & Family Support,"Family Placements, Children in Care, Leaving Care & Emergency Duty Team",Supplies & Services,Doctors Fees,WELLINGTON ROAD SURGERY,21/12/2022,133.33
Children�s Safeguarding & Family Support,"Family Placements, Children in Care, Leaving Care & Emergency Duty Team",Supplies & Services,Translation Services,Premium Linguistic Services,21/12/2022,201.55
Children�s Safeguarding & Family Support,"Family Placements, Children in Care, Leaving Care & Emergency Duty Team",Supplies & Services,Form F Assessments,Social Care Assessment Services Ltd,21/12/2022,740.00
Children�s Safeguarding & Family Support,"Family Placements, Children in Care, Leaving Care & Emergency Duty Team",Employees,Staff Training,Dawley Baptist Church,05/12/2022,385.00
Children�s Safeguarding & Family Support,"Family Placements, Children in Care, Leaving Care & Emergency Duty Team",Premises-Related Expenditure,Hire Of Rooms,Dawley Baptist Church,30/12/2022,192.50
Children�s Safeguarding & Family Support,"Family Placements, Children in Care, Leaving Care & Emergency Duty Team",Employees,Staff Training,PUBLIC POLICY EXCHANGE LIMITED,21/12/2022,178.00
Children�s Safeguarding & Family Support,"Family Placements, Children in Care, Leaving Care & Emergency Duty Team",Supplies & Services,Form F Assessments,Kite Fostering Consultancy Ltd,05/12/2022,372.50
Children�s Safeguarding & Family Support,"Family Placements, Children in Care, Leaving Care & Emergency Duty Team",Supplies & Services,Form F Assessments,Kite Fostering Consultancy Ltd,21/12/2022,"2,019.08"
Children�s Safeguarding & Family Support,"Family Placements, Children in Care, Leaving Care & Emergency Duty Team",Supplies & Services,Aids & Appliances,Tough Furniture Ltd,16/12/2022,537.00
Children�s Safeguarding & Family Support,"Family Placements, Children in Care, Leaving Care & Emergency Duty Team",Supplies & Services,Aids & Appliances,MIDSHIRES MOBILITY GROUP,05/12/2022,"2,700.50"
Children�s Safeguarding & Family Support,"Family Placements, Children in Care, Leaving Care & Emergency Duty Team",Supplies & Services,Aids & Appliances,MIDSHIRES MOBILITY GROUP,02/12/2022,"1,650.00"
Children�s Safeguarding & Family Support,"Family Placements, Children in Care, Leaving Care & Emergency Duty Team",Supplies & Services,Aids & Appliances,MIDSHIRES MOBILITY GROUP,02/12/2022,155.50
Children�s Safeguarding & Family Support,"Family Placements, Children in Care, Leaving Care & Emergency Duty Team",Supplies & Services,Aids & Appliances,Tough Furniture Ltd,08/12/2022,574.00
Children�s Safeguarding & Family Support,"Family Placements, Children in Care, Leaving Care & Emergency Duty Team",Supplies & Services,Aids & Appliances,Tough Furniture Ltd,08/12/2022,"1,206.00"
Children�s Safeguarding & Family Support,"Family Placements, Children in Care, Leaving Care & Emergency Duty Team",Supplies & Services,Form F Assessments,ES-PBS Services,08/12/2022,"2,000.00"
Children�s Safeguarding & Family Support,"Family Placements, Children in Care, Leaving Care & Emergency Duty Team",Supplies & Services,Equipment - Repair,STANNAH LIFT SERVICES LTD,15/12/2022,125.50
Children�s Safeguarding & Family Support,"Family Placements, Children in Care, Leaving Care & Emergency Duty Team",Supplies & Services,Aids & Appliances,Tough Furniture Ltd,08/12/2022,910.00
Children�s Safeguarding & Family Support,"Family Placements, Children in Care, Leaving Care & Emergency Duty Team",Supplies & Services,Aids & Appliances,OSPREY HEALTHCARE LTD,21/12/2022,271.00
Children�s Safeguarding & Family Support,"Family Placements, Children in Care, Leaving Care & Emergency Duty Team",Supplies & Services,Aids & Appliances,G & S S LTD,20/12/2022,319.00
Children�s Safeguarding & Family Support,"Family Placements, Children in Care, Leaving Care & Emergency Duty Team",Supplies & Services,Comp Hardware (Purch / Hire),CCS MEDIA LIMITED,29/12/2022,"1,038.06"
Children�s Safeguarding & Family Support,"Family Placements, Children in Care, Leaving Care & Emergency Duty Team",Transport-Related Expenditure,Season Tickets,ARRIVA MIDLANDS LTD ,20/12/2022,168.00
Children�s Safeguarding & Family Support,"Family Placements, Children in Care, Leaving Care & Emergency Duty Team",Employees,Staff Training,Leaving Care Training & Consultancy Service,20/12/2022,"1,455.00"
Children�s Safeguarding & Family Support,"Family Placements, Children in Care, Leaving Care & Emergency Duty Team",Premises-Related Expenditure,Hire Of Rooms,MEETING POINT TRUST LTD,19/12/2022,105.00
Children�s Safeguarding & Family Support,"Family Placements, Children in Care, Leaving Care & Emergency Duty Team",Supplies & Services,Comp Hardware (Purch / Hire),CCS MEDIA LIMITED,14/12/2022,169.95
Children�s Safeguarding & Family Support,"Family Placements, Children in Care, Leaving Care & Emergency Duty Team",Supplies & Services,Mobile Phones,EE LTD EQUIPMENT ,23/12/2022,142.00
Children�s Safeguarding & Family Support,"Family Placements, Children in Care, Leaving Care & Emergency Duty Team",Supplies & Services,Comp Software (Purch / Hire),PHOENIX SOFTWARE LTD,20/12/2022,373.47
Children�s Safeguarding & Family Support,"Family Placements, Children in Care, Leaving Care & Emergency Duty Team",Supplies & Services,Comp Software (Purch / Hire),PHOENIX SOFTWARE LTD,20/12/2022,373.47
Children�s Safeguarding & Family Support,Safeguarding Advisory,Supplies & Services,Holidays & Outings,D Outdoor,13/12/2022,243.75
Children�s Safeguarding & Family Support,Safeguarding Advisory,Supplies & Services,Public Transport Subsidy,RAMADA TELFORD IRONBRIDGE,08/12/2022,337.50
Children�s Safeguarding & Family Support,Safeguarding Advisory,Third Party Payments,Private Contractors,Change Grow Live Services Ltd,13/12/2022,"4,022.98"
Children�s Safeguarding & Family Support,Safeguarding Advisory,Third Party Payments,Private Contractors,Change Grow Live Services Ltd,13/12/2022,"3,868.75"
Children�s Safeguarding & Family Support,Safeguarding Advisory,Third Party Payments,Private Contractors,Change Grow Live Services Ltd,13/12/2022,"4,333.00"
"Communities, Customer & Commercial Services",Community Services,Supplies & Services,Grants To Voluntary Organis,All Nations Church,06/12/2022,"5,000.00"
"Communities, Customer & Commercial Services",Community Services,Supplies & Services,Grants To Voluntary Organis,KETLEY PARISH COUNCIL,01/12/2022,"3,589.00"
"Communities, Customer & Commercial Services",Community Services,Supplies & Services,Grants To Voluntary Organis,MEETING POINT TRUST LTD,01/12/2022,"3,760.00"
"Communities, Customer & Commercial Services",Community Services,Supplies & Services,Grants To Voluntary Organis,Dawley Baptist Church,01/12/2022,"4,445.00"
"Communities, Customer & Commercial Services",Community Services,Supplies & Services,Grants To Voluntary Organis,ST GEORGES & PRIORSLEE PARISH COUNCIL,01/12/2022,"2,000.00"
"Communities, Customer & Commercial Services",Community Services,Supplies & Services,Grants To Voluntary Organis,ST GEORGES & PRIORSLEE PARISH COUNCIL,19/12/2022,"1,000.00"
"Communities, Customer & Commercial Services",Community Services,Supplies & Services,Grants To Voluntary Organis,LITTLE WENLOCK PARISH COUNCIl,01/12/2022,"2,500.00"
"Communities, Customer & Commercial Services",Community Services,Supplies & Services,Grants To Voluntary Organis,The Methodist Church Dawley,05/12/2022,"5,000.00"
"Communities, Customer & Commercial Services",Community Services,Supplies & Services,Grants To Voluntary Organis,PARK LANE CENTRE,05/12/2022,500.00
"Communities, Customer & Commercial Services",Community Services,Supplies & Services,Grants To Voluntary Organis,WROCKWARDINE PARISH COUNCIL ,05/12/2022,"2,500.00"
"Communities, Customer & Commercial Services",Community Services,Supplies & Services,Grants To Voluntary Organis,OAKENGATES TOWN COUNCIL,09/12/2022,300.00
"Communities, Customer & Commercial Services",Community Services,Supplies & Services,Grants To Voluntary Organis,RODINGTON PARISH COUNCIL ,06/12/2022,"1,000.00"
"Communities, Customer & Commercial Services",Community Services,Supplies & Services,Grants To Voluntary Organis,HOLLINSWOOD & RANDLAY PARISH COUNCIL,06/12/2022,600.00
"Communities, Customer & Commercial Services",Community Services,Supplies & Services,Grants To Voluntary Organis,TELFORD CHINWOO,15/12/2022,250.00
"Communities, Customer & Commercial Services",Community Services,Supplies & Services,Other Services,IZEN Energy Systems,05/12/2022,"14,883.02"
"Communities, Customer & Commercial Services",Community Services,Premises-Related Expenditure,Electricity,West Mercia Energy,21/12/2022,562.89
"Communities, Customer & Commercial Services",Community Services,Supplies & Services,Equipment - Purchase,TFM FARM & COUNTRY SUPERSTORE LTD,09/12/2022,294.00
"Communities, Customer & Commercial Services",Community Services,Supplies & Services,Other Services,IZEN Energy Systems,05/12/2022,"14,883.02"
"Communities, Customer & Commercial Services",Community Services,Capital Expenditure,Expenditure on loans & other financial assistance,HOLLINSWOOD & RANDLAY PARISH COUNCIL,05/12/2022,"10,000.00"
"Communities, Customer & Commercial Services",Community Services,Capital Expenditure,Expenditure on loans & other financial assistance,Sutton Hill Community Trust,05/12/2022,"10,000.00"
"Communities, Customer & Commercial Services",Community Services,Capital Expenditure,Expenditure on loans & other financial assistance,Save Our Shropshire CIO,05/12/2022,"10,000.00"
"Communities, Customer & Commercial Services",Community Services,Capital Expenditure,Expenditure on loans & other financial assistance,WROCKWARDINE WOOD CE JUNIOR SCHOOL,20/12/2022,"2,500.00"
"Communities, Customer & Commercial Services",Community Services,Capital Expenditure,Expenditure on loans & other financial assistance,PARK LANE CENTRE,05/12/2022,"5,196.00"
"Communities, Customer & Commercial Services",Community Services,Capital Expenditure,Expenditure on loans & other financial assistance,DONNINGTON PARTNERSHIP,06/12/2022,"7,124.98"
"Communities, Customer & Commercial Services",Community Services,Capital Expenditure,Expenditure on loans & other financial assistance,1ST PRIORSLEE & ST GEORGES SCOUT GROUP,06/12/2022,"3,275.00"
"Communities, Customer & Commercial Services",Community Services,Capital Expenditure,Expenditure on loans & other financial assistance,Dawley Town Hall,21/12/2022,"4,512.00"
"Communities, Customer & Commercial Services",Community Services,Capital Expenditure,Expenditure on loans & other financial assistance,WELLINGTON METHODIST CHURCH,21/12/2022,"3,200.00"
"Communities, Customer & Commercial Services",Community Services,Capital Expenditure,Expenditure on loans & other financial assistance,KETLEY PARISH COUNCIL,21/12/2022,"4,373.93"
"Communities, Customer & Commercial Services",Culture & Events,Supplies & Services,Equipment - Hire,Avanti Gas Ltd,02/12/2022,"4,193.91"
"Communities, Customer & Commercial Services",Culture & Events,Supplies & Services,Equipment - Hire,PP ELECTRICAL SERVICES Ltd,05/12/2022,700.00
"Communities, Customer & Commercial Services",Culture & Events,Supplies & Services,Equipment - Hire,Press Red Rentals Limited,06/12/2022,"1,330.50"
"Communities, Customer & Commercial Services",Culture & Events,Supplies & Services,Equipment - Hire,Stage and Studios Services Limited,02/12/2022,"1,000.00"
"Communities, Customer & Commercial Services",Culture & Events,Supplies & Services,Equipment - Hire,LITE ,01/12/2022,"14,340.80"
"Communities, Customer & Commercial Services",Culture & Events,Supplies & Services,Equipment - Hire,TELFORD INTERNATIONAL CENTRE,06/12/2022,900.00
"Communities, Customer & Commercial Services",Culture & Events,Supplies & Services,Web Services,BRIGHTER BUSINESS SOLUTIONS LTD,12/12/2022,"1,892.50"
"Communities, Customer & Commercial Services",Culture & Events,Supplies & Services,Web Services,BRIGHTER BUSINESS SOLUTIONS LTD,12/12/2022,"1,892.50"
"Communities, Customer & Commercial Services",Culture & Events,Supplies & Services,Web Services,impleview Europe,14/12/2022,"11,071.00"
"Communities, Customer & Commercial Services",Culture & Events,Supplies & Services,Equipment - Hire,PP ELECTRICAL SERVICES Ltd,14/12/2022,146.25
"Communities, Customer & Commercial Services",Culture & Events,Supplies & Services,Artistes Fees,Celestial Labs Ltd,06/12/2022,"14,800.00"
"Communities, Customer & Commercial Services",Culture & Events,Supplies & Services,Artistes Fees,Celestial Labs Ltd,06/12/2022,"4,920.00"
"Communities, Customer & Commercial Services",Culture & Events,Supplies & Services,Stationery,PREMIER ROLLS LTD,12/12/2022,"1,072.80"
"Communities, Customer & Commercial Services",Culture & Events,Supplies & Services,Equipment - Purchase,STAGE ELECTRICS PARTNERSHIP LTD,13/12/2022,"8,171.36"
"Communities, Customer & Commercial Services",Culture & Events,Supplies & Services,Stationery,AceOn Battery Solar Technology Limited,22/12/2022,360.00
"Communities, Customer & Commercial Services",Culture & Events,Supplies & Services,Promotion Expenses,Spektrix Limited,08/12/2022,"4,473.23"
"Communities, Customer & Commercial Services",Culture & Events,Supplies & Services,Promotion Expenses,Ticketplan Limited,01/12/2022,833.00
"Communities, Customer & Commercial Services",Culture & Events,Supplies & Services,Advertising,WHATS ON MAGAZINES LTD,06/12/2022,275.00
"Communities, Customer & Commercial Services",Culture & Events,Supplies & Services,Promotion Expenses,crowdEngage Limited,06/12/2022,210.00
"Communities, Customer & Commercial Services",Culture & Events,Supplies & Services,Marketing & Publicity,Kitform Promotional Products Ltd,06/12/2022,607.50
"Communities, Customer & Commercial Services",Culture & Events,Supplies & Services,Artistes Fees,Amande Concerts Ltd,08/12/2022,"6,753.66"
"Communities, Customer & Commercial Services",Culture & Events,Supplies & Services,Service Contracts,FREELANCE BUSINESS ASSOCIATES,09/12/2022,705.00
"Communities, Customer & Commercial Services",Culture & Events,Supplies & Services,Wet Resale Provision,MOLSON COORS BREWING COMPANY UK LTD,07/12/2022,129.88
"Communities, Customer & Commercial Services",Culture & Events,Supplies & Services,Wet Resale Provision,MOLSON COORS BREWING COMPANY UK LTD,07/12/2022,110.19
"Communities, Customer & Commercial Services",Culture & Events,Supplies & Services,Wet Resale Provision,MOLSON COORS BREWING COMPANY UK LTD,07/12/2022,129.88
"Communities, Customer & Commercial Services",Culture & Events,Supplies & Services,Wet Resale Provision,MOLSON COORS BREWING COMPANY UK LTD,07/12/2022,129.88
"Communities, Customer & Commercial Services",Culture & Events,Supplies & Services,Crockery/Hardware/Light Equip,Green Goblet Limited,06/12/2022,780.00
"Communities, Customer & Commercial Services",Culture & Events,Supplies & Services,Crockery/Hardware/Light Equip,Green Goblet Limited,06/12/2022,690.00
"Communities, Customer & Commercial Services",Culture & Events,Supplies & Services,Hospitality,HAMMONDS CATERING SERVICES LTD,01/12/2022,347.50
"Communities, Customer & Commercial Services",Culture & Events,Supplies & Services,Wet Resale Provision,MOLSON COORS BREWING COMPANY UK LTD,06/12/2022,220.38
"Communities, Customer & Commercial Services",Culture & Events,Supplies & Services,Wet Resale Provision,MOLSON COORS BREWING COMPANY UK LTD,06/12/2022,129.88
"Communities, Customer & Commercial Services",Culture & Events,Supplies & Services,Wet Resale Provision,MOLSON COORS BREWING COMPANY UK LTD,06/12/2022,132.69
"Communities, Customer & Commercial Services",Culture & Events,Supplies & Services,Wet Resale Provision,MOLSON COORS BREWING COMPANY UK LTD,06/12/2022,259.76
"Communities, Customer & Commercial Services",Culture & Events,Supplies & Services,Wet Resale Provision,MOLSON COORS BREWING COMPANY UK LTD,06/12/2022,120.20
"Communities, Customer & Commercial Services",Culture & Events,Supplies & Services,Hospitality,HAMMONDS CATERING SERVICES LTD,15/12/2022,248.00
"Communities, Customer & Commercial Services",Culture & Events,Supplies & Services,Hospitality,HAMMONDS CATERING SERVICES LTD,09/12/2022,279.00
"Communities, Customer & Commercial Services",Culture & Events,Supplies & Services,Wet Resale Provision,MOLSON COORS BREWING COMPANY UK LTD,09/12/2022,508.58
"Communities, Customer & Commercial Services",Culture & Events,Supplies & Services,Wet Resale Provision,MOLSON COORS BREWING COMPANY UK LTD,13/12/2022,129.88
"Communities, Customer & Commercial Services",Culture & Events,Supplies & Services,Wet Resale Provision,MOLSON COORS BREWING COMPANY UK LTD,13/12/2022,110.19
"Communities, Customer & Commercial Services",Culture & Events,Premises-Related Expenditure,Gas,GAS DIRECT LTD,14/12/2022,113.36
"Communities, Customer & Commercial Services",Culture & Events,Supplies & Services,Wet Resale Provision,MOLSON COORS BREWING COMPANY UK LTD,07/12/2022,661.14
"Communities, Customer & Commercial Services",Culture & Events,Supplies & Services,Wet Resale Provision,MOLSON COORS BREWING COMPANY UK LTD,07/12/2022,398.07
"Communities, Customer & Commercial Services",Culture & Events,Supplies & Services,Wet Resale Provision,MOLSON COORS BREWING COMPANY UK LTD,07/12/2022,205.90
"Communities, Customer & Commercial Services",Culture & Events,Supplies & Services,Wet Resale Provision,MOLSON COORS BREWING COMPANY UK LTD,07/12/2022,176.48
"Communities, Customer & Commercial Services",Culture & Events,Supplies & Services,Wet Resale Provision,MOLSON COORS BREWING COMPANY UK LTD,07/12/2022,145.20
"Communities, Customer & Commercial Services",Culture & Events,Supplies & Services,Wet Resale Provision,MOLSON COORS BREWING COMPANY UK LTD,07/12/2022,182.34
"Communities, Customer & Commercial Services",Culture & Events,Supplies & Services,Confectionery & Snacks,Eden Farm Hulleys,06/12/2022,110.10
"Communities, Customer & Commercial Services",Culture & Events,Supplies & Services,Confectionery & Snacks,Eden Farm Hulleys,06/12/2022,280.28
"Communities, Customer & Commercial Services",Culture & Events,Supplies & Services,Wet Resale Provision,MOLSON COORS BREWING COMPANY UK LTD,14/12/2022,162.68
"Communities, Customer & Commercial Services",Culture & Events,Supplies & Services,Wet Resale Provision,MOLSON COORS BREWING COMPANY UK LTD,14/12/2022,186.28
"Communities, Customer & Commercial Services",Culture & Events,Supplies & Services,Wet Resale Provision,MOLSON COORS BREWING COMPANY UK LTD,14/12/2022,226.88
"Communities, Customer & Commercial Services",Culture & Events,Supplies & Services,Wet Resale Provision,MOLSON COORS BREWING COMPANY UK LTD,14/12/2022,115.16
"Communities, Customer & Commercial Services",Customer Relationships & Welfare Services,Supplies & Services,Equipment - Purchase,Inventry Ltd,22/12/2022,240.00
"Communities, Customer & Commercial Services",Customer Relationships & Welfare Services,Transfer Payments,Crisis Assistance Awards,Kings of the Road,14/12/2022,275.00
"Communities, Customer & Commercial Services",Customer Relationships & Welfare Services,Supplies & Services,Bus Pass Production,Euclid Limited,07/12/2022,853.74
"Communities, Customer & Commercial Services",Customer Relationships & Welfare Services,Transfer Payments,Crisis Assistance Awards,Kings of the Road,20/12/2022,275.00
"Communities, Customer & Commercial Services",Customer Relationships & Welfare Services,Transfer Payments,Crisis Assistance Awards,Kings of the Road,20/12/2022,325.00
"Communities, Customer & Commercial Services",Customer Relationships & Welfare Services,Supplies & Services,Permit Production - Blue Badge,Valtech Limited,06/12/2022,407.96
"Communities, Customer & Commercial Services",Customer Relationships & Welfare Services,Supplies & Services,Permit Production - Blue Badge,APS Group,06/12/2022,882.87
"Communities, Customer & Commercial Services",Customer Relationships & Welfare Services,Supplies & Services,Blue Badge Assessments,Ascenti,09/12/2022,270.00
"Communities, Customer & Commercial Services",Customer Relationships & Welfare Services,Transfer Payments,Crisis Assistance Awards,CLEANIT CLEANING SERVICES,14/12/2022,795.00
"Communities, Customer & Commercial Services",Customer Relationships & Welfare Services,Transfer Payments,Crisis Assistance Awards,Kings of the Road,20/12/2022,275.00
"Communities, Customer & Commercial Services",Customer Relationships & Welfare Services,Supplies & Services,Comp Software (Purch / Hire),PHOENIX SOFTWARE LTD,07/12/2022,"4,055.00"
"Communities, Customer & Commercial Services",Customer Relationships & Welfare Services,Supplies & Services,Other Grants (Expenses),Hawk Incentives Ltd,20/12/2022,"14,968.25"
"Communities, Customer & Commercial Services",Customer Relationships & Welfare Services,Employees,Agency Supply Costs,G2 Recruitment Solutions,20/12/2022,"1,009.80"
"Communities, Customer & Commercial Services",Customer Relationships & Welfare Services,Employees,Agency Supply Costs,EDEN BROWN LTD,13/12/2022,"1,046.25"
"Communities, Customer & Commercial Services",Customer Relationships & Welfare Services,Employees,Agency Supply Costs,EDEN BROWN LTD,13/12/2022,"1,039.50"
"Communities, Customer & Commercial Services",Customer Relationships & Welfare Services,Supplies & Services,Other Grants (Expenses),Discretionary Household Support,16/12/2022,290.00
"Communities, Customer & Commercial Services",Customer Relationships & Welfare Services,Transfer Payments,Crisis Assistance Awards,PayPoint Network Limited,15/12/2022,"1,131.00"
"Communities, Customer & Commercial Services",Customer Relationships & Welfare Services,Supplies & Services,Other Grants (Expenses),Discretionary Household Support,19/12/2022,252.80
"Communities, Customer & Commercial Services",Customer Relationships & Welfare Services,Supplies & Services,Other Grants (Expenses),Discretionary Household Support,15/12/2022,"2,454.36"
"Communities, Customer & Commercial Services",Customer Relationships & Welfare Services,Supplies & Services,Other Grants (Expenses),Discretionary Household Support,06/12/2022,500.00
"Communities, Customer & Commercial Services",Customer Relationships & Welfare Services,Employees,Agency Supply Costs,EDEN BROWN LTD,09/12/2022,"1,046.25"
"Communities, Customer & Commercial Services",Customer Relationships & Welfare Services,Employees,Agency Supply Costs,G2 Recruitment Solutions,09/12/2022,900.00
"Communities, Customer & Commercial Services",Customer Relationships & Welfare Services,Transfer Payments,Crisis Assistance Awards,PayPoint Network Limited,06/12/2022,769.00
"Communities, Customer & Commercial Services",Customer Relationships & Welfare Services,Employees,Agency Supply Costs,G2 Recruitment Solutions,06/12/2022,967.50
"Communities, Customer & Commercial Services",Customer Relationships & Welfare Services,Supplies & Services,Other Grants (Expenses),Discretionary Household Support,14/12/2022,776.00
"Communities, Customer & Commercial Services",Customer Relationships & Welfare Services,Supplies & Services,Other Grants (Expenses),Discretionary Household Support,14/12/2022,487.46
"Communities, Customer & Commercial Services",Customer Relationships & Welfare Services,Supplies & Services,Other Grants (Expenses),Discretionary Household Support,14/12/2022,200.00
"Communities, Customer & Commercial Services",Customer Relationships & Welfare Services,Employees,Agency Supply Costs,EDEN BROWN LTD,08/12/2022,992.25
"Communities, Customer & Commercial Services",Customer Relationships & Welfare Services,Employees,Agency Supply Costs,EDEN BROWN LTD,13/12/2022,"1,053.00"
"Communities, Customer & Commercial Services",Customer Relationships & Welfare Services,Supplies & Services,Other Grants (Expenses),Discretionary Household Support,20/12/2022,480.42
"Communities, Customer & Commercial Services",Customer Relationships & Welfare Services,Supplies & Services,Other Grants (Expenses),Discretionary Household Support,22/12/2022,177.29
"Communities, Customer & Commercial Services",Customer Relationships & Welfare Services,Employees,Agency Supply Costs,G2 Recruitment Solutions,22/12/2022,687.60
"Communities, Customer & Commercial Services",Customer Relationships & Welfare Services,Employees,Agency Supply Costs,EDEN BROWN LTD,22/12/2022,"1,053.00"
"Communities, Customer & Commercial Services",Customer Relationships & Welfare Services,Transfer Payments,Crisis Assistance Awards,PayPoint Network Limited,21/12/2022,"2,318.00"
"Communities, Customer & Commercial Services",Customer Relationships & Welfare Services,Employees,Agency Supply Costs,EDEN BROWN LTD,21/12/2022,"1,039.50"
"Communities, Customer & Commercial Services",Customer Relationships & Welfare Services,Supplies & Services,Other Grants (Expenses),Discretionary Household Support,21/12/2022,450.00
"Communities, Customer & Commercial Services",Customer Relationships & Welfare Services,Supplies & Services,Postages,Financial Data Management plc,01/12/2022,153.54
"Communities, Customer & Commercial Services",Customer Relationships & Welfare Services,Supplies & Services,Postages,Financial Data Management plc,09/12/2022,138.53
"Communities, Customer & Commercial Services",Customer Relationships & Welfare Services,Supplies & Services,Postages,Financial Data Management plc,09/12/2022,133.60
"Communities, Customer & Commercial Services",Customer Relationships & Welfare Services,Employees,Staff Training,Local Government Ombudsman,09/12/2022,"1,800.00"
"Communities, Customer & Commercial Services",Customer Relationships & Welfare Services,Supplies & Services,Postages,ROYAL MAIL GROUP PLC ,20/12/2022,125.00
"Communities, Customer & Commercial Services",Customer Relationships & Welfare Services,Supplies & Services,Printing - Other,Financial Data Management plc,21/12/2022,109.70
"Communities, Customer & Commercial Services",Customer Relationships & Welfare Services,Employees,Staff Training,DUDLEY METROPOLITAN BOROUGH COUNCIL,02/12/2022,540.00
"Communities, Customer & Commercial Services",Customer Relationships & Welfare Services,Employees,Staff Training,DUDLEY METROPOLITAN BOROUGH COUNCIL,02/12/2022,380.00
"Communities, Customer & Commercial Services",Customer Relationships & Welfare Services,Employees,Staff Training,DUDLEY METROPOLITAN BOROUGH COUNCIL,16/12/2022,810.00
"Communities, Customer & Commercial Services",Customer Relationships & Welfare Services,Employees,Staff Training,DUDLEY METROPOLITAN BOROUGH COUNCIL,16/12/2022,840.00
"Communities, Customer & Commercial Services",Customer Relationships & Welfare Services,Premises-Related Expenditure,Grounds Maintenance - Other,OASIS PLANTS LIMITED,15/12/2022,448.04
"Communities, Customer & Commercial Services",Customer Relationships & Welfare Services,Employees,Staff Training,DUDLEY METROPOLITAN BOROUGH COUNCIL,01/12/2022,"1,080.00"
"Communities, Customer & Commercial Services",Customer Relationships & Welfare Services,Premises-Related Expenditure,Grounds Maintenance - Cemeteries,GROUND INVESTIGATION & PILING LTD,13/12/2022,"4,931.88"
"Communities, Customer & Commercial Services",Customer Relationships & Welfare Services,Supplies & Services,Sub Contractors,A.R.M. Surveys Ltd,06/12/2022,363.74
"Communities, Customer & Commercial Services",Customer Relationships & Welfare Services,Premises-Related Expenditure,Grounds Maintenance - Cemeteries,GROUND INVESTIGATION & PILING LTD,13/12/2022,390.00
"Communities, Customer & Commercial Services",Customer Relationships & Welfare Services,Premises-Related Expenditure,Grounds Maintenance - Cemeteries,GROUND INVESTIGATION & PILING LTD,13/12/2022,325.00
"Communities, Customer & Commercial Services",Customer Relationships & Welfare Services,Premises-Related Expenditure,Grounds Maintenance - Cemeteries,GROUND INVESTIGATION & PILING LTD,13/12/2022,325.00
"Communities, Customer & Commercial Services",ICT,Employees,Staff Training,QA LTD,05/12/2022,"2,044.35"
"Communities, Customer & Commercial Services",ICT,Supplies & Services,Text Messages,PROCESS FLOWS UK LTD,06/12/2022,565.08
"Communities, Customer & Commercial Services",ICT,Supplies & Services,Mobile Phones,EE LTD AIRTIME ,06/12/2022,"12,182.87"
"Communities, Customer & Commercial Services",ICT,Supplies & Services,Telephones,BRITISH TELECOMMUNICATIONS PLC,01/12/2022,"5,931.74"
"Communities, Customer & Commercial Services",ICT,Supplies & Services,Telephones,BT PLC ,12/12/2022,"5,551.61"
"Communities, Customer & Commercial Services",ICT,Supplies & Services,Telephones,CCS MEDIA LIMITED,12/12/2022,"1,180.00"
"Communities, Customer & Commercial Services",ICT,Supplies & Services,Telephones,Trustmarque Solutions Limited,20/12/2022,"2,936.71"
"Communities, Customer & Commercial Services",ICT,Supplies & Services,Comp Software (Purch / Hire),PHOENIX SOFTWARE LTD,02/12/2022,"124,874.75"
"Communities, Customer & Commercial Services",ICT,Supplies & Services,Comp Software (Purch / Hire),PHOENIX SOFTWARE LTD,02/12/2022,"12,350.25"
"Communities, Customer & Commercial Services",ICT,Supplies & Services,Comp Software (Purch / Hire),CIVICA UK LIMITED ,02/12/2022,"51,193.00"
"Communities, Customer & Commercial Services",ICT,Premises-Related Expenditure,Service Contracts,Churches Fire Security Ltd,13/12/2022,320.00
"Communities, Customer & Commercial Services",ICT,Premises-Related Expenditure,Service Contracts,PP ELECTRICAL SERVICES Ltd,13/12/2022,135.00
"Communities, Customer & Commercial Services",ICT,Premises-Related Expenditure,Service Contracts,Churches Fire Security Ltd,13/12/2022,320.00
"Communities, Customer & Commercial Services",ICT,Supplies & Services,Telecomms,VIRGIN MEDIA BUSINESS,01/12/2022,"7,187.00"
"Communities, Customer & Commercial Services",ICT,Premises-Related Expenditure,R&M -Building Other,Charlton Academy,01/12/2022,"1,677.06"
"Communities, Customer & Commercial Services",ICT,Supplies & Services,Telecomms,Nominet,12/12/2022,765.94
"Communities, Customer & Commercial Services",ICT,Supplies & Services,Telecomms,Nominet,12/12/2022,765.94
"Communities, Customer & Commercial Services",ICT,Supplies & Services,Telecomms,BRITISH TELECOMMUNICATIONS PLC ,12/12/2022,561.54
"Communities, Customer & Commercial Services",ICT,Supplies & Services,Comp Software (Purch / Hire),Fidus Information Security Limited,15/12/2022,"7,997.50"
"Communities, Customer & Commercial Services",ICT,Supplies & Services,Comp Software (Purch / Hire),PHOENIX SOFTWARE LTD,14/12/2022,"2,686.86"
"Communities, Customer & Commercial Services",ICT,Supplies & Services,Comp Software (Purch / Hire),PHOENIX SOFTWARE LTD,20/12/2022,"6,903.00"
"Communities, Customer & Commercial Services",ICT,Supplies & Services,Comp Software (Purch / Hire),PHOENIX SOFTWARE LTD,06/12/2022,"1,515.26"
"Communities, Customer & Commercial Services",ICT,Supplies & Services,Comp Software (Purch / Hire),PHOENIX SOFTWARE LTD,06/12/2022,518.42
"Communities, Customer & Commercial Services",ICT,Supplies & Services,Telecomms,VIRGIN MEDIA BUSINESS ,20/12/2022,"3,100.00"
"Communities, Customer & Commercial Services",ICT,Supplies & Services,Comp Software (Purch / Hire),Secon Cyber Security LTD,08/12/2022,"12,327.19"
"Communities, Customer & Commercial Services",ICT,Supplies & Services,Comp Software (Purch / Hire),Orange Cyberdefense UK Limited,14/12/2022,876.51
"Communities, Customer & Commercial Services",ICT,Premises-Related Expenditure,Service Contracts,AVK/SEG (UK) Ltd,21/12/2022,"3,093.00"
"Communities, Customer & Commercial Services",ICT,Premises-Related Expenditure,Service Contracts,AVK/SEG (UK) Ltd,21/12/2022,"2,583.00"
"Communities, Customer & Commercial Services",ICT,Premises-Related Expenditure,Service Contracts,AVK/SEG (UK) Ltd,21/12/2022,"2,686.32"
"Communities, Customer & Commercial Services",ICT,Supplies & Services,Comp Software (Purch / Hire),PHOENIX SOFTWARE LTD,21/12/2022,"5,972.48"
"Communities, Customer & Commercial Services",ICT,Supplies & Services,Comp Software (Purch / Hire),ScholarPack,21/12/2022,"3,388.00"
"Communities, Customer & Commercial Services",ICT,Supplies & Services,Licences,SIEMENS FINANCIAL SERVICES LTD,06/12/2022,"1,036.73"
"Communities, Customer & Commercial Services",ICT,Supplies & Services,Comp Software (Purch / Hire),Bromcom Computers Plc,02/12/2022,"12,654.60"
"Communities, Customer & Commercial Services",ICT,Supplies & Services,Comp Software (Purch / Hire),Bromcom Computers Plc,01/12/2022,-350.00
"Communities, Customer & Commercial Services",ICT,Supplies & Services,Comp Software (Purch / Hire),ScholarPack,12/12/2022,"4,151.50"
"Communities, Customer & Commercial Services",ICT,Supplies & Services,Comp Software (Purch / Hire),ScholarPack,12/12/2022,"5,092.50"
"Communities, Customer & Commercial Services",ICT,Supplies & Services,Comp Hardware (Purch / Hire),CCS MEDIA LIMITED,20/12/2022,175.00
"Communities, Customer & Commercial Services",ICT,Supplies & Services,Stationery,PREMIER PAPER GROUP LTD,13/12/2022,130.80
"Communities, Customer & Commercial Services",ICT,Supplies & Services,Computer Software (Maint),WREKIN SERVICES LTD,12/12/2022,"2,513.82"
"Communities, Customer & Commercial Services",ICT,Supplies & Services,Mobile Phones,EE LTD EQUIPMENT ,23/12/2022,375.00
"Communities, Customer & Commercial Services",ICT,Supplies & Services,Comp Hardware (Purch / Hire),CCS MEDIA LIMITED,14/12/2022,875.00
"Communities, Customer & Commercial Services",ICT,Supplies & Services,Comp Software (Purch / Hire),PHOENIX SOFTWARE LTD,21/12/2022,292.70
"Communities, Customer & Commercial Services",ICT,Capital Expenditure,Payments to Contractor,Zellis UK Ltd,07/12/2022,846.00
"Communities, Customer & Commercial Services",ICT,Capital Expenditure,Payments to Contractor,Zellis UK Ltd,07/12/2022,963.50
"Communities, Customer & Commercial Services",ICT,Capital Expenditure,Payments to Contractor,Zellis UK Ltd,07/12/2022,"6,768.00"
"Communities, Customer & Commercial Services",ICT,Capital Expenditure,Payments to Contractor,Zellis UK Ltd,07/12/2022,"1,480.50"
"Communities, Customer & Commercial Services",ICT,Capital Expenditure,Computer Hardware,CCS MEDIA LIMITED,05/12/2022,"6,192.20"
"Communities, Customer & Commercial Services",ICT,Capital Expenditure,Computer Hardware,ICTn Limited,07/12/2022,150.00
"Communities, Customer & Commercial Services",ICT,Capital Expenditure,Computer Hardware,ICTn Limited,07/12/2022,310.00
"Communities, Customer & Commercial Services",ICT,Capital Expenditure,Computer Hardware,CCS MEDIA LIMITED,05/12/2022,"11,730.00"
"Communities, Customer & Commercial Services",ICT,Capital Expenditure,Computer Hardware,CCS MEDIA LIMITED,06/12/2022,"12,920.56"
"Communities, Customer & Commercial Services",ICT,Capital Expenditure,Computer Hardware,CCS MEDIA LIMITED,01/12/2022,"7,624.56"
"Communities, Customer & Commercial Services",ICT,Capital Expenditure,Computer Hardware,CCS MEDIA LIMITED,01/12/2022,"2,882.76"
"Communities, Customer & Commercial Services",ICT,Capital Expenditure,Computer Hardware,CCS MEDIA LIMITED,05/12/2022,"1,246.10"
"Communities, Customer & Commercial Services",ICT,Capital Expenditure,Computer Hardware,Orange Cyberdefense UK Limited,12/12/2022,"19,787.20"
"Communities, Customer & Commercial Services",ICT,Capital Expenditure,Computer Hardware,CCS MEDIA LIMITED,06/12/2022,"107,018.20"
"Communities, Customer & Commercial Services",ICT,Capital Expenditure,Computer Hardware,CCS MEDIA LIMITED,06/12/2022,"146,769.46"
"Communities, Customer & Commercial Services",ICT,Capital Expenditure,Computer Software,LIQUIDLOGIC LIMITED,12/12/2022,"29,470.00"
"Communities, Customer & Commercial Services",ICT,Capital Expenditure,Computer Hardware,CCS MEDIA LIMITED,08/12/2022,"1,000.00"
"Communities, Customer & Commercial Services",ICT,Capital Expenditure,Computer Hardware,CCS MEDIA LIMITED,08/12/2022,850.00
"Communities, Customer & Commercial Services",ICT,Capital Expenditure,Payments to Contractor,Zellis UK Ltd,20/12/2022,"1,504.00"
"Communities, Customer & Commercial Services",ICT,Capital Expenditure,Payments to Contractor,Zellis UK Ltd,20/12/2022,"1,809.50"
"Communities, Customer & Commercial Services",ICT,Capital Expenditure,Payments to Contractor,FarrPoint Ltd,07/12/2022,"1,303.12"
"Communities, Customer & Commercial Services",ICT,Capital Expenditure,Computer Hardware,CCS MEDIA LIMITED,08/12/2022,"-2,541.52"
"Communities, Customer & Commercial Services",ICT,Capital Expenditure,Payments to Contractor,Bramble Hub Limited,08/12/2022,"25,375.00"
"Communities, Customer & Commercial Services",ICT,Capital Expenditure,Computer Hardware,CCS MEDIA LIMITED,08/12/2022,"2,541.52"
"Communities, Customer & Commercial Services",ICT,Capital Expenditure,Computer Hardware,CCS MEDIA LIMITED,14/12/2022,"4,920.00"
"Communities, Customer & Commercial Services",ICT,Capital Expenditure,Computer Software,Bramble Hub Limited,21/12/2022,"2,221.56"
"Communities, Customer & Commercial Services",ICT,Capital Expenditure,Computer Hardware,CCS MEDIA LIMITED,22/12/2022,"9,486.60"
"Communities, Customer & Commercial Services",ICT,Capital Expenditure,Computer Hardware,CCS MEDIA LIMITED,22/12/2022,"120,861.20"
"Communities, Customer & Commercial Services",ICT,Capital Expenditure,Computer Hardware,CCS MEDIA LIMITED,22/12/2022,"-143,394.84"
"Communities, Customer & Commercial Services",ICT,Capital Expenditure,Computer Hardware,CCS MEDIA LIMITED,22/12/2022,"139,591.80"
"Communities, Customer & Commercial Services",ICT,Capital Expenditure,Payments to Contractor,ICTn Limited,14/12/2022,432.00
"Communities, Customer & Commercial Services",ICT,Capital Expenditure,Computer Hardware,CCS MEDIA LIMITED,05/12/2022,"1,903.20"
"Communities, Customer & Commercial Services",Sport & Leisure,Premises-Related Expenditure,Clean Mats & Toilet Requisites,Border Janitorial Supplies Limited,01/12/2022,375.11
"Communities, Customer & Commercial Services",Sport & Leisure,Premises-Related Expenditure,Clean Mats & Toilet Requisites,Border Janitorial Supplies Limited,01/12/2022,343.73
"Communities, Customer & Commercial Services",Sport & Leisure,Premises-Related Expenditure,Clean Mats & Toilet Requisites,Border Janitorial Supplies Limited,16/12/2022,118.10
"Communities, Customer & Commercial Services",Sport & Leisure,Premises-Related Expenditure,Clean Mats & Toilet Requisites,Border Janitorial Supplies Limited,16/12/2022,298.71
"Communities, Customer & Commercial Services",Sport & Leisure,Premises-Related Expenditure,Clean Mats & Toilet Requisites,Border Janitorial Supplies Limited,16/12/2022,135.20
"Communities, Customer & Commercial Services",Sport & Leisure,Premises-Related Expenditure,Clean Mats & Toilet Requisites,Border Janitorial Supplies Limited,16/12/2022,163.53
"Communities, Customer & Commercial Services",Sport & Leisure,Premises-Related Expenditure,Clean Mats & Toilet Requisites,Border Janitorial Supplies Limited,01/12/2022,172.27
"Communities, Customer & Commercial Services",Sport & Leisure,Premises-Related Expenditure,Clean Mats & Toilet Requisites,Border Janitorial Supplies Limited,01/12/2022,318.69
"Communities, Customer & Commercial Services",Sport & Leisure,Premises-Related Expenditure,Clean Mats & Toilet Requisites,Border Janitorial Supplies Limited,01/12/2022,297.27
"Communities, Customer & Commercial Services",Sport & Leisure,Employees,Training Expenses,APSE ,16/12/2022,379.00
"Communities, Customer & Commercial Services",Sport & Leisure,Supplies & Services,Subscriptions,APSE ,02/12/2022,859.40
"Communities, Customer & Commercial Services",Sport & Leisure,Premises-Related Expenditure,Clean Mats & Toilet Requisites,Border Janitorial Supplies Limited,16/12/2022,179.01
"Communities, Customer & Commercial Services",Sport & Leisure,Premises-Related Expenditure,Clean Mats & Toilet Requisites,Border Janitorial Supplies Limited,01/12/2022,170.53
"Communities, Customer & Commercial Services",Sport & Leisure,Premises-Related Expenditure,Electricity,EON next,21/12/2022,168.94
"Communities, Customer & Commercial Services",Sport & Leisure,Employees,Training Expenses,QUALSAFE.COM,07/12/2022,168.95
"Communities, Customer & Commercial Services",Sport & Leisure,Supplies & Services,Protective Clothing,IMAGE@WORK LTD,05/12/2022,842.98
"Communities, Customer & Commercial Services",Sport & Leisure,Supplies & Services,Protective Clothing,E N CATERING EQUIPMENT AND SERVICES  LTD,06/12/2022,199.92
"Communities, Customer & Commercial Services",Sport & Leisure,Supplies & Services,Crockery/Hardware/Light Equip,CALTEL CATERING & LAUNDRY EQUIPMENT LLP,19/12/2022,576.66
"Communities, Customer & Commercial Services",Sport & Leisure,Employees,Hospitality,LACA LTD,01/12/2022,688.00
"Communities, Customer & Commercial Services",Sport & Leisure,Premises-Related Expenditure,Trade Refuse,FCC Recycling Ltd ,06/12/2022,257.14
"Communities, Customer & Commercial Services",Sport & Leisure,Supplies & Services,Crockery/Hardware/Light Equip,PLANGLOW LTD,01/12/2022,506.22
"Communities, Customer & Commercial Services",Sport & Leisure,Supplies & Services,Historic Building Grant,APSE ,02/12/2022,859.40
"Communities, Customer & Commercial Services",Sport & Leisure,Supplies & Services,EEC Whole Milk,J L DAIRIES,07/12/2022,800.08
"Communities, Customer & Commercial Services",Sport & Leisure,Supplies & Services,EEC Whole Milk,J L DAIRIES,07/12/2022,"1,814.88"
"Communities, Customer & Commercial Services",Sport & Leisure,Supplies & Services,EEC Whole Milk,J L DAIRIES,19/12/2022,"1,818.78"
"Communities, Customer & Commercial Services",Sport & Leisure,Supplies & Services,EEC Whole Milk,J L DAIRIES,20/12/2022,783.12
"Communities, Customer & Commercial Services",Sport & Leisure,Supplies & Services,EEC Whole Milk,J L DAIRIES,20/12/2022,"1,621.38"
"Communities, Customer & Commercial Services",Sport & Leisure,Supplies & Services,EEC Whole Milk,J L DAIRIES,19/12/2022,797.68
"Communities, Customer & Commercial Services",Sport & Leisure,Supplies & Services,Provisions,J L DAIRIES,01/12/2022,"1,722.33"
"Communities, Customer & Commercial Services",Sport & Leisure,Supplies & Services,Provisions,J L DAIRIES,01/12/2022,918.41
"Communities, Customer & Commercial Services",Sport & Leisure,Supplies & Services,Provisions,J L DAIRIES,08/12/2022,793.67
"Communities, Customer & Commercial Services",Sport & Leisure,Supplies & Services,Provisions,J L DAIRIES,08/12/2022,"1,700.55"
"Communities, Customer & Commercial Services",Sport & Leisure,Supplies & Services,Provisions,J L DAIRIES,08/12/2022,"1,780.69"
"Communities, Customer & Commercial Services",Sport & Leisure,Supplies & Services,Provisions,BIKOLD,08/12/2022,106.02
"Communities, Customer & Commercial Services",Sport & Leisure,Supplies & Services,Provisions,BIKOLD,15/12/2022,281.55
"Communities, Customer & Commercial Services",Sport & Leisure,Employees,Agency Supply Costs,TOTAL CATERING SOLUTONS RECRUITMENT LTD,13/12/2022,128.00
"Communities, Customer & Commercial Services",Sport & Leisure,Employees,Agency Supply Costs,TOTAL CATERING SOLUTONS RECRUITMENT LTD,13/12/2022,320.00
"Communities, Customer & Commercial Services",Sport & Leisure,Employees,Agency Supply Costs,TOTAL CATERING SOLUTONS RECRUITMENT LTD,13/12/2022,320.00
"Communities, Customer & Commercial Services",Sport & Leisure,Employees,Agency Supply Costs,TOTAL CATERING SOLUTONS RECRUITMENT LTD,13/12/2022,192.00
"Communities, Customer & Commercial Services",Sport & Leisure,Employees,Agency Supply Costs,TOTAL CATERING SOLUTONS RECRUITMENT LTD,13/12/2022,320.00
"Communities, Customer & Commercial Services",Sport & Leisure,Employees,Agency Supply Costs,TOTAL CATERING SOLUTONS RECRUITMENT LTD,01/12/2022,128.00
"Communities, Customer & Commercial Services",Sport & Leisure,Employees,Agency Supply Costs,TOTAL CATERING SOLUTONS RECRUITMENT LTD,01/12/2022,320.00
"Communities, Customer & Commercial Services",Sport & Leisure,Employees,Agency Supply Costs,TOTAL CATERING SOLUTONS RECRUITMENT LTD,01/12/2022,128.00
"Communities, Customer & Commercial Services",Sport & Leisure,Employees,Agency Supply Costs,TOTAL CATERING SOLUTONS RECRUITMENT LTD,01/12/2022,320.00
"Communities, Customer & Commercial Services",Sport & Leisure,Employees,Agency Supply Costs,TOTAL CATERING SOLUTONS RECRUITMENT LTD,01/12/2022,320.00
"Communities, Customer & Commercial Services",Sport & Leisure,Employees,Agency Supply Costs,TOTAL CATERING SOLUTONS RECRUITMENT LTD,12/12/2022,320.00
"Communities, Customer & Commercial Services",Sport & Leisure,Employees,Agency Supply Costs,TOTAL CATERING SOLUTONS RECRUITMENT LTD,12/12/2022,320.00
"Communities, Customer & Commercial Services",Sport & Leisure,Employees,Agency Supply Costs,TOTAL CATERING SOLUTONS RECRUITMENT LTD,12/12/2022,320.00
"Communities, Customer & Commercial Services",Sport & Leisure,Employees,Agency Supply Costs,TOTAL CATERING SOLUTONS RECRUITMENT LTD,21/12/2022,192.00
"Communities, Customer & Commercial Services",Sport & Leisure,Employees,Agency Supply Costs,TOTAL CATERING SOLUTONS RECRUITMENT LTD,21/12/2022,256.00
"Communities, Customer & Commercial Services",Sport & Leisure,Employees,Agency Supply Costs,TOTAL CATERING SOLUTONS RECRUITMENT LTD,21/12/2022,256.00
"Communities, Customer & Commercial Services",Sport & Leisure,Employees,Agency Supply Costs,TOTAL CATERING SOLUTONS RECRUITMENT LTD,21/12/2022,320.00
"Communities, Customer & Commercial Services",Sport & Leisure,Premises-Related Expenditure,Clean Mats & Toilet Requisites,E N CATERING EQUIPMENT AND SERVICES  LTD,06/12/2022,121.50
"Communities, Customer & Commercial Services",Sport & Leisure,Supplies & Services,Crockery/Hardware/Light Equip,Harfield Components Ltd,01/12/2022,385.50
"Communities, Customer & Commercial Services",Sport & Leisure,Premises-Related Expenditure,Clean Mats & Toilet Requisites,Border Janitorial Supplies Limited,21/12/2022,130.46
"Communities, Customer & Commercial Services",Sport & Leisure,Premises-Related Expenditure,Clean Mats & Toilet Requisites,Border Janitorial Supplies Limited,21/12/2022,500.27
"Communities, Customer & Commercial Services",Sport & Leisure,Premises-Related Expenditure,Clean Mats & Toilet Requisites,Border Janitorial Supplies Limited,21/12/2022,115.96
"Communities, Customer & Commercial Services",Sport & Leisure,Supplies & Services,Crockery/Hardware/Light Equip,Harfield Components Ltd,12/12/2022,124.19
"Communities, Customer & Commercial Services",Sport & Leisure,Premises-Related Expenditure,Clean Mats & Toilet Requisites,E N CATERING EQUIPMENT AND SERVICES  LTD,19/12/2022,149.00
"Communities, Customer & Commercial Services",Sport & Leisure,Premises-Related Expenditure,Clean Mats & Toilet Requisites,Border Janitorial Supplies Limited,01/12/2022,204.80
"Communities, Customer & Commercial Services",Sport & Leisure,Premises-Related Expenditure,Clean Mats & Toilet Requisites,Border Janitorial Supplies Limited,01/12/2022,201.60
"Communities, Customer & Commercial Services",Sport & Leisure,Premises-Related Expenditure,Clean Mats & Toilet Requisites,Border Janitorial Supplies Limited,01/12/2022,144.38
"Communities, Customer & Commercial Services",Sport & Leisure,Premises-Related Expenditure,Clean Mats & Toilet Requisites,E N CATERING EQUIPMENT AND SERVICES  LTD,06/12/2022,139.50
"Communities, Customer & Commercial Services",Sport & Leisure,Premises-Related Expenditure,Clean Mats & Toilet Requisites,E N CATERING EQUIPMENT AND SERVICES  LTD,06/12/2022,139.50
"Communities, Customer & Commercial Services",Sport & Leisure,Supplies & Services,Crockery/Hardware/Light Equip,Border Janitorial Supplies Limited,13/12/2022,176.94
"Communities, Customer & Commercial Services",Sport & Leisure,Supplies & Services,Provisions,J S Catering Butchers,16/12/2022,191.70
"Communities, Customer & Commercial Services",Sport & Leisure,Supplies & Services,Provisions,J S Catering Butchers,16/12/2022,147.20
"Communities, Customer & Commercial Services",Sport & Leisure,Supplies & Services,Provisions,J S Catering Butchers,16/12/2022,109.72
"Communities, Customer & Commercial Services",Sport & Leisure,Supplies & Services,Provisions,J S Catering Butchers,16/12/2022,191.75
"Communities, Customer & Commercial Services",Sport & Leisure,Supplies & Services,Provisions,J S Catering Butchers,16/12/2022,127.20
"Communities, Customer & Commercial Services",Sport & Leisure,Supplies & Services,Provisions,On A Roll,19/12/2022,338.85
"Communities, Customer & Commercial Services",Sport & Leisure,Supplies & Services,Provisions,On A Roll,19/12/2022,305.10
"Communities, Customer & Commercial Services",Sport & Leisure,Supplies & Services,Provisions,On A Roll,19/12/2022,248.40
"Communities, Customer & Commercial Services",Sport & Leisure,Supplies & Services,Provisions,On A Roll,19/12/2022,303.30
"Communities, Customer & Commercial Services",Sport & Leisure,Supplies & Services,Provisions,On A Roll,19/12/2022,327.60
"Communities, Customer & Commercial Services",Sport & Leisure,Supplies & Services,Provisions,On A Roll,19/12/2022,265.05
"Communities, Customer & Commercial Services",Sport & Leisure,Supplies & Services,Provisions,On A Roll,19/12/2022,299.25
"Communities, Customer & Commercial Services",Sport & Leisure,Supplies & Services,Provisions,On A Roll,19/12/2022,274.77
"Communities, Customer & Commercial Services",Sport & Leisure,Supplies & Services,Provisions,On A Roll,19/12/2022,235.98
"Communities, Customer & Commercial Services",Sport & Leisure,Supplies & Services,Provisions,J S Catering Butchers,05/12/2022,127.00
"Communities, Customer & Commercial Services",Sport & Leisure,Supplies & Services,Provisions,J S Catering Butchers,05/12/2022,144.00
"Communities, Customer & Commercial Services",Sport & Leisure,Supplies & Services,Provisions,J S Catering Butchers,05/12/2022,151.53
"Communities, Customer & Commercial Services",Sport & Leisure,Supplies & Services,Provisions,J S Catering Butchers,16/12/2022,-178.75
"Communities, Customer & Commercial Services",Sport & Leisure,Supplies & Services,Provisions,J S Catering Butchers,16/12/2022,-271.00
"Communities, Customer & Commercial Services",Sport & Leisure,Supplies & Services,Provisions,J S Catering Butchers,16/12/2022,-122.39
"Communities, Customer & Commercial Services",Sport & Leisure,Supplies & Services,Provisions,J S Catering Butchers,16/12/2022,-106.38
"Communities, Customer & Commercial Services",Sport & Leisure,Supplies & Services,Provisions,J S Catering Butchers,16/12/2022,-222.20
"Communities, Customer & Commercial Services",Sport & Leisure,Supplies & Services,Provisions,J S Catering Butchers,16/12/2022,-137.99
"Communities, Customer & Commercial Services",Sport & Leisure,Supplies & Services,Provisions,J S Catering Butchers,16/12/2022,-115.85
"Communities, Customer & Commercial Services",Sport & Leisure,Supplies & Services,Provisions,J S Catering Butchers,16/12/2022,130.59
"Communities, Customer & Commercial Services",Sport & Leisure,Supplies & Services,Provisions,J S Catering Butchers,16/12/2022,215.05
"Communities, Customer & Commercial Services",Sport & Leisure,Supplies & Services,Provisions,J S Catering Butchers,16/12/2022,135.20
"Communities, Customer & Commercial Services",Sport & Leisure,Supplies & Services,Provisions,J S Catering Butchers,16/12/2022,282.25
"Communities, Customer & Commercial Services",Sport & Leisure,Supplies & Services,Provisions,R & COMPANY,20/12/2022,216.64
"Communities, Customer & Commercial Services",Sport & Leisure,Supplies & Services,Provisions,R & COMPANY,20/12/2022,179.40
"Communities, Customer & Commercial Services",Sport & Leisure,Supplies & Services,Provisions,R & COMPANY,20/12/2022,148.84
"Communities, Customer & Commercial Services",Sport & Leisure,Supplies & Services,Provisions,R & COMPANY,20/12/2022,161.73
"Communities, Customer & Commercial Services",Sport & Leisure,Supplies & Services,Provisions,R & COMPANY,20/12/2022,449.37
"Communities, Customer & Commercial Services",Sport & Leisure,Supplies & Services,Provisions,R & COMPANY,20/12/2022,169.59
"Communities, Customer & Commercial Services",Sport & Leisure,Supplies & Services,Provisions,R & COMPANY,20/12/2022,241.90
"Communities, Customer & Commercial Services",Sport & Leisure,Supplies & Services,Provisions,R & COMPANY,20/12/2022,167.73
"Communities, Customer & Commercial Services",Sport & Leisure,Supplies & Services,Provisions,R & COMPANY,20/12/2022,112.88
"Communities, Customer & Commercial Services",Sport & Leisure,Supplies & Services,Provisions,R & COMPANY,20/12/2022,152.79
"Communities, Customer & Commercial Services",Sport & Leisure,Supplies & Services,Provisions,R & COMPANY,20/12/2022,173.15
"Communities, Customer & Commercial Services",Sport & Leisure,Supplies & Services,Provisions,R & COMPANY,20/12/2022,113.08
"Communities, Customer & Commercial Services",Sport & Leisure,Supplies & Services,Provisions,R & COMPANY,20/12/2022,199.92
"Communities, Customer & Commercial Services",Sport & Leisure,Supplies & Services,Provisions,R & COMPANY,20/12/2022,108.15
"Communities, Customer & Commercial Services",Sport & Leisure,Supplies & Services,Provisions,R & COMPANY,20/12/2022,103.78
"Communities, Customer & Commercial Services",Sport & Leisure,Supplies & Services,Provisions,R & COMPANY,20/12/2022,130.91
"Communities, Customer & Commercial Services",Sport & Leisure,Supplies & Services,Provisions,J S Catering Butchers,08/12/2022,153.32
"Communities, Customer & Commercial Services",Sport & Leisure,Supplies & Services,Provisions,J S Catering Butchers,08/12/2022,101.83
"Communities, Customer & Commercial Services",Sport & Leisure,Supplies & Services,Provisions,J S Catering Butchers,08/12/2022,237.40
"Communities, Customer & Commercial Services",Sport & Leisure,Supplies & Services,Provisions,J S Catering Butchers,08/12/2022,256.05
"Communities, Customer & Commercial Services",Sport & Leisure,Supplies & Services,Provisions,J S Catering Butchers,08/12/2022,238.30
"Communities, Customer & Commercial Services",Sport & Leisure,Supplies & Services,Provisions,J S Catering Butchers,08/12/2022,146.25
"Communities, Customer & Commercial Services",Sport & Leisure,Supplies & Services,Provisions,J S Catering Butchers,08/12/2022,112.00
"Communities, Customer & Commercial Services",Sport & Leisure,Supplies & Services,Provisions,J S Catering Butchers,08/12/2022,169.21
"Communities, Customer & Commercial Services",Sport & Leisure,Supplies & Services,Provisions,J S Catering Butchers,08/12/2022,140.80
"Communities, Customer & Commercial Services",Sport & Leisure,Supplies & Services,Provisions,J S Catering Butchers,08/12/2022,111.61
"Communities, Customer & Commercial Services",Sport & Leisure,Supplies & Services,Provisions,J S Catering Butchers,08/12/2022,118.64
"Communities, Customer & Commercial Services",Sport & Leisure,Supplies & Services,Provisions,J S Catering Butchers,08/12/2022,172.88
"Communities, Customer & Commercial Services",Sport & Leisure,Supplies & Services,Provisions,R & COMPANY,20/12/2022,100.50
"Communities, Customer & Commercial Services",Sport & Leisure,Supplies & Services,Provisions,R & COMPANY,20/12/2022,169.37
"Communities, Customer & Commercial Services",Sport & Leisure,Supplies & Services,Provisions,R & COMPANY,20/12/2022,160.85
"Communities, Customer & Commercial Services",Sport & Leisure,Supplies & Services,Provisions,R & COMPANY,20/12/2022,109.16
"Communities, Customer & Commercial Services",Sport & Leisure,Supplies & Services,Provisions,R & COMPANY,20/12/2022,161.09
"Communities, Customer & Commercial Services",Sport & Leisure,Supplies & Services,Provisions,R & COMPANY,20/12/2022,145.14
"Communities, Customer & Commercial Services",Sport & Leisure,Supplies & Services,Provisions,R & COMPANY,20/12/2022,104.37
"Communities, Customer & Commercial Services",Sport & Leisure,Supplies & Services,Provisions,R & COMPANY,20/12/2022,146.89
"Communities, Customer & Commercial Services",Sport & Leisure,Supplies & Services,Provisions,R & COMPANY,20/12/2022,284.98
"Communities, Customer & Commercial Services",Sport & Leisure,Supplies & Services,Provisions,R & COMPANY,20/12/2022,130.64
"Communities, Customer & Commercial Services",Sport & Leisure,Supplies & Services,Provisions,R & COMPANY,20/12/2022,181.99
"Communities, Customer & Commercial Services",Sport & Leisure,Supplies & Services,Provisions,R & COMPANY,20/12/2022,130.50
"Communities, Customer & Commercial Services",Sport & Leisure,Supplies & Services,Provisions,R & COMPANY,20/12/2022,186.29
"Communities, Customer & Commercial Services",Sport & Leisure,Supplies & Services,Provisions,BIKOLD,08/12/2022,283.10
"Communities, Customer & Commercial Services",Sport & Leisure,Supplies & Services,Provisions,BIKOLD,08/12/2022,371.73
"Communities, Customer & Commercial Services",Sport & Leisure,Supplies & Services,Provisions,R & COMPANY,20/12/2022,144.69
"Communities, Customer & Commercial Services",Sport & Leisure,Supplies & Services,Provisions,R & COMPANY,20/12/2022,107.56
"Communities, Customer & Commercial Services",Sport & Leisure,Supplies & Services,Provisions,BIKOLD,08/12/2022,263.99
"Communities, Customer & Commercial Services",Sport & Leisure,Supplies & Services,Provisions,BIKOLD,08/12/2022,100.60
"Communities, Customer & Commercial Services",Sport & Leisure,Supplies & Services,Provisions,BIKOLD,08/12/2022,160.89
"Communities, Customer & Commercial Services",Sport & Leisure,Supplies & Services,Provisions,BIKOLD,08/12/2022,153.80
"Communities, Customer & Commercial Services",Sport & Leisure,Supplies & Services,Provisions,BIKOLD,08/12/2022,201.28
"Communities, Customer & Commercial Services",Sport & Leisure,Supplies & Services,Provisions,BIKOLD,08/12/2022,176.73
"Communities, Customer & Commercial Services",Sport & Leisure,Supplies & Services,Provisions,R & COMPANY,20/12/2022,103.54
"Communities, Customer & Commercial Services",Sport & Leisure,Supplies & Services,Provisions,R & COMPANY,20/12/2022,107.77
"Communities, Customer & Commercial Services",Sport & Leisure,Supplies & Services,Provisions,R & COMPANY,20/12/2022,133.36
"Communities, Customer & Commercial Services",Sport & Leisure,Supplies & Services,Provisions,R & COMPANY,20/12/2022,143.97
"Communities, Customer & Commercial Services",Sport & Leisure,Supplies & Services,Provisions,R & COMPANY,20/12/2022,119.66
"Communities, Customer & Commercial Services",Sport & Leisure,Supplies & Services,Provisions,R & COMPANY,20/12/2022,104.00
"Communities, Customer & Commercial Services",Sport & Leisure,Supplies & Services,Provisions,R & COMPANY,20/12/2022,141.76
"Communities, Customer & Commercial Services",Sport & Leisure,Supplies & Services,Provisions,R & COMPANY,20/12/2022,112.94
"Communities, Customer & Commercial Services",Sport & Leisure,Supplies & Services,Provisions,R & COMPANY,20/12/2022,138.94
"Communities, Customer & Commercial Services",Sport & Leisure,Supplies & Services,Provisions,BIKOLD,08/12/2022,176.49
"Communities, Customer & Commercial Services",Sport & Leisure,Supplies & Services,Provisions,BIKOLD,08/12/2022,142.71
"Communities, Customer & Commercial Services",Sport & Leisure,Supplies & Services,Provisions,BIKOLD,08/12/2022,111.46
"Communities, Customer & Commercial Services",Sport & Leisure,Supplies & Services,Provisions,BIKOLD,08/12/2022,377.38
"Communities, Customer & Commercial Services",Sport & Leisure,Supplies & Services,Provisions,BIKOLD,08/12/2022,283.85
"Communities, Customer & Commercial Services",Sport & Leisure,Supplies & Services,Provisions,BIKOLD,08/12/2022,175.90
"Communities, Customer & Commercial Services",Sport & Leisure,Supplies & Services,Provisions,BIKOLD,08/12/2022,128.86
"Communities, Customer & Commercial Services",Sport & Leisure,Supplies & Services,Provisions,BIKOLD,08/12/2022,294.29
"Communities, Customer & Commercial Services",Sport & Leisure,Supplies & Services,Provisions,BIKOLD,08/12/2022,144.19
"Communities, Customer & Commercial Services",Sport & Leisure,Supplies & Services,Provisions,BIKOLD,08/12/2022,239.37
"Communities, Customer & Commercial Services",Sport & Leisure,Supplies & Services,Provisions,BIKOLD,08/12/2022,203.76
"Communities, Customer & Commercial Services",Sport & Leisure,Supplies & Services,Provisions,BIKOLD,08/12/2022,536.03
"Communities, Customer & Commercial Services",Sport & Leisure,Supplies & Services,Provisions,BIKOLD,08/12/2022,409.39
"Communities, Customer & Commercial Services",Sport & Leisure,Supplies & Services,Provisions,BIKOLD,08/12/2022,339.52
"Communities, Customer & Commercial Services",Sport & Leisure,Supplies & Services,Provisions,BIKOLD,08/12/2022,309.96
"Communities, Customer & Commercial Services",Sport & Leisure,Supplies & Services,Provisions,BIKOLD,08/12/2022,229.32
"Communities, Customer & Commercial Services",Sport & Leisure,Supplies & Services,Provisions,BIKOLD,08/12/2022,331.38
"Communities, Customer & Commercial Services",Sport & Leisure,Supplies & Services,Provisions,BIKOLD,08/12/2022,111.06
"Communities, Customer & Commercial Services",Sport & Leisure,Supplies & Services,Provisions,BIKOLD,08/12/2022,160.52
"Communities, Customer & Commercial Services",Sport & Leisure,Supplies & Services,Provisions,BIKOLD,08/12/2022,134.19
"Communities, Customer & Commercial Services",Sport & Leisure,Supplies & Services,Provisions,BIKOLD,08/12/2022,327.60
"Communities, Customer & Commercial Services",Sport & Leisure,Supplies & Services,Provisions,BIKOLD,08/12/2022,368.60
"Communities, Customer & Commercial Services",Sport & Leisure,Supplies & Services,Provisions,BIKOLD,08/12/2022,489.86
"Communities, Customer & Commercial Services",Sport & Leisure,Supplies & Services,Provisions,BIKOLD,08/12/2022,118.05
"Communities, Customer & Commercial Services",Sport & Leisure,Supplies & Services,Provisions,BIKOLD,08/12/2022,133.38
"Communities, Customer & Commercial Services",Sport & Leisure,Supplies & Services,Provisions,BIKOLD,08/12/2022,239.63
"Communities, Customer & Commercial Services",Sport & Leisure,Supplies & Services,Provisions,BIKOLD,08/12/2022,330.88
"Communities, Customer & Commercial Services",Sport & Leisure,Supplies & Services,Provisions,BIKOLD,08/12/2022,279.97
"Communities, Customer & Commercial Services",Sport & Leisure,Supplies & Services,Provisions,R & COMPANY,20/12/2022,129.15
"Communities, Customer & Commercial Services",Sport & Leisure,Supplies & Services,Provisions,BIKOLD,08/12/2022,114.12
"Communities, Customer & Commercial Services",Sport & Leisure,Supplies & Services,Provisions,BIKOLD,08/12/2022,115.94
"Communities, Customer & Commercial Services",Sport & Leisure,Supplies & Services,Provisions,BIKOLD,08/12/2022,178.59
"Communities, Customer & Commercial Services",Sport & Leisure,Supplies & Services,Provisions,BIKOLD,08/12/2022,297.78
"Communities, Customer & Commercial Services",Sport & Leisure,Supplies & Services,Provisions,BIKOLD,08/12/2022,291.13
"Communities, Customer & Commercial Services",Sport & Leisure,Supplies & Services,Provisions,BIKOLD,08/12/2022,206.36
"Communities, Customer & Commercial Services",Sport & Leisure,Supplies & Services,Provisions,BIKOLD,08/12/2022,242.45
"Communities, Customer & Commercial Services",Sport & Leisure,Supplies & Services,Provisions,BIKOLD,08/12/2022,186.49
"Communities, Customer & Commercial Services",Sport & Leisure,Supplies & Services,Provisions,BIKOLD,08/12/2022,400.01
"Communities, Customer & Commercial Services",Sport & Leisure,Supplies & Services,Provisions,BIKOLD,08/12/2022,229.57
"Communities, Customer & Commercial Services",Sport & Leisure,Supplies & Services,Provisions,BIKOLD,08/12/2022,186.05
"Communities, Customer & Commercial Services",Sport & Leisure,Supplies & Services,Provisions,BIKOLD,08/12/2022,286.51
"Communities, Customer & Commercial Services",Sport & Leisure,Supplies & Services,Provisions,BIKOLD,08/12/2022,166.31
"Communities, Customer & Commercial Services",Sport & Leisure,Supplies & Services,Provisions,BIKOLD,08/12/2022,208.44
"Communities, Customer & Commercial Services",Sport & Leisure,Supplies & Services,Provisions,BIKOLD,08/12/2022,167.91
"Communities, Customer & Commercial Services",Sport & Leisure,Supplies & Services,Provisions,BIKOLD,08/12/2022,197.47
"Communities, Customer & Commercial Services",Sport & Leisure,Supplies & Services,Provisions,BIKOLD,08/12/2022,249.06
"Communities, Customer & Commercial Services",Sport & Leisure,Supplies & Services,Provisions,BIKOLD,08/12/2022,260.47
"Communities, Customer & Commercial Services",Sport & Leisure,Supplies & Services,Provisions,BIKOLD,08/12/2022,127.28
"Communities, Customer & Commercial Services",Sport & Leisure,Supplies & Services,Provisions,BIKOLD,08/12/2022,483.98
"Communities, Customer & Commercial Services",Sport & Leisure,Supplies & Services,Provisions,BIKOLD,08/12/2022,290.84
"Communities, Customer & Commercial Services",Sport & Leisure,Supplies & Services,Provisions,BIKOLD,08/12/2022,246.25
"Communities, Customer & Commercial Services",Sport & Leisure,Supplies & Services,Provisions,BIKOLD,08/12/2022,386.59
"Communities, Customer & Commercial Services",Sport & Leisure,Supplies & Services,Provisions,BIKOLD,08/12/2022,107.13
"Communities, Customer & Commercial Services",Sport & Leisure,Supplies & Services,Provisions,BIKOLD,08/12/2022,174.00
"Communities, Customer & Commercial Services",Sport & Leisure,Supplies & Services,Provisions,BIKOLD,08/12/2022,129.77
"Communities, Customer & Commercial Services",Sport & Leisure,Supplies & Services,Provisions,J S Catering Butchers,06/12/2022,102.97
"Communities, Customer & Commercial Services",Sport & Leisure,Supplies & Services,Provisions,BIKOLD,08/12/2022,179.23
"Communities, Customer & Commercial Services",Sport & Leisure,Supplies & Services,Provisions,BIKOLD,08/12/2022,288.38
"Communities, Customer & Commercial Services",Sport & Leisure,Supplies & Services,Provisions,BIKOLD,08/12/2022,226.29
"Communities, Customer & Commercial Services",Sport & Leisure,Supplies & Services,Provisions,BIKOLD,08/12/2022,385.60
"Communities, Customer & Commercial Services",Sport & Leisure,Supplies & Services,Provisions,BIKOLD,08/12/2022,182.29
"Communities, Customer & Commercial Services",Sport & Leisure,Supplies & Services,Provisions,BIKOLD,08/12/2022,157.76
"Communities, Customer & Commercial Services",Sport & Leisure,Supplies & Services,Provisions,BIKOLD,08/12/2022,276.82
"Communities, Customer & Commercial Services",Sport & Leisure,Supplies & Services,Provisions,BIKOLD,08/12/2022,412.08
"Communities, Customer & Commercial Services",Sport & Leisure,Supplies & Services,Provisions,BIKOLD,08/12/2022,382.21
"Communities, Customer & Commercial Services",Sport & Leisure,Supplies & Services,Provisions,BIKOLD,08/12/2022,171.84
"Communities, Customer & Commercial Services",Sport & Leisure,Supplies & Services,Provisions,BIKOLD,08/12/2022,107.31
"Communities, Customer & Commercial Services",Sport & Leisure,Supplies & Services,Provisions,BIKOLD,08/12/2022,650.61
"Communities, Customer & Commercial Services",Sport & Leisure,Supplies & Services,Provisions,BIKOLD,08/12/2022,148.49
"Communities, Customer & Commercial Services",Sport & Leisure,Supplies & Services,Provisions,BIKOLD,08/12/2022,146.22
"Communities, Customer & Commercial Services",Sport & Leisure,Supplies & Services,Provisions,J S Catering Butchers,06/12/2022,221.02
"Communities, Customer & Commercial Services",Sport & Leisure,Supplies & Services,Provisions,J S Catering Butchers,06/12/2022,178.10
"Communities, Customer & Commercial Services",Sport & Leisure,Supplies & Services,Provisions,J S Catering Butchers,06/12/2022,118.57
"Communities, Customer & Commercial Services",Sport & Leisure,Supplies & Services,Provisions,J S Catering Butchers,06/12/2022,122.21
"Communities, Customer & Commercial Services",Sport & Leisure,Supplies & Services,Provisions,J S Catering Butchers,06/12/2022,103.10
"Communities, Customer & Commercial Services",Sport & Leisure,Supplies & Services,Provisions,J S Catering Butchers,06/12/2022,130.86
"Communities, Customer & Commercial Services",Sport & Leisure,Supplies & Services,Provisions,J S Catering Butchers,06/12/2022,109.45
"Communities, Customer & Commercial Services",Sport & Leisure,Supplies & Services,Provisions,BIKOLD,08/12/2022,410.80
"Communities, Customer & Commercial Services",Sport & Leisure,Supplies & Services,Provisions,BIKOLD,08/12/2022,125.94
"Communities, Customer & Commercial Services",Sport & Leisure,Supplies & Services,Provisions,BIKOLD,08/12/2022,373.53
"Communities, Customer & Commercial Services",Sport & Leisure,Supplies & Services,Provisions,BIKOLD,08/12/2022,180.52
"Communities, Customer & Commercial Services",Sport & Leisure,Supplies & Services,Provisions,BIKOLD,08/12/2022,180.02
"Communities, Customer & Commercial Services",Sport & Leisure,Supplies & Services,Provisions,BIKOLD,08/12/2022,168.78
"Communities, Customer & Commercial Services",Sport & Leisure,Supplies & Services,Provisions,BIKOLD,08/12/2022,123.31
"Communities, Customer & Commercial Services",Sport & Leisure,Supplies & Services,Provisions,BIKOLD,08/12/2022,418.27
"Communities, Customer & Commercial Services",Sport & Leisure,Supplies & Services,Provisions,BIKOLD,08/12/2022,131.55
"Communities, Customer & Commercial Services",Sport & Leisure,Supplies & Services,Provisions,BIKOLD,08/12/2022,152.70
"Communities, Customer & Commercial Services",Sport & Leisure,Supplies & Services,Provisions,BIKOLD,08/12/2022,105.59
"Communities, Customer & Commercial Services",Sport & Leisure,Supplies & Services,Provisions,BIKOLD,08/12/2022,236.62
"Communities, Customer & Commercial Services",Sport & Leisure,Supplies & Services,Provisions,BIKOLD,08/12/2022,328.35
"Communities, Customer & Commercial Services",Sport & Leisure,Supplies & Services,Provisions,BIKOLD,08/12/2022,102.91
"Communities, Customer & Commercial Services",Sport & Leisure,Supplies & Services,Provisions,BIKOLD,08/12/2022,171.85
"Communities, Customer & Commercial Services",Sport & Leisure,Supplies & Services,Provisions,BIKOLD,08/12/2022,133.79
"Communities, Customer & Commercial Services",Sport & Leisure,Supplies & Services,Provisions,BIKOLD,08/12/2022,352.41
"Communities, Customer & Commercial Services",Sport & Leisure,Supplies & Services,Provisions,BIKOLD,08/12/2022,418.85
"Communities, Customer & Commercial Services",Sport & Leisure,Supplies & Services,Provisions,BIKOLD,08/12/2022,189.68
"Communities, Customer & Commercial Services",Sport & Leisure,Supplies & Services,Provisions,BIKOLD,08/12/2022,219.44
"Communities, Customer & Commercial Services",Sport & Leisure,Supplies & Services,Provisions,BIKOLD,08/12/2022,160.10
"Communities, Customer & Commercial Services",Sport & Leisure,Supplies & Services,Provisions,BIKOLD,08/12/2022,254.71
"Communities, Customer & Commercial Services",Sport & Leisure,Supplies & Services,Provisions,BIKOLD,08/12/2022,137.53
"Communities, Customer & Commercial Services",Sport & Leisure,Supplies & Services,Provisions,BIKOLD,08/12/2022,253.56
"Communities, Customer & Commercial Services",Sport & Leisure,Supplies & Services,Provisions,BIKOLD,08/12/2022,124.59
"Communities, Customer & Commercial Services",Sport & Leisure,Supplies & Services,Provisions,BIKOLD,08/12/2022,181.44
"Communities, Customer & Commercial Services",Sport & Leisure,Supplies & Services,Provisions,BIKOLD,08/12/2022,115.12
"Communities, Customer & Commercial Services",Sport & Leisure,Supplies & Services,Provisions,BIKOLD,08/12/2022,115.56
"Communities, Customer & Commercial Services",Sport & Leisure,Supplies & Services,Provisions,BIKOLD,08/12/2022,418.45
"Communities, Customer & Commercial Services",Sport & Leisure,Supplies & Services,Provisions,BIKOLD,08/12/2022,633.65
"Communities, Customer & Commercial Services",Sport & Leisure,Supplies & Services,Provisions,BIKOLD,08/12/2022,159.67
"Communities, Customer & Commercial Services",Sport & Leisure,Supplies & Services,Provisions,BIKOLD,08/12/2022,140.89
"Communities, Customer & Commercial Services",Sport & Leisure,Supplies & Services,Provisions,BIKOLD,08/12/2022,146.21
"Communities, Customer & Commercial Services",Sport & Leisure,Supplies & Services,Provisions,BIKOLD,08/12/2022,140.44
"Communities, Customer & Commercial Services",Sport & Leisure,Supplies & Services,Provisions,BIKOLD,08/12/2022,116.63
"Communities, Customer & Commercial Services",Sport & Leisure,Supplies & Services,Provisions,BIKOLD,08/12/2022,142.35
"Communities, Customer & Commercial Services",Sport & Leisure,Supplies & Services,Provisions,BIKOLD,08/12/2022,330.95
"Communities, Customer & Commercial Services",Sport & Leisure,Supplies & Services,Provisions,BIKOLD,08/12/2022,423.81
"Communities, Customer & Commercial Services",Sport & Leisure,Supplies & Services,Provisions,BIKOLD,08/12/2022,503.26
"Communities, Customer & Commercial Services",Sport & Leisure,Supplies & Services,Provisions,BIKOLD,08/12/2022,436.16
"Communities, Customer & Commercial Services",Sport & Leisure,Supplies & Services,Provisions,BIKOLD,08/12/2022,191.42
"Communities, Customer & Commercial Services",Sport & Leisure,Supplies & Services,Provisions,BIKOLD,08/12/2022,149.69
"Communities, Customer & Commercial Services",Sport & Leisure,Supplies & Services,Provisions,J S Catering Butchers,06/12/2022,112.00
"Communities, Customer & Commercial Services",Sport & Leisure,Supplies & Services,Provisions,J S Catering Butchers,06/12/2022,103.50
"Communities, Customer & Commercial Services",Sport & Leisure,Supplies & Services,Provisions,J S Catering Butchers,06/12/2022,102.38
"Communities, Customer & Commercial Services",Sport & Leisure,Supplies & Services,Provisions,J S Catering Butchers,06/12/2022,230.00
"Communities, Customer & Commercial Services",Sport & Leisure,Supplies & Services,Provisions,J S Catering Butchers,06/12/2022,147.87
"Communities, Customer & Commercial Services",Sport & Leisure,Supplies & Services,Provisions,J S Catering Butchers,06/12/2022,154.40
"Communities, Customer & Commercial Services",Sport & Leisure,Supplies & Services,Provisions,R & COMPANY,20/12/2022,121.78
"Communities, Customer & Commercial Services",Sport & Leisure,Supplies & Services,Provisions,J S Catering Butchers,06/12/2022,137.03
"Communities, Customer & Commercial Services",Sport & Leisure,Supplies & Services,Provisions,J S Catering Butchers,06/12/2022,112.87
"Communities, Customer & Commercial Services",Sport & Leisure,Supplies & Services,Provisions,J S Catering Butchers,06/12/2022,110.31
"Communities, Customer & Commercial Services",Sport & Leisure,Supplies & Services,Provisions,J S Catering Butchers,06/12/2022,182.32
"Communities, Customer & Commercial Services",Sport & Leisure,Supplies & Services,Provisions,R & COMPANY,20/12/2022,249.61
"Communities, Customer & Commercial Services",Sport & Leisure,Supplies & Services,Provisions,R & COMPANY,20/12/2022,135.10
"Communities, Customer & Commercial Services",Sport & Leisure,Supplies & Services,Provisions,R & COMPANY,20/12/2022,106.47
"Communities, Customer & Commercial Services",Sport & Leisure,Supplies & Services,Provisions,J S Catering Butchers,06/12/2022,128.80
"Communities, Customer & Commercial Services",Sport & Leisure,Supplies & Services,Provisions,J S Catering Butchers,06/12/2022,110.40
"Communities, Customer & Commercial Services",Sport & Leisure,Supplies & Services,Provisions,J S Catering Butchers,06/12/2022,102.77
"Communities, Customer & Commercial Services",Sport & Leisure,Supplies & Services,Provisions,J S Catering Butchers,06/12/2022,187.05
"Communities, Customer & Commercial Services",Sport & Leisure,Supplies & Services,Provisions,R& COMPANY,20/12/2022,126.67
"Communities, Customer & Commercial Services",Sport & Leisure,Supplies & Services,Provisions,BIKOLD,08/12/2022,290.22
"Communities, Customer & Commercial Services",Sport & Leisure,Supplies & Services,Provisions,BIKOLD,08/12/2022,203.92
"Communities, Customer & Commercial Services",Sport & Leisure,Supplies & Services,Provisions,BIKOLD,08/12/2022,397.14
"Communities, Customer & Commercial Services",Sport & Leisure,Supplies & Services,Provisions,BIKOLD,08/12/2022,159.61
"Communities, Customer & Commercial Services",Sport & Leisure,Supplies & Services,Provisions,BIKOLD,08/12/2022,298.50
"Communities, Customer & Commercial Services",Sport & Leisure,Supplies & Services,Provisions,BIKOLD,08/12/2022,249.84
"Communities, Customer & Commercial Services",Sport & Leisure,Supplies & Services,Provisions,BIKOLD,08/12/2022,228.50
"Communities, Customer & Commercial Services",Sport & Leisure,Supplies & Services,Provisions,BIKOLD,08/12/2022,117.15
"Communities, Customer & Commercial Services",Sport & Leisure,Supplies & Services,Provisions,BIKOLD,08/12/2022,146.86
"Communities, Customer & Commercial Services",Sport & Leisure,Supplies & Services,Provisions,R & COMPANY,20/12/2022,111.03
"Communities, Customer & Commercial Services",Sport & Leisure,Supplies & Services,Provisions,R & COMPANY,20/12/2022,109.94
"Communities, Customer & Commercial Services",Sport & Leisure,Supplies & Services,Provisions,R & COMPANY,20/12/2022,129.00
"Communities, Customer & Commercial Services",Sport & Leisure,Supplies & Services,Provisions,R & COMPANY,20/12/2022,133.15
"Communities, Customer & Commercial Services",Sport & Leisure,Supplies & Services,Provisions,J S Catering Butchers,15/12/2022,124.00
"Communities, Customer & Commercial Services",Sport & Leisure,Supplies & Services,Provisions,J S Catering Butchers,15/12/2022,172.45
"Communities, Customer & Commercial Services",Sport & Leisure,Supplies & Services,Provisions,J S Catering Butchers,15/12/2022,189.12
"Communities, Customer & Commercial Services",Sport & Leisure,Supplies & Services,Provisions,J S Catering Butchers,15/12/2022,112.00
"Communities, Customer & Commercial Services",Sport & Leisure,Supplies & Services,Provisions,J S Catering Butchers,15/12/2022,332.66
"Communities, Customer & Commercial Services",Sport & Leisure,Supplies & Services,Provisions,J S Catering Butchers,15/12/2022,103.50
"Communities, Customer & Commercial Services",Sport & Leisure,Supplies & Services,Provisions,J S Catering Butchers,15/12/2022,141.96
"Communities, Customer & Commercial Services",Sport & Leisure,Supplies & Services,Provisions,J S Catering Butchers,15/12/2022,103.26
"Communities, Customer & Commercial Services",Sport & Leisure,Supplies & Services,Provisions,J S Catering Butchers,15/12/2022,102.50
"Communities, Customer & Commercial Services",Sport & Leisure,Supplies & Services,Provisions,R & COMPANY,06/12/2022,177.85
"Communities, Customer & Commercial Services",Sport & Leisure,Supplies & Services,Provisions,R & COMPANY,06/12/2022,129.85
"Communities, Customer & Commercial Services",Sport & Leisure,Supplies & Services,Provisions,R & COMPANY,06/12/2022,165.32
"Communities, Customer & Commercial Services",Sport & Leisure,Supplies & Services,Provisions,J S Catering Butchers,15/12/2022,111.30
"Communities, Customer & Commercial Services",Sport & Leisure,Supplies & Services,Provisions,J S Catering Butchers,15/12/2022,269.53
"Communities, Customer & Commercial Services",Sport & Leisure,Supplies & Services,Provisions,J S Catering Butchers,15/12/2022,239.99
"Communities, Customer & Commercial Services",Sport & Leisure,Supplies & Services,Provisions,On A Roll,19/12/2022,282.60
"Communities, Customer & Commercial Services",Sport & Leisure,Supplies & Services,Provisions,R & COMPANY,06/12/2022,102.20
"Communities, Customer & Commercial Services",Sport & Leisure,Supplies & Services,Provisions,R & COMPANY,06/12/2022,350.39
"Communities, Customer & Commercial Services",Sport & Leisure,Supplies & Services,Provisions,R & COMPANY,06/12/2022,175.84
"Communities, Customer & Commercial Services",Sport & Leisure,Supplies & Services,Provisions,R & COMPANY,06/12/2022,210.83
"Communities, Customer & Commercial Services",Sport & Leisure,Supplies & Services,Provisions,R & COMPANY,20/12/2022,195.66
"Communities, Customer & Commercial Services",Sport & Leisure,Supplies & Services,Provisions,J S Catering Butchers,05/12/2022,297.60
"Communities, Customer & Commercial Services",Sport & Leisure,Supplies & Services,Provisions,J S Catering Butchers,05/12/2022,302.75
"Communities, Customer & Commercial Services",Sport & Leisure,Supplies & Services,Provisions,J S Catering Butchers,05/12/2022,120.05
"Communities, Customer & Commercial Services",Sport & Leisure,Supplies & Services,Provisions,J S Catering Butchers,05/12/2022,112.00
"Communities, Customer & Commercial Services",Sport & Leisure,Supplies & Services,Provisions,J S Catering Butchers,08/12/2022,106.38
"Communities, Customer & Commercial Services",Sport & Leisure,Supplies & Services,Provisions,J S Catering Butchers,08/12/2022,137.99
"Communities, Customer & Commercial Services",Sport & Leisure,Supplies & Services,Provisions,J S Catering Butchers,08/12/2022,271.00
"Communities, Customer & Commercial Services",Sport & Leisure,Supplies & Services,Provisions,J S Catering Butchers,08/12/2022,178.75
"Communities, Customer & Commercial Services",Sport & Leisure,Supplies & Services,Provisions,J S Catering Butchers,08/12/2022,122.39
"Communities, Customer & Commercial Services",Sport & Leisure,Supplies & Services,Provisions,On A Roll,19/12/2022,248.40
"Communities, Customer & Commercial Services",Sport & Leisure,Supplies & Services,Provisions,R & COMPANY,06/12/2022,126.64
"Communities, Customer & Commercial Services",Sport & Leisure,Supplies & Services,Provisions,R & COMPANY,06/12/2022,139.27
"Communities, Customer & Commercial Services",Sport & Leisure,Supplies & Services,Provisions,BIKOLD,15/12/2022,222.17
"Communities, Customer & Commercial Services",Sport & Leisure,Supplies & Services,Provisions,BIKOLD,15/12/2022,153.43
"Communities, Customer & Commercial Services",Sport & Leisure,Supplies & Services,Provisions,BIKOLD,15/12/2022,135.86
"Communities, Customer & Commercial Services",Sport & Leisure,Supplies & Services,Provisions,BIKOLD,15/12/2022,237.35
"Communities, Customer & Commercial Services",Sport & Leisure,Supplies & Services,Provisions,BIKOLD,15/12/2022,178.09
"Communities, Customer & Commercial Services",Sport & Leisure,Supplies & Services,Provisions,J S Catering Butchers,06/12/2022,147.20
"Communities, Customer & Commercial Services",Sport & Leisure,Supplies & Services,Provisions,J S Catering Butchers,06/12/2022,105.07
"Communities, Customer & Commercial Services",Sport & Leisure,Supplies & Services,Provisions,J S Catering Butchers,06/12/2022,134.43
"Communities, Customer & Commercial Services",Sport & Leisure,Supplies & Services,Provisions,R & COMPANY,06/12/2022,103.96
"Communities, Customer & Commercial Services",Sport & Leisure,Supplies & Services,Provisions,J S Catering Butchers,06/12/2022,101.60
"Communities, Customer & Commercial Services",Sport & Leisure,Supplies & Services,Provisions,J S Catering Butchers,06/12/2022,306.50
"Communities, Customer & Commercial Services",Sport & Leisure,Supplies & Services,Provisions,R & COMPANY,06/12/2022,112.59
"Communities, Customer & Commercial Services",Sport & Leisure,Supplies & Services,Provisions,R & COMPANY,06/12/2022,122.75
"Communities, Customer & Commercial Services",Sport & Leisure,Supplies & Services,Provisions,R & COMPANY,20/12/2022,111.13
"Communities, Customer & Commercial Services",Sport & Leisure,Supplies & Services,Provisions,R & COMPANY,20/12/2022,108.58
"Communities, Customer & Commercial Services",Sport & Leisure,Supplies & Services,Provisions,R & COMPANY,06/12/2022,105.11
"Communities, Customer & Commercial Services",Sport & Leisure,Supplies & Services,Provisions,R & COMPANY,06/12/2022,112.09
"Communities, Customer & Commercial Services",Sport & Leisure,Supplies & Services,Provisions,BIKOLD,15/12/2022,218.92
"Communities, Customer & Commercial Services",Sport & Leisure,Supplies & Services,Provisions,BIKOLD,15/12/2022,127.60
"Communities, Customer & Commercial Services",Sport & Leisure,Supplies & Services,Provisions,R & COMPANY,06/12/2022,103.36
"Communities, Customer & Commercial Services",Sport & Leisure,Supplies & Services,Provisions,R & COMPANY,06/12/2022,110.85
"Communities, Customer & Commercial Services",Sport & Leisure,Supplies & Services,Provisions,R & COMPANY,06/12/2022,139.77
"Communities, Customer & Commercial Services",Sport & Leisure,Supplies & Services,Provisions,R & COMPANY,06/12/2022,100.33
"Communities, Customer & Commercial Services",Sport & Leisure,Supplies & Services,Provisions,J S Catering Butchers,06/12/2022,101.18
"Communities, Customer & Commercial Services",Sport & Leisure,Supplies & Services,Provisions,J S Catering Butchers,06/12/2022,282.25
"Communities, Customer & Commercial Services",Sport & Leisure,Supplies & Services,Provisions,J S Catering Butchers,06/12/2022,146.75
"Communities, Customer & Commercial Services",Sport & Leisure,Supplies & Services,Provisions,BIKOLD,15/12/2022,368.83
"Communities, Customer & Commercial Services",Sport & Leisure,Supplies & Services,Provisions,BIKOLD,15/12/2022,228.82
"Communities, Customer & Commercial Services",Sport & Leisure,Supplies & Services,Provisions,BIKOLD,15/12/2022,112.73
"Communities, Customer & Commercial Services",Sport & Leisure,Supplies & Services,Provisions,BIKOLD,15/12/2022,370.28
"Communities, Customer & Commercial Services",Sport & Leisure,Supplies & Services,Provisions,BIKOLD,15/12/2022,-356.29
"Communities, Customer & Commercial Services",Sport & Leisure,Supplies & Services,Provisions,BIKOLD,15/12/2022,416.67
"Communities, Customer & Commercial Services",Sport & Leisure,Supplies & Services,Provisions,BIKOLD,15/12/2022,135.59
"Communities, Customer & Commercial Services",Sport & Leisure,Supplies & Services,Provisions,J S Catering Butchers,06/12/2022,249.75
"Communities, Customer & Commercial Services",Sport & Leisure,Supplies & Services,Provisions,J S Catering Butchers,06/12/2022,102.00
"Communities, Customer & Commercial Services",Sport & Leisure,Supplies & Services,Provisions,J S Catering Butchers,06/12/2022,213.00
"Communities, Customer & Commercial Services",Sport & Leisure,Supplies & Services,Provisions,J S Catering Butchers,06/12/2022,147.20
"Communities, Customer & Commercial Services",Sport & Leisure,Supplies & Services,Provisions,J S Catering Butchers,06/12/2022,172.45
"Communities, Customer & Commercial Services",Sport & Leisure,Supplies & Services,Provisions,J S Catering Butchers,06/12/2022,136.00
"Communities, Customer & Commercial Services",Sport & Leisure,Supplies & Services,Provisions,J S Catering Butchers,06/12/2022,120.50
"Communities, Customer & Commercial Services",Sport & Leisure,Supplies & Services,Provisions,J S Catering Butchers,06/12/2022,107.72
"Communities, Customer & Commercial Services",Sport & Leisure,Supplies & Services,Provisions,J S Catering Butchers,06/12/2022,104.55
"Communities, Customer & Commercial Services",Sport & Leisure,Supplies & Services,Provisions,J S Catering Butchers,06/12/2022,299.25
"Communities, Customer & Commercial Services",Sport & Leisure,Supplies & Services,Provisions,BIKOLD,15/12/2022,622.86
"Communities, Customer & Commercial Services",Sport & Leisure,Supplies & Services,Provisions,BIKOLD,15/12/2022,368.86
"Communities, Customer & Commercial Services",Sport & Leisure,Supplies & Services,Provisions,BIKOLD,15/12/2022,283.61
"Communities, Customer & Commercial Services",Sport & Leisure,Supplies & Services,Provisions,BIKOLD,15/12/2022,100.45
"Communities, Customer & Commercial Services",Sport & Leisure,Supplies & Services,Provisions,BIKOLD,15/12/2022,612.36
"Communities, Customer & Commercial Services",Sport & Leisure,Supplies & Services,Provisions,BIKOLD,15/12/2022,231.64
"Communities, Customer & Commercial Services",Sport & Leisure,Supplies & Services,Provisions,BIKOLD,15/12/2022,103.17
"Communities, Customer & Commercial Services",Sport & Leisure,Supplies & Services,Provisions,BIKOLD,15/12/2022,362.47
"Communities, Customer & Commercial Services",Sport & Leisure,Supplies & Services,Provisions,BIKOLD,15/12/2022,124.24
"Communities, Customer & Commercial Services",Sport & Leisure,Supplies & Services,Provisions,BIKOLD,15/12/2022,208.55
"Communities, Customer & Commercial Services",Sport & Leisure,Supplies & Services,Provisions,BIKOLD,15/12/2022,212.21
"Communities, Customer & Commercial Services",Sport & Leisure,Supplies & Services,Provisions,BIKOLD,15/12/2022,265.02
"Communities, Customer & Commercial Services",Sport & Leisure,Supplies & Services,Provisions,BIKOLD,15/12/2022,177.28
"Communities, Customer & Commercial Services",Sport & Leisure,Supplies & Services,Provisions,J S Catering Butchers,08/12/2022,222.20
"Communities, Customer & Commercial Services",Sport & Leisure,Supplies & Services,Provisions,BIKOLD,15/12/2022,137.14
"Communities, Customer & Commercial Services",Sport & Leisure,Supplies & Services,Provisions,BIKOLD,15/12/2022,174.91
"Communities, Customer & Commercial Services",Sport & Leisure,Supplies & Services,Provisions,BIKOLD,07/12/2022,683.33
"Communities, Customer & Commercial Services",Sport & Leisure,Supplies & Services,Provisions,BIKOLD,07/12/2022,189.77
"Communities, Customer & Commercial Services",Sport & Leisure,Supplies & Services,Provisions,BIKOLD,07/12/2022,137.04
"Communities, Customer & Commercial Services",Sport & Leisure,Supplies & Services,Provisions,BIKOLD,07/12/2022,176.03
"Communities, Customer & Commercial Services",Sport & Leisure,Supplies & Services,Provisions,BIKOLD,07/12/2022,207.11
"Communities, Customer & Commercial Services",Sport & Leisure,Supplies & Services,Provisions,BIKOLD,07/12/2022,160.05
"Communities, Customer & Commercial Services",Sport & Leisure,Supplies & Services,Provisions,BIKOLD,07/12/2022,198.00
"Communities, Customer & Commercial Services",Sport & Leisure,Supplies & Services,Provisions,BIKOLD,07/12/2022,113.41
"Communities, Customer & Commercial Services",Sport & Leisure,Supplies & Services,Provisions,BIKOLD,07/12/2022,189.20
"Communities, Customer & Commercial Services",Sport & Leisure,Supplies & Services,Provisions,BIKOLD,07/12/2022,159.45
"Communities, Customer & Commercial Services",Sport & Leisure,Supplies & Services,Provisions,BIKOLD,07/12/2022,168.77
"Communities, Customer & Commercial Services",Sport & Leisure,Supplies & Services,Provisions,J S Catering Butchers,08/12/2022,115.85
"Communities, Customer & Commercial Services",Sport & Leisure,Supplies & Services,Provisions,J S Catering Butchers,08/12/2022,128.80
"Communities, Customer & Commercial Services",Sport & Leisure,Supplies & Services,Provisions,J S Catering Butchers,08/12/2022,-222.20
"Communities, Customer & Commercial Services",Sport & Leisure,Supplies & Services,Provisions,BIKOLD,15/12/2022,608.42
"Communities, Customer & Commercial Services",Sport & Leisure,Supplies & Services,Provisions,BIKOLD,15/12/2022,316.69
"Communities, Customer & Commercial Services",Sport & Leisure,Supplies & Services,Provisions,BIKOLD,15/12/2022,136.67
"Communities, Customer & Commercial Services",Sport & Leisure,Supplies & Services,Provisions,BIKOLD,15/12/2022,792.27
"Communities, Customer & Commercial Services",Sport & Leisure,Supplies & Services,Provisions,BIKOLD,15/12/2022,194.44
"Communities, Customer & Commercial Services",Sport & Leisure,Supplies & Services,Provisions,BIKOLD,15/12/2022,198.32
"Communities, Customer & Commercial Services",Sport & Leisure,Supplies & Services,Provisions,BIKOLD,15/12/2022,276.49
"Communities, Customer & Commercial Services",Sport & Leisure,Supplies & Services,Provisions,BIKOLD,15/12/2022,387.33
"Communities, Customer & Commercial Services",Sport & Leisure,Supplies & Services,Provisions,BIKOLD,15/12/2022,162.71
"Communities, Customer & Commercial Services",Sport & Leisure,Supplies & Services,Provisions,BIKOLD,15/12/2022,126.62
"Communities, Customer & Commercial Services",Sport & Leisure,Supplies & Services,Provisions,BIKOLD,15/12/2022,124.83
"Communities, Customer & Commercial Services",Sport & Leisure,Supplies & Services,Provisions,BIKOLD,15/12/2022,313.21
"Communities, Customer & Commercial Services",Sport & Leisure,Supplies & Services,Provisions,BIKOLD,15/12/2022,191.10
"Communities, Customer & Commercial Services",Sport & Leisure,Supplies & Services,Provisions,BIKOLD,07/12/2022,148.99
"Communities, Customer & Commercial Services",Sport & Leisure,Supplies & Services,Provisions,BIKOLD,15/12/2022,132.61
"Communities, Customer & Commercial Services",Sport & Leisure,Supplies & Services,Provisions,BIKOLD,15/12/2022,117.30
"Communities, Customer & Commercial Services",Sport & Leisure,Supplies & Services,Provisions,BIKOLD,15/12/2022,173.61
"Communities, Customer & Commercial Services",Sport & Leisure,Supplies & Services,Provisions,BIKOLD,15/12/2022,347.71
"Communities, Customer & Commercial Services",Sport & Leisure,Supplies & Services,Provisions,BIKOLD,07/12/2022,295.43
"Communities, Customer & Commercial Services",Sport & Leisure,Supplies & Services,Provisions,BIKOLD,07/12/2022,205.40
"Communities, Customer & Commercial Services",Sport & Leisure,Supplies & Services,Provisions,BIKOLD,07/12/2022,141.58
"Communities, Customer & Commercial Services",Sport & Leisure,Supplies & Services,Provisions,BIKOLD,07/12/2022,184.13
"Communities, Customer & Commercial Services",Sport & Leisure,Supplies & Services,Provisions,BIKOLD,07/12/2022,184.49
"Communities, Customer & Commercial Services",Sport & Leisure,Supplies & Services,Provisions,BIKOLD,07/12/2022,154.07
"Communities, Customer & Commercial Services",Sport & Leisure,Supplies & Services,Provisions,BIKOLD,07/12/2022,121.40
"Communities, Customer & Commercial Services",Sport & Leisure,Supplies & Services,Provisions,BIKOLD,07/12/2022,124.45
"Communities, Customer & Commercial Services",Sport & Leisure,Supplies & Services,Provisions,BIKOLD,07/12/2022,167.17
"Communities, Customer & Commercial Services",Sport & Leisure,Supplies & Services,Provisions,BIKOLD,07/12/2022,335.32
"Communities, Customer & Commercial Services",Sport & Leisure,Supplies & Services,Provisions,BIKOLD,15/12/2022,138.57
"Communities, Customer & Commercial Services",Sport & Leisure,Supplies & Services,Provisions,BIKOLD,15/12/2022,304.29
"Communities, Customer & Commercial Services",Sport & Leisure,Supplies & Services,Provisions,BIKOLD,15/12/2022,590.97
"Communities, Customer & Commercial Services",Sport & Leisure,Supplies & Services,Provisions,BIKOLD,15/12/2022,223.56
"Communities, Customer & Commercial Services",Sport & Leisure,Supplies & Services,Provisions,BIKOLD,15/12/2022,401.85
"Communities, Customer & Commercial Services",Sport & Leisure,Supplies & Services,Provisions,BIKOLD,15/12/2022,267.14
"Communities, Customer & Commercial Services",Sport & Leisure,Supplies & Services,Provisions,BIKOLD,07/12/2022,230.41
"Communities, Customer & Commercial Services",Sport & Leisure,Supplies & Services,Provisions,BIKOLD,15/12/2022,255.13
"Communities, Customer & Commercial Services",Sport & Leisure,Supplies & Services,Provisions,BIKOLD,15/12/2022,306.85
"Communities, Customer & Commercial Services",Sport & Leisure,Supplies & Services,Provisions,BIKOLD,15/12/2022,111.91
"Communities, Customer & Commercial Services",Sport & Leisure,Supplies & Services,Provisions,BIKOLD,15/12/2022,146.31
"Communities, Customer & Commercial Services",Sport & Leisure,Supplies & Services,Provisions,BIKOLD,15/12/2022,219.03
"Communities, Customer & Commercial Services",Sport & Leisure,Supplies & Services,Provisions,BIKOLD,15/12/2022,139.93
"Communities, Customer & Commercial Services",Sport & Leisure,Supplies & Services,Provisions,BIKOLD,15/12/2022,568.84
"Communities, Customer & Commercial Services",Sport & Leisure,Supplies & Services,Provisions,BIKOLD,15/12/2022,249.38
"Communities, Customer & Commercial Services",Sport & Leisure,Supplies & Services,Provisions,BIKOLD,15/12/2022,339.00
"Communities, Customer & Commercial Services",Sport & Leisure,Supplies & Services,Provisions,BIKOLD,15/12/2022,102.09
"Communities, Customer & Commercial Services",Sport & Leisure,Supplies & Services,Provisions,BIKOLD,07/12/2022,137.67
"Communities, Customer & Commercial Services",Sport & Leisure,Supplies & Services,Provisions,BIKOLD,07/12/2022,249.82
"Communities, Customer & Commercial Services",Sport & Leisure,Supplies & Services,Provisions,BIKOLD,07/12/2022,262.70
"Communities, Customer & Commercial Services",Sport & Leisure,Supplies & Services,Provisions,BIKOLD,07/12/2022,280.22
"Communities, Customer & Commercial Services",Sport & Leisure,Supplies & Services,Provisions,BIKOLD,07/12/2022,237.71
"Communities, Customer & Commercial Services",Sport & Leisure,Supplies & Services,Provisions,BIKOLD,07/12/2022,100.70
"Communities, Customer & Commercial Services",Sport & Leisure,Supplies & Services,Provisions,BIKOLD,07/12/2022,102.99
"Communities, Customer & Commercial Services",Sport & Leisure,Supplies & Services,Provisions,BIKOLD,15/12/2022,204.63
"Communities, Customer & Commercial Services",Sport & Leisure,Supplies & Services,Provisions,BIKOLD,15/12/2022,233.91
"Communities, Customer & Commercial Services",Sport & Leisure,Supplies & Services,Provisions,BIKOLD,15/12/2022,289.09
"Communities, Customer & Commercial Services",Sport & Leisure,Supplies & Services,Provisions,BIKOLD,15/12/2022,237.69
"Communities, Customer & Commercial Services",Sport & Leisure,Supplies & Services,Provisions,BIKOLD,15/12/2022,121.61
"Communities, Customer & Commercial Services",Sport & Leisure,Supplies & Services,Provisions,BIKOLD,15/12/2022,202.68
"Communities, Customer & Commercial Services",Sport & Leisure,Supplies & Services,Provisions,BIKOLD,15/12/2022,158.96
"Communities, Customer & Commercial Services",Sport & Leisure,Supplies & Services,Provisions,BIKOLD,15/12/2022,388.24
"Communities, Customer & Commercial Services",Sport & Leisure,Supplies & Services,Provisions,BIKOLD,15/12/2022,154.68
"Communities, Customer & Commercial Services",Sport & Leisure,Supplies & Services,Provisions,BIKOLD,15/12/2022,214.91
"Communities, Customer & Commercial Services",Sport & Leisure,Supplies & Services,Provisions,BIKOLD,15/12/2022,209.42
"Communities, Customer & Commercial Services",Sport & Leisure,Supplies & Services,Provisions,BIKOLD,15/12/2022,244.59
"Communities, Customer & Commercial Services",Sport & Leisure,Supplies & Services,Provisions,BIKOLD,15/12/2022,235.83
"Communities, Customer & Commercial Services",Sport & Leisure,Supplies & Services,Provisions,BIKOLD,15/12/2022,406.59
"Communities, Customer & Commercial Services",Sport & Leisure,Supplies & Services,Provisions,BIKOLD,15/12/2022,216.73
"Communities, Customer & Commercial Services",Sport & Leisure,Supplies & Services,Provisions,BIKOLD,15/12/2022,190.68
"Communities, Customer & Commercial Services",Sport & Leisure,Supplies & Services,Provisions,BIKOLD,15/12/2022,233.27
"Communities, Customer & Commercial Services",Sport & Leisure,Supplies & Services,Provisions,BIKOLD,15/12/2022,177.44
"Communities, Customer & Commercial Services",Sport & Leisure,Supplies & Services,Provisions,BIKOLD,15/12/2022,162.72
"Communities, Customer & Commercial Services",Sport & Leisure,Supplies & Services,Provisions,BIKOLD,15/12/2022,360.60
"Communities, Customer & Commercial Services",Sport & Leisure,Supplies & Services,Provisions,BIKOLD,15/12/2022,309.81
"Communities, Customer & Commercial Services",Sport & Leisure,Supplies & Services,Provisions,BIKOLD,15/12/2022,229.41
"Communities, Customer & Commercial Services",Sport & Leisure,Supplies & Services,Provisions,BIKOLD,15/12/2022,108.22
"Communities, Customer & Commercial Services",Sport & Leisure,Supplies & Services,Provisions,BIKOLD,15/12/2022,632.08
"Communities, Customer & Commercial Services",Sport & Leisure,Supplies & Services,Provisions,BIKOLD,15/12/2022,146.58
"Communities, Customer & Commercial Services",Sport & Leisure,Supplies & Services,Provisions,BIKOLD,15/12/2022,100.96
"Communities, Customer & Commercial Services",Sport & Leisure,Supplies & Services,Provisions,BIKOLD,15/12/2022,124.79
"Communities, Customer & Commercial Services",Sport & Leisure,Supplies & Services,Provisions,BIKOLD,15/12/2022,150.56
"Communities, Customer & Commercial Services",Sport & Leisure,Supplies & Services,Provisions,BIKOLD,15/12/2022,121.06
"Communities, Customer & Commercial Services",Sport & Leisure,Supplies & Services,Provisions,BIKOLD,15/12/2022,123.49
"Communities, Customer & Commercial Services",Sport & Leisure,Supplies & Services,Provisions,BIKOLD,15/12/2022,692.76
"Communities, Customer & Commercial Services",Sport & Leisure,Supplies & Services,Provisions,BIKOLD,15/12/2022,355.28
"Communities, Customer & Commercial Services",Sport & Leisure,Supplies & Services,Provisions,BIKOLD,15/12/2022,215.97
"Communities, Customer & Commercial Services",Sport & Leisure,Supplies & Services,Provisions,BIKOLD,15/12/2022,384.25
"Communities, Customer & Commercial Services",Sport & Leisure,Supplies & Services,Provisions,BIKOLD,15/12/2022,654.58
"Communities, Customer & Commercial Services",Sport & Leisure,Supplies & Services,Provisions,BIKOLD,15/12/2022,226.75
"Communities, Customer & Commercial Services",Sport & Leisure,Supplies & Services,Provisions,BIKOLD,15/12/2022,155.67
"Communities, Customer & Commercial Services",Sport & Leisure,Supplies & Services,Provisions,BIKOLD,15/12/2022,405.68
"Communities, Customer & Commercial Services",Sport & Leisure,Supplies & Services,Provisions,BIKOLD,15/12/2022,115.17
"Communities, Customer & Commercial Services",Sport & Leisure,Supplies & Services,Provisions,BIKOLD,15/12/2022,208.58
"Communities, Customer & Commercial Services",Sport & Leisure,Supplies & Services,Provisions,BIKOLD,15/12/2022,135.45
"Communities, Customer & Commercial Services",Sport & Leisure,Supplies & Services,Provisions,BIKOLD,15/12/2022,168.43
"Communities, Customer & Commercial Services",Sport & Leisure,Supplies & Services,Provisions,BIKOLD,15/12/2022,232.12
"Communities, Customer & Commercial Services",Sport & Leisure,Supplies & Services,Provisions,BIKOLD,15/12/2022,454.76
"Communities, Customer & Commercial Services",Sport & Leisure,Supplies & Services,Provisions,BIKOLD,15/12/2022,208.76
"Communities, Customer & Commercial Services",Sport & Leisure,Supplies & Services,Provisions,BIKOLD,15/12/2022,113.58
"Communities, Customer & Commercial Services",Sport & Leisure,Supplies & Services,Provisions,BIKOLD,15/12/2022,106.04
"Communities, Customer & Commercial Services",Sport & Leisure,Supplies & Services,Provisions,BIKOLD,15/12/2022,109.70
"Communities, Customer & Commercial Services",Sport & Leisure,Supplies & Services,Provisions,BIKOLD,15/12/2022,116.21
"Communities, Customer & Commercial Services",Sport & Leisure,Supplies & Services,Provisions,BIKOLD,15/12/2022,193.35
"Communities, Customer & Commercial Services",Sport & Leisure,Supplies & Services,Provisions,BIKOLD,15/12/2022,-255.30
"Communities, Customer & Commercial Services",Sport & Leisure,Supplies & Services,Provisions,BIKOLD,15/12/2022,154.07
"Communities, Customer & Commercial Services",Sport & Leisure,Supplies & Services,Provisions,BIKOLD,07/12/2022,474.44
"Communities, Customer & Commercial Services",Sport & Leisure,Supplies & Services,Provisions,BIKOLD,07/12/2022,281.67
"Communities, Customer & Commercial Services",Sport & Leisure,Supplies & Services,Provisions,BIKOLD,07/12/2022,626.79
"Communities, Customer & Commercial Services",Sport & Leisure,Supplies & Services,Provisions,BIKOLD,07/12/2022,140.02
"Communities, Customer & Commercial Services",Sport & Leisure,Supplies & Services,Provisions,BIKOLD,07/12/2022,114.32
"Communities, Customer & Commercial Services",Sport & Leisure,Supplies & Services,Provisions,BIKOLD,07/12/2022,307.11
"Communities, Customer & Commercial Services",Sport & Leisure,Supplies & Services,Provisions,BIKOLD,07/12/2022,425.86
"Communities, Customer & Commercial Services",Sport & Leisure,Supplies & Services,Provisions,BIKOLD,07/12/2022,187.45
"Communities, Customer & Commercial Services",Sport & Leisure,Supplies & Services,Provisions,BIKOLD,07/12/2022,148.69
"Communities, Customer & Commercial Services",Sport & Leisure,Supplies & Services,Provisions,BIKOLD,07/12/2022,225.46
"Communities, Customer & Commercial Services",Sport & Leisure,Supplies & Services,Provisions,BIKOLD,07/12/2022,212.70
"Communities, Customer & Commercial Services",Sport & Leisure,Supplies & Services,Provisions,BIKOLD,07/12/2022,272.77
"Communities, Customer & Commercial Services",Sport & Leisure,Supplies & Services,Provisions,BIKOLD,07/12/2022,153.87
"Communities, Customer & Commercial Services",Sport & Leisure,Supplies & Services,Provisions,BIKOLD,07/12/2022,434.24
"Communities, Customer & Commercial Services",Sport & Leisure,Supplies & Services,Provisions,J S Catering Butchers,08/12/2022,238.05
"Communities, Customer & Commercial Services",Sport & Leisure,Supplies & Services,Provisions,J S Catering Butchers,08/12/2022,115.85
"Communities, Customer & Commercial Services",Sport & Leisure,Supplies & Services,Provisions,J S Catering Butchers,08/12/2022,106.38
"Communities, Customer & Commercial Services",Sport & Leisure,Supplies & Services,Provisions,BIKOLD,07/12/2022,434.06
"Communities, Customer & Commercial Services",Sport & Leisure,Supplies & Services,Provisions,BIKOLD,07/12/2022,363.25
"Communities, Customer & Commercial Services",Sport & Leisure,Supplies & Services,Provisions,BIKOLD,07/12/2022,344.70
"Communities, Customer & Commercial Services",Sport & Leisure,Supplies & Services,Provisions,BIKOLD,07/12/2022,165.85
"Communities, Customer & Commercial Services",Sport & Leisure,Supplies & Services,Provisions,BIKOLD,07/12/2022,232.98
"Communities, Customer & Commercial Services",Sport & Leisure,Supplies & Services,Provisions,BIKOLD,07/12/2022,223.46
"Communities, Customer & Commercial Services",Sport & Leisure,Supplies & Services,Provisions,BIKOLD,07/12/2022,138.18
"Communities, Customer & Commercial Services",Sport & Leisure,Supplies & Services,Provisions,BIKOLD,07/12/2022,260.70
"Communities, Customer & Commercial Services",Sport & Leisure,Supplies & Services,Provisions,BIKOLD,07/12/2022,692.16
"Communities, Customer & Commercial Services",Sport & Leisure,Supplies & Services,Provisions,BIKOLD,07/12/2022,204.83
"Communities, Customer & Commercial Services",Sport & Leisure,Supplies & Services,Provisions,BIKOLD,07/12/2022,162.20
"Communities, Customer & Commercial Services",Sport & Leisure,Supplies & Services,Provisions,BIKOLD,07/12/2022,111.98
"Communities, Customer & Commercial Services",Sport & Leisure,Supplies & Services,Provisions,BIKOLD,07/12/2022,258.34
"Communities, Customer & Commercial Services",Sport & Leisure,Supplies & Services,Provisions,BIKOLD,07/12/2022,174.09
"Communities, Customer & Commercial Services",Sport & Leisure,Supplies & Services,Provisions,BIKOLD,07/12/2022,506.39
"Communities, Customer & Commercial Services",Sport & Leisure,Supplies & Services,Provisions,BIKOLD,07/12/2022,398.39
"Communities, Customer & Commercial Services",Sport & Leisure,Supplies & Services,Provisions,BIKOLD,07/12/2022,145.23
"Communities, Customer & Commercial Services",Sport & Leisure,Supplies & Services,Provisions,BIKOLD,07/12/2022,138.18
"Communities, Customer & Commercial Services",Sport & Leisure,Supplies & Services,Provisions,BIKOLD,07/12/2022,189.23
"Communities, Customer & Commercial Services",Sport & Leisure,Supplies & Services,Provisions,BIKOLD,07/12/2022,271.52
"Communities, Customer & Commercial Services",Sport & Leisure,Supplies & Services,Provisions,BIKOLD,07/12/2022,101.82
"Communities, Customer & Commercial Services",Sport & Leisure,Supplies & Services,Provisions,BIKOLD,07/12/2022,192.94
"Communities, Customer & Commercial Services",Sport & Leisure,Supplies & Services,Provisions,BIKOLD,07/12/2022,227.67
"Communities, Customer & Commercial Services",Sport & Leisure,Supplies & Services,Provisions,BIKOLD,07/12/2022,245.19
"Communities, Customer & Commercial Services",Sport & Leisure,Supplies & Services,Provisions,BIKOLD,07/12/2022,123.59
"Communities, Customer & Commercial Services",Sport & Leisure,Supplies & Services,Provisions,BIKOLD,07/12/2022,209.68
"Communities, Customer & Commercial Services",Sport & Leisure,Supplies & Services,Provisions,BIKOLD,07/12/2022,174.62
"Communities, Customer & Commercial Services",Sport & Leisure,Supplies & Services,Provisions,BIKOLD,07/12/2022,245.59
"Communities, Customer & Commercial Services",Sport & Leisure,Supplies & Services,Provisions,BIKOLD,07/12/2022,104.83
"Communities, Customer & Commercial Services",Sport & Leisure,Supplies & Services,Provisions,BIKOLD,07/12/2022,100.53
"Communities, Customer & Commercial Services",Sport & Leisure,Supplies & Services,Provisions,BIKOLD,07/12/2022,117.64
"Communities, Customer & Commercial Services",Sport & Leisure,Supplies & Services,Provisions,BIKOLD,07/12/2022,439.60
"Communities, Customer & Commercial Services",Sport & Leisure,Supplies & Services,Provisions,BIKOLD,07/12/2022,238.09
"Communities, Customer & Commercial Services",Sport & Leisure,Supplies & Services,Provisions,BIKOLD,07/12/2022,196.12
"Communities, Customer & Commercial Services",Sport & Leisure,Supplies & Services,Provisions,BIKOLD,07/12/2022,120.27
"Communities, Customer & Commercial Services",Sport & Leisure,Supplies & Services,Provisions,BIKOLD,07/12/2022,361.30
"Communities, Customer & Commercial Services",Sport & Leisure,Supplies & Services,Provisions,BIKOLD,07/12/2022,191.43
"Communities, Customer & Commercial Services",Sport & Leisure,Supplies & Services,Provisions,J S Catering Butchers,08/12/2022,132.95
"Communities, Customer & Commercial Services",Sport & Leisure,Supplies & Services,Provisions,J S Catering Butchers,08/12/2022,127.55
"Communities, Customer & Commercial Services",Sport & Leisure,Supplies & Services,Provisions,J S Catering Butchers,08/12/2022,210.54
"Communities, Customer & Commercial Services",Sport & Leisure,Supplies & Services,Provisions,J S Catering Butchers,08/12/2022,222.20
"Communities, Customer & Commercial Services",Sport & Leisure,Supplies & Services,Provisions,J S Catering Butchers,08/12/2022,165.60
"Communities, Customer & Commercial Services",Sport & Leisure,Supplies & Services,Provisions,J S Catering Butchers,08/12/2022,110.40
"Communities, Customer & Commercial Services",Sport & Leisure,Supplies & Services,Provisions,J S Catering Butchers,08/12/2022,111.63
"Communities, Customer & Commercial Services",Sport & Leisure,Supplies & Services,Provisions,BIKOLD,07/12/2022,249.62
"Communities, Customer & Commercial Services",Sport & Leisure,Supplies & Services,Provisions,BIKOLD,07/12/2022,108.39
"Communities, Customer & Commercial Services",Sport & Leisure,Supplies & Services,Provisions,BIKOLD,07/12/2022,208.29
"Communities, Customer & Commercial Services",Sport & Leisure,Supplies & Services,Provisions,BIKOLD,07/12/2022,209.26
"Communities, Customer & Commercial Services",Sport & Leisure,Supplies & Services,Provisions,BIKOLD,07/12/2022,302.50
"Communities, Customer & Commercial Services",Sport & Leisure,Supplies & Services,Provisions,BIKOLD,07/12/2022,387.06
"Communities, Customer & Commercial Services",Sport & Leisure,Supplies & Services,Provisions,BIKOLD,07/12/2022,186.75
"Communities, Customer & Commercial Services",Sport & Leisure,Supplies & Services,Provisions,BIKOLD,07/12/2022,177.97
"Communities, Customer & Commercial Services",Sport & Leisure,Supplies & Services,Provisions,BIKOLD,07/12/2022,388.62
"Communities, Customer & Commercial Services",Sport & Leisure,Supplies & Services,Provisions,BIKOLD,07/12/2022,140.69
"Communities, Customer & Commercial Services",Sport & Leisure,Supplies & Services,Provisions,BIKOLD,07/12/2022,211.02
"Communities, Customer & Commercial Services",Sport & Leisure,Supplies & Services,Provisions,BIKOLD,07/12/2022,271.90
"Communities, Customer & Commercial Services",Sport & Leisure,Supplies & Services,Provisions,BIKOLD,07/12/2022,258.23
"Communities, Customer & Commercial Services",Sport & Leisure,Supplies & Services,Provisions,BIKOLD,07/12/2022,136.26
"Communities, Customer & Commercial Services",Sport & Leisure,Supplies & Services,Provisions,BIKOLD,07/12/2022,453.50
"Communities, Customer & Commercial Services",Sport & Leisure,Supplies & Services,Provisions,BIKOLD,07/12/2022,106.96
"Communities, Customer & Commercial Services",Sport & Leisure,Supplies & Services,Provisions,BIKOLD,07/12/2022,256.59
"Communities, Customer & Commercial Services",Sport & Leisure,Supplies & Services,Provisions,BIKOLD,07/12/2022,387.35
"Communities, Customer & Commercial Services",Sport & Leisure,Supplies & Services,Provisions,BIKOLD,07/12/2022,293.05
"Communities, Customer & Commercial Services",Sport & Leisure,Supplies & Services,Provisions,BIKOLD,07/12/2022,172.74
"Communities, Customer & Commercial Services",Sport & Leisure,Supplies & Services,Provisions,BIKOLD,07/12/2022,393.06
"Communities, Customer & Commercial Services",Sport & Leisure,Supplies & Services,Provisions,BIKOLD,07/12/2022,361.18
"Communities, Customer & Commercial Services",Sport & Leisure,Supplies & Services,Provisions,J S Catering Butchers,08/12/2022,137.99
"Communities, Customer & Commercial Services",Sport & Leisure,Supplies & Services,Provisions,J S Catering Butchers,08/12/2022,271.00
"Communities, Customer & Commercial Services",Sport & Leisure,Supplies & Services,Provisions,J S Catering Butchers,08/12/2022,122.39
"Communities, Customer & Commercial Services",Sport & Leisure,Supplies & Services,Provisions,J S Catering Butchers,08/12/2022,178.75
"Communities, Customer & Commercial Services",Sport & Leisure,Supplies & Services,Provisions,SPICE TIME,21/12/2022,160.00
"Communities, Customer & Commercial Services",Sport & Leisure,Supplies & Services,Provisions,SPICE TIME,21/12/2022,261.00
"Communities, Customer & Commercial Services",Sport & Leisure,Supplies & Services,Provisions,SPICE TIME,21/12/2022,262.60
"Communities, Customer & Commercial Services",Sport & Leisure,Supplies & Services,Provisions,SPICE TIME,21/12/2022,111.00
"Communities, Customer & Commercial Services",Sport & Leisure,Supplies & Services,Provisions,SPICE TIME,21/12/2022,238.40
"Communities, Customer & Commercial Services",Sport & Leisure,Supplies & Services,Provisions,SPICE TIME,21/12/2022,131.00
"Communities, Customer & Commercial Services",Sport & Leisure,Supplies & Services,Provisions,SPICE TIME,21/12/2022,195.60
"Communities, Customer & Commercial Services",Sport & Leisure,Supplies & Services,Provisions,SPICE TIME,21/12/2022,171.78
"Communities, Customer & Commercial Services",Sport & Leisure,Supplies & Services,Provisions,SPICE TIME,21/12/2022,171.00
"Communities, Customer & Commercial Services",Sport & Leisure,Supplies & Services,Provisions,SPICE TIME,21/12/2022,220.50
"Communities, Customer & Commercial Services",Sport & Leisure,Supplies & Services,Provisions,On A Roll,21/12/2022,225.45
"Communities, Customer & Commercial Services",Sport & Leisure,Supplies & Services,Provisions,SPICE TIME,21/12/2022,296.60
"Communities, Customer & Commercial Services",Sport & Leisure,Supplies & Services,Provisions,SPICE TIME,21/12/2022,130.00
"Communities, Customer & Commercial Services",Sport & Leisure,Supplies & Services,Provisions,SPICE TIME,21/12/2022,236.40
"Communities, Customer & Commercial Services",Sport & Leisure,Supplies & Services,Provisions,SPICE TIME,21/12/2022,129.15
"Communities, Customer & Commercial Services",Sport & Leisure,Supplies & Services,Provisions,SPICE TIME,21/12/2022,140.00
"Communities, Customer & Commercial Services",Sport & Leisure,Supplies & Services,Provisions,R & COMPANY,20/12/2022,176.13
"Communities, Customer & Commercial Services",Sport & Leisure,Supplies & Services,Provisions,R & COMPANY,20/12/2022,103.63
"Communities, Customer & Commercial Services",Sport & Leisure,Supplies & Services,Provisions,R & COMPANY,20/12/2022,255.83
"Communities, Customer & Commercial Services",Sport & Leisure,Supplies & Services,Provisions,R & COMPANY,20/12/2022,100.39
"Communities, Customer & Commercial Services",Sport & Leisure,Supplies & Services,Provisions,R & COMPANY,20/12/2022,141.42
"Communities, Customer & Commercial Services",Sport & Leisure,Supplies & Services,Provisions,R & COMPANY,20/12/2022,173.84
"Communities, Customer & Commercial Services",Sport & Leisure,Supplies & Services,Provisions,R & COMPANY,20/12/2022,105.60
"Communities, Customer & Commercial Services",Sport & Leisure,Supplies & Services,Provisions,BIKOLD,22/12/2022,142.52
"Communities, Customer & Commercial Services",Sport & Leisure,Supplies & Services,Provisions,BIKOLD,22/12/2022,405.62
"Communities, Customer & Commercial Services",Sport & Leisure,Supplies & Services,Provisions,BIKOLD,22/12/2022,176.91
"Communities, Customer & Commercial Services",Sport & Leisure,Supplies & Services,Provisions,BIKOLD,22/12/2022,-106.40
"Communities, Customer & Commercial Services",Sport & Leisure,Supplies & Services,Provisions,BIKOLD,22/12/2022,427.77
"Communities, Customer & Commercial Services",Sport & Leisure,Supplies & Services,Provisions,BIKOLD,22/12/2022,180.74
"Communities, Customer & Commercial Services",Sport & Leisure,Supplies & Services,Provisions,R & COMPANY,20/12/2022,107.37
"Communities, Customer & Commercial Services",Sport & Leisure,Supplies & Services,Provisions,R & COMPANY,20/12/2022,133.76
"Communities, Customer & Commercial Services",Sport & Leisure,Supplies & Services,Provisions,R & COMPANY,20/12/2022,149.82
"Communities, Customer & Commercial Services",Sport & Leisure,Supplies & Services,Provisions,R & COMPANY,20/12/2022,153.36
"Communities, Customer & Commercial Services",Sport & Leisure,Supplies & Services,Provisions,R & COMPANY,20/12/2022,117.11
"Communities, Customer & Commercial Services",Sport & Leisure,Supplies & Services,Provisions,R & COMPANY,20/12/2022,107.08
"Communities, Customer & Commercial Services",Sport & Leisure,Supplies & Services,Provisions,R & COMPANY,20/12/2022,110.16
"Communities, Customer & Commercial Services",Sport & Leisure,Supplies & Services,Provisions,R & COMPANY,20/12/2022,189.44
"Communities, Customer & Commercial Services",Sport & Leisure,Supplies & Services,Provisions,R & COMPANY,20/12/2022,113.47
"Communities, Customer & Commercial Services",Sport & Leisure,Supplies & Services,Provisions,R & COMPANY,20/12/2022,287.22
"Communities, Customer & Commercial Services",Sport & Leisure,Supplies & Services,Provisions,R & COMPANY,20/12/2022,107.76
"Communities, Customer & Commercial Services",Sport & Leisure,Supplies & Services,Provisions,R & COMPANY,20/12/2022,144.31
"Communities, Customer & Commercial Services",Sport & Leisure,Supplies & Services,Provisions,R & COMPANY,20/12/2022,191.25
"Communities, Customer & Commercial Services",Sport & Leisure,Supplies & Services,Provisions,R & COMPANY,20/12/2022,127.75
"Communities, Customer & Commercial Services",Sport & Leisure,Supplies & Services,Provisions,R & COMPANY,20/12/2022,125.31
"Communities, Customer & Commercial Services",Sport & Leisure,Supplies & Services,Provisions,R & COMPANY,20/12/2022,210.20
"Communities, Customer & Commercial Services",Sport & Leisure,Supplies & Services,Provisions,R & COMPANY,20/12/2022,-135.92
"Communities, Customer & Commercial Services",Sport & Leisure,Supplies & Services,Provisions,R & COMPANY,20/12/2022,135.92
"Communities, Customer & Commercial Services",Sport & Leisure,Supplies & Services,Provisions,R & COMPANY,20/12/2022,369.53
"Communities, Customer & Commercial Services",Sport & Leisure,Supplies & Services,Provisions,SPICE TIME,21/12/2022,142.70
"Communities, Customer & Commercial Services",Sport & Leisure,Supplies & Services,Provisions,SPICE TIME,21/12/2022,171.10
"Communities, Customer & Commercial Services",Sport & Leisure,Supplies & Services,Provisions,SPICE TIME,21/12/2022,225.55
"Communities, Customer & Commercial Services",Sport & Leisure,Supplies & Services,Crockery/Hardware/Light Equip,Vegware,01/12/2022,348.36
"Communities, Customer & Commercial Services",Sport & Leisure,Supplies & Services,Provisions,J S Catering Butchers,16/12/2022,143.51
"Communities, Customer & Commercial Services",Sport & Leisure,Supplies & Services,Provisions,J S Catering Butchers,05/12/2022,181.25
"Communities, Customer & Commercial Services",Sport & Leisure,Supplies & Services,Provisions,Vegware,19/12/2022,107.61
"Communities, Customer & Commercial Services",Sport & Leisure,Supplies & Services,Provisions,On A Roll,07/12/2022,198.25
"Communities, Customer & Commercial Services",Sport & Leisure,Supplies & Services,Provisions,On A Roll,07/12/2022,189.33
"Communities, Customer & Commercial Services",Sport & Leisure,Supplies & Services,Provisions,On A Roll,07/12/2022,629.24
"Communities, Customer & Commercial Services",Sport & Leisure,Supplies & Services,Provisions,J S Catering Butchers,16/12/2022,-247.05
"Communities, Customer & Commercial Services",Sport & Leisure,Supplies & Services,Provisions,J S Catering Butchers,16/12/2022,-104.60
"Communities, Customer & Commercial Services",Sport & Leisure,Supplies & Services,Provisions,TROPICAL ICE,05/12/2022,360.00
"Communities, Customer & Commercial Services",Sport & Leisure,Supplies & Services,Provisions,TROPICAL ICE,05/12/2022,238.50
"Communities, Customer & Commercial Services",Sport & Leisure,Supplies & Services,Provisions,PASTA KING LIMITED,05/12/2022,563.40
"Communities, Customer & Commercial Services",Sport & Leisure,Supplies & Services,Provisions,On A Roll,13/12/2022,212.62
"Communities, Customer & Commercial Services",Sport & Leisure,Supplies & Services,Provisions,PASTA KING LIMITED,13/12/2022,450.72
"Communities, Customer & Commercial Services",Sport & Leisure,Supplies & Services,Provisions,J S Catering Butchers,08/12/2022,283.64
"Communities, Customer & Commercial Services",Sport & Leisure,Supplies & Services,Provisions,J S Catering Butchers,08/12/2022,146.90
"Communities, Customer & Commercial Services",Sport & Leisure,Supplies & Services,Provisions,J S Catering Butchers,08/12/2022,107.18
"Communities, Customer & Commercial Services",Sport & Leisure,Supplies & Services,Provisions,R & COMPANY,20/12/2022,183.91
"Communities, Customer & Commercial Services",Sport & Leisure,Supplies & Services,Provisions,R & COMPANY,20/12/2022,162.25
"Communities, Customer & Commercial Services",Sport & Leisure,Supplies & Services,Provisions,R & COMPANY,20/12/2022,249.43
"Communities, Customer & Commercial Services",Sport & Leisure,Supplies & Services,Provisions,BIKOLD,08/12/2022,429.43
"Communities, Customer & Commercial Services",Sport & Leisure,Supplies & Services,Provisions,BIKOLD,08/12/2022,242.42
"Communities, Customer & Commercial Services",Sport & Leisure,Supplies & Services,Provisions,BIKOLD,08/12/2022,282.78
"Communities, Customer & Commercial Services",Sport & Leisure,Supplies & Services,Provisions,BIKOLD,08/12/2022,401.02
"Communities, Customer & Commercial Services",Sport & Leisure,Supplies & Services,Provisions,BIKOLD,08/12/2022,438.77
"Communities, Customer & Commercial Services",Sport & Leisure,Supplies & Services,Provisions,BIKOLD,08/12/2022,275.60
"Communities, Customer & Commercial Services",Sport & Leisure,Supplies & Services,Provisions,BIKOLD,08/12/2022,549.35
"Communities, Customer & Commercial Services",Sport & Leisure,Supplies & Services,Provisions,BIKOLD,08/12/2022,233.81
"Communities, Customer & Commercial Services",Sport & Leisure,Supplies & Services,Provisions,BIKOLD,08/12/2022,347.35
"Communities, Customer & Commercial Services",Sport & Leisure,Supplies & Services,Provisions,BIKOLD,08/12/2022,275.37
"Communities, Customer & Commercial Services",Sport & Leisure,Supplies & Services,Provisions,BIKOLD,08/12/2022,528.08
"Communities, Customer & Commercial Services",Sport & Leisure,Supplies & Services,Provisions,BIKOLD,08/12/2022,"1,305.48"
"Communities, Customer & Commercial Services",Sport & Leisure,Supplies & Services,Provisions,BIKOLD,08/12/2022,769.92
"Communities, Customer & Commercial Services",Sport & Leisure,Supplies & Services,Provisions,BIKOLD,08/12/2022,115.80
"Communities, Customer & Commercial Services",Sport & Leisure,Supplies & Services,Provisions,BIKOLD,08/12/2022,131.98
"Communities, Customer & Commercial Services",Sport & Leisure,Supplies & Services,Provisions,BIKOLD,08/12/2022,594.66
"Communities, Customer & Commercial Services",Sport & Leisure,Supplies & Services,Provisions,BIKOLD,08/12/2022,140.12
"Communities, Customer & Commercial Services",Sport & Leisure,Supplies & Services,Provisions,BIKOLD,08/12/2022,226.56
"Communities, Customer & Commercial Services",Sport & Leisure,Supplies & Services,Provisions,BIKOLD,08/12/2022,330.31
"Communities, Customer & Commercial Services",Sport & Leisure,Supplies & Services,Provisions,BIKOLD,08/12/2022,182.88
"Communities, Customer & Commercial Services",Sport & Leisure,Supplies & Services,Provisions,BIKOLD,08/12/2022,626.43
"Communities, Customer & Commercial Services",Sport & Leisure,Supplies & Services,Provisions,BIKOLD,08/12/2022,122.05
"Communities, Customer & Commercial Services",Sport & Leisure,Supplies & Services,Provisions,BIKOLD,08/12/2022,"1,479.84"
"Communities, Customer & Commercial Services",Sport & Leisure,Supplies & Services,Provisions,BIKOLD,08/12/2022,162.57
"Communities, Customer & Commercial Services",Sport & Leisure,Supplies & Services,Provisions,BIKOLD,08/12/2022,779.06
"Communities, Customer & Commercial Services",Sport & Leisure,Supplies & Services,Provisions,BIKOLD,08/12/2022,252.70
"Communities, Customer & Commercial Services",Sport & Leisure,Supplies & Services,Provisions,BIKOLD,08/12/2022,313.88
"Communities, Customer & Commercial Services",Sport & Leisure,Supplies & Services,Provisions,J S Catering Butchers,06/12/2022,188.21
"Communities, Customer & Commercial Services",Sport & Leisure,Supplies & Services,Provisions,J S Catering Butchers,06/12/2022,224.82
"Communities, Customer & Commercial Services",Sport & Leisure,Supplies & Services,Provisions,J S Catering Butchers,06/12/2022,107.03
"Communities, Customer & Commercial Services",Sport & Leisure,Supplies & Services,Provisions,J S Catering Butchers,06/12/2022,180.33
"Communities, Customer & Commercial Services",Sport & Leisure,Supplies & Services,Provisions,J S Catering Butchers,06/12/2022,176.74
"Communities, Customer & Commercial Services",Sport & Leisure,Supplies & Services,Provisions,J S Catering Butchers,06/12/2022,215.58
"Communities, Customer & Commercial Services",Sport & Leisure,Supplies & Services,Provisions,T FOOD SERVICE LTD,19/12/2022,784.18
"Communities, Customer & Commercial Services",Sport & Leisure,Supplies & Services,Provisions,T FOOD SERVICE LTD,19/12/2022,161.90
"Communities, Customer & Commercial Services",Sport & Leisure,Supplies & Services,Provisions,PASTA KING LIMITED,01/12/2022,174.96
"Communities, Customer & Commercial Services",Sport & Leisure,Supplies & Services,Provisions,PASTA KING LIMITED,01/12/2022,525.84
"Communities, Customer & Commercial Services",Sport & Leisure,Supplies & Services,Provisions,PASTA KING LIMITED,01/12/2022,488.28
"Communities, Customer & Commercial Services",Sport & Leisure,Supplies & Services,Provisions,T FOOD SERVICE LTD,06/12/2022,717.83
"Communities, Customer & Commercial Services",Sport & Leisure,Supplies & Services,Provisions,T FOOD SERVICE LTD,01/12/2022,555.50
"Communities, Customer & Commercial Services",Sport & Leisure,Supplies & Services,Provisions,T FOOD SERVICE LTD,01/12/2022,717.83
"Communities, Customer & Commercial Services",Sport & Leisure,Supplies & Services,Provisions,T FOOD SERVICE LTD,01/12/2022,399.80
"Communities, Customer & Commercial Services",Sport & Leisure,Supplies & Services,Provisions,On A Roll,01/12/2022,156.02
"Communities, Customer & Commercial Services",Sport & Leisure,Supplies & Services,Provisions,On A Roll,01/12/2022,219.09
"Communities, Customer & Commercial Services",Sport & Leisure,Supplies & Services,Provisions,On A Roll,01/12/2022,629.24
"Communities, Customer & Commercial Services",Sport & Leisure,Supplies & Services,Provisions,R & COMPANY,20/12/2022,124.27
"Communities, Customer & Commercial Services",Sport & Leisure,Supplies & Services,Provisions,J S Catering Butchers,15/12/2022,125.47
"Communities, Customer & Commercial Services",Sport & Leisure,Supplies & Services,Provisions,J S Catering Butchers,15/12/2022,167.26
"Communities, Customer & Commercial Services",Sport & Leisure,Supplies & Services,Provisions,J S Catering Butchers,15/12/2022,135.30
"Communities, Customer & Commercial Services",Sport & Leisure,Supplies & Services,Provisions,J S Catering Butchers,15/12/2022,100.80
"Communities, Customer & Commercial Services",Sport & Leisure,Supplies & Services,Provisions,On A Roll,19/12/2022,141.65
"Communities, Customer & Commercial Services",Sport & Leisure,Supplies & Services,Provisions,On A Roll,19/12/2022,204.21
"Communities, Customer & Commercial Services",Sport & Leisure,Supplies & Services,Provisions,On A Roll,19/12/2022,629.24
"Communities, Customer & Commercial Services",Sport & Leisure,Supplies & Services,Provisions,R & COMPANY,06/12/2022,119.89
"Communities, Customer & Commercial Services",Sport & Leisure,Supplies & Services,Provisions,R & COMPANY,06/12/2022,165.81
"Communities, Customer & Commercial Services",Sport & Leisure,Supplies & Services,Provisions,J S Catering Butchers,05/12/2022,358.10
"Communities, Customer & Commercial Services",Sport & Leisure,Supplies & Services,Provisions,J S Catering Butchers,05/12/2022,117.72
"Communities, Customer & Commercial Services",Sport & Leisure,Supplies & Services,Provisions,J S Catering Butchers,05/12/2022,181.92
"Communities, Customer & Commercial Services",Sport & Leisure,Supplies & Services,Provisions,J S Catering Butchers,08/12/2022,247.05
"Communities, Customer & Commercial Services",Sport & Leisure,Supplies & Services,Provisions,J S Catering Butchers,08/12/2022,104.60
"Communities, Customer & Commercial Services",Sport & Leisure,Supplies & Services,Provisions,J S Catering Butchers,06/12/2022,189.13
"Communities, Customer & Commercial Services",Sport & Leisure,Supplies & Services,Provisions,J S Catering Butchers,06/12/2022,132.11
"Communities, Customer & Commercial Services",Sport & Leisure,Supplies & Services,Provisions,J S Catering Butchers,06/12/2022,153.26
"Communities, Customer & Commercial Services",Sport & Leisure,Supplies & Services,Provisions,J S Catering Butchers,06/12/2022,106.34
"Communities, Customer & Commercial Services",Sport & Leisure,Supplies & Services,Provisions,J S Catering Butchers,06/12/2022,200.46
"Communities, Customer & Commercial Services",Sport & Leisure,Supplies & Services,Provisions,BIKOLD,15/12/2022,108.07
"Communities, Customer & Commercial Services",Sport & Leisure,Supplies & Services,Provisions,BIKOLD,15/12/2022,392.62
"Communities, Customer & Commercial Services",Sport & Leisure,Supplies & Services,Provisions,BIKOLD,15/12/2022,479.05
"Communities, Customer & Commercial Services",Sport & Leisure,Supplies & Services,Provisions,BIKOLD,15/12/2022,762.72
"Communities, Customer & Commercial Services",Sport & Leisure,Supplies & Services,Provisions,BIKOLD,15/12/2022,394.40
"Communities, Customer & Commercial Services",Sport & Leisure,Supplies & Services,Provisions,BIKOLD,15/12/2022,223.64
"Communities, Customer & Commercial Services",Sport & Leisure,Supplies & Services,Provisions,BIKOLD,15/12/2022,103.64
"Communities, Customer & Commercial Services",Sport & Leisure,Supplies & Services,Provisions,BIKOLD,15/12/2022,134.31
"Communities, Customer & Commercial Services",Sport & Leisure,Supplies & Services,Provisions,BIKOLD,15/12/2022,154.88
"Communities, Customer & Commercial Services",Sport & Leisure,Supplies & Services,Provisions,BIKOLD,15/12/2022,261.56
"Communities, Customer & Commercial Services",Sport & Leisure,Supplies & Services,Provisions,BIKOLD,15/12/2022,345.20
"Communities, Customer & Commercial Services",Sport & Leisure,Supplies & Services,Provisions,BIKOLD,15/12/2022,190.87
"Communities, Customer & Commercial Services",Sport & Leisure,Supplies & Services,Provisions,BIKOLD,15/12/2022,739.04
"Communities, Customer & Commercial Services",Sport & Leisure,Supplies & Services,Provisions,BIKOLD,15/12/2022,608.37
"Communities, Customer & Commercial Services",Sport & Leisure,Supplies & Services,Provisions,BIKOLD,15/12/2022,128.10
"Communities, Customer & Commercial Services",Sport & Leisure,Supplies & Services,Provisions,BIKOLD,15/12/2022,101.46
"Communities, Customer & Commercial Services",Sport & Leisure,Supplies & Services,Provisions,BIKOLD,15/12/2022,299.35
"Communities, Customer & Commercial Services",Sport & Leisure,Supplies & Services,Provisions,BIKOLD,15/12/2022,114.14
"Communities, Customer & Commercial Services",Sport & Leisure,Supplies & Services,Provisions,BIKOLD,15/12/2022,209.52
"Communities, Customer & Commercial Services",Sport & Leisure,Supplies & Services,Provisions,BIKOLD,15/12/2022,139.56
"Communities, Customer & Commercial Services",Sport & Leisure,Supplies & Services,Provisions,BIKOLD,07/12/2022,322.10
"Communities, Customer & Commercial Services",Sport & Leisure,Supplies & Services,Provisions,BIKOLD,07/12/2022,600.22
"Communities, Customer & Commercial Services",Sport & Leisure,Supplies & Services,Provisions,BIKOLD,07/12/2022,443.12
"Communities, Customer & Commercial Services",Sport & Leisure,Supplies & Services,Provisions,BIKOLD,07/12/2022,188.40
"Communities, Customer & Commercial Services",Sport & Leisure,Supplies & Services,Provisions,BIKOLD,07/12/2022,654.87
"Communities, Customer & Commercial Services",Sport & Leisure,Supplies & Services,Provisions,BIKOLD,07/12/2022,238.86
"Communities, Customer & Commercial Services",Sport & Leisure,Supplies & Services,Provisions,BIKOLD,07/12/2022,169.51
"Communities, Customer & Commercial Services",Sport & Leisure,Supplies & Services,Provisions,BIKOLD,07/12/2022,"1,260.12"
"Communities, Customer & Commercial Services",Sport & Leisure,Supplies & Services,Provisions,BIKOLD,07/12/2022,229.41
"Communities, Customer & Commercial Services",Sport & Leisure,Supplies & Services,Provisions,BIKOLD,07/12/2022,236.74
"Communities, Customer & Commercial Services",Sport & Leisure,Supplies & Services,Provisions,BIKOLD,07/12/2022,135.74
"Communities, Customer & Commercial Services",Sport & Leisure,Supplies & Services,Provisions,BIKOLD,07/12/2022,197.61
"Communities, Customer & Commercial Services",Sport & Leisure,Supplies & Services,Provisions,BIKOLD,07/12/2022,155.55
"Communities, Customer & Commercial Services",Sport & Leisure,Supplies & Services,Provisions,BIKOLD,07/12/2022,203.32
"Communities, Customer & Commercial Services",Sport & Leisure,Supplies & Services,Provisions,BIKOLD,07/12/2022,406.57
"Communities, Customer & Commercial Services",Sport & Leisure,Supplies & Services,Provisions,BIKOLD,07/12/2022,434.11
"Communities, Customer & Commercial Services",Sport & Leisure,Supplies & Services,Provisions,BIKOLD,07/12/2022,306.07
"Communities, Customer & Commercial Services",Sport & Leisure,Supplies & Services,Provisions,BIKOLD,07/12/2022,286.23
"Communities, Customer & Commercial Services",Sport & Leisure,Supplies & Services,Provisions,BIKOLD,07/12/2022,172.20
"Communities, Customer & Commercial Services",Sport & Leisure,Supplies & Services,Provisions,BIKOLD,07/12/2022,195.23
"Communities, Customer & Commercial Services",Sport & Leisure,Supplies & Services,Provisions,BIKOLD,07/12/2022,-132.55
"Communities, Customer & Commercial Services",Sport & Leisure,Supplies & Services,Provisions,J S Catering Butchers,08/12/2022,107.79
"Communities, Customer & Commercial Services",Sport & Leisure,Supplies & Services,Provisions,J S Catering Butchers,08/12/2022,200.38
"Communities, Customer & Commercial Services",Sport & Leisure,Supplies & Services,Provisions,J S Catering Butchers,08/12/2022,247.05
"Communities, Customer & Commercial Services",Sport & Leisure,Supplies & Services,Provisions,J S Catering Butchers,08/12/2022,104.60
"Communities, Customer & Commercial Services",Sport & Leisure,Supplies & Services,Provisions,On A Roll,21/12/2022,141.65
"Communities, Customer & Commercial Services",Sport & Leisure,Supplies & Services,Provisions,On A Roll,21/12/2022,144.52
"Communities, Customer & Commercial Services",Sport & Leisure,Supplies & Services,Provisions,On A Roll,21/12/2022,820.92
"Communities, Customer & Commercial Services",Sport & Leisure,Supplies & Services,Provisions,PASTA KING LIMITED,21/12/2022,375.60
"Communities, Customer & Commercial Services",Sport & Leisure,Supplies & Services,Provisions,PASTA KING LIMITED,21/12/2022,225.36
"Communities, Customer & Commercial Services",Sport & Leisure,Supplies & Services,Provisions,PASTA KING LIMITED,21/12/2022,488.28
"Communities, Customer & Commercial Services",Sport & Leisure,Supplies & Services,Provisions,T FOOD SERVICE LTD,21/12/2022,451.03
"Communities, Customer & Commercial Services",Sport & Leisure,Supplies & Services,Provisions,R & COMPANY,20/12/2022,397.68
"Communities, Customer & Commercial Services",Sport & Leisure,Supplies & Services,Provisions,BIKOLD,22/12/2022,100.79
"Communities, Customer & Commercial Services",Sport & Leisure,Supplies & Services,Provisions,J S Catering Butchers,05/12/2022,259.35
"Communities, Customer & Commercial Services",Sport & Leisure,Supplies & Services,Provisions,On A Roll,07/12/2022,237.85
"Communities, Customer & Commercial Services",Sport & Leisure,Supplies & Services,Provisions,BIKOLD,08/12/2022,116.19
"Communities, Customer & Commercial Services",Sport & Leisure,Supplies & Services,Provisions,BIKOLD,08/12/2022,135.07
"Communities, Customer & Commercial Services",Sport & Leisure,Supplies & Services,Provisions,On A Roll,01/12/2022,325.41
"Communities, Customer & Commercial Services",Sport & Leisure,Supplies & Services,Provisions,On A Roll,19/12/2022,234.25
"Communities, Customer & Commercial Services",Sport & Leisure,Supplies & Services,Provisions,Aroma Tea & Coffee Merchants,12/12/2022,103.32
"Communities, Customer & Commercial Services",Sport & Leisure,Supplies & Services,Crockery/Hardware/Light Equip,E N CATERING EQUIPMENT AND SERVICES  LTD,12/12/2022,598.00
"Communities, Customer & Commercial Services",Sport & Leisure,Supplies & Services,Provisions,J S Catering Butchers,05/12/2022,299.25
"Communities, Customer & Commercial Services",Sport & Leisure,Supplies & Services,Provisions,BIKOLD,15/12/2022,126.53
"Communities, Customer & Commercial Services",Sport & Leisure,Supplies & Services,Provisions,BIKOLD,15/12/2022,159.71
"Communities, Customer & Commercial Services",Sport & Leisure,Supplies & Services,Provisions,BIKOLD,15/12/2022,193.55
"Communities, Customer & Commercial Services",Sport & Leisure,Supplies & Services,Provisions,BIKOLD,07/12/2022,312.20
"Communities, Customer & Commercial Services",Sport & Leisure,Supplies & Services,Provisions,BIKOLD,07/12/2022,330.78
"Communities, Customer & Commercial Services",Sport & Leisure,Supplies & Services,Provisions,BIKOLD,07/12/2022,109.92
"Communities, Customer & Commercial Services",Sport & Leisure,Supplies & Services,Crockery/Hardware/Light Equip,Vegware,21/12/2022,114.64
"Communities, Customer & Commercial Services",Sport & Leisure,Supplies & Services,Provisions,Aroma Tea & Coffee Merchants,21/12/2022,184.79
"Communities, Customer & Commercial Services",Sport & Leisure,Supplies & Services,Provisions,BIKOLD,08/12/2022,149.16
"Communities, Customer & Commercial Services",Sport & Leisure,Supplies & Services,Provisions,BIKOLD,08/12/2022,609.27
"Communities, Customer & Commercial Services",Sport & Leisure,Supplies & Services,Provisions,BIKOLD,08/12/2022,212.76
"Communities, Customer & Commercial Services",Sport & Leisure,Supplies & Services,Provisions,BIKOLD,08/12/2022,149.14
"Communities, Customer & Commercial Services",Sport & Leisure,Supplies & Services,Provisions,BIKOLD,15/12/2022,497.69
"Communities, Customer & Commercial Services",Sport & Leisure,Supplies & Services,Provisions,BIKOLD,15/12/2022,451.84
"Communities, Customer & Commercial Services",Sport & Leisure,Supplies & Services,Provisions,BIKOLD,15/12/2022,114.15
"Communities, Customer & Commercial Services",Sport & Leisure,Supplies & Services,Provisions,BIKOLD,15/12/2022,156.25
"Communities, Customer & Commercial Services",Sport & Leisure,Supplies & Services,Provisions,BIKOLD,15/12/2022,247.28
"Communities, Customer & Commercial Services",Sport & Leisure,Supplies & Services,Provisions,BIKOLD,07/12/2022,113.38
"Communities, Customer & Commercial Services",Sport & Leisure,Supplies & Services,Provisions,BIKOLD,07/12/2022,150.93
"Communities, Customer & Commercial Services",Sport & Leisure,Supplies & Services,Provisions,BIKOLD,07/12/2022,337.46
"Communities, Customer & Commercial Services",Sport & Leisure,Supplies & Services,Provisions,BIKOLD,07/12/2022,329.71
"Communities, Customer & Commercial Services",Sport & Leisure,Supplies & Services,Provisions,BIKOLD,22/12/2022,238.07
"Communities, Customer & Commercial Services",Sport & Leisure,Supplies & Services,Provisions,BIKOLD,22/12/2022,144.79
"Communities, Customer & Commercial Services",Sport & Leisure,Supplies & Services,Provisions,BIKOLD,22/12/2022,184.39
"Communities, Customer & Commercial Services",Sport & Leisure,Supplies & Services,Provisions,BIKOLD,22/12/2022,121.62
"Communities, Customer & Commercial Services",Sport & Leisure,Supplies & Services,Advertising,DLM DISTRIBUTIONS LTD,22/12/2022,570.00
"Communities, Customer & Commercial Services",Sport & Leisure,Supplies & Services,Advertising,DLM DISTRIBUTIONS LTD,21/12/2022,342.00
"Communities, Customer & Commercial Services",Sport & Leisure,Supplies & Services,Historic Building Grant,APSE ,02/12/2022,859.40
"Communities, Customer & Commercial Services",Sport & Leisure,Supplies & Services,Concessionary Travel,THAMES CARD TECHNOLOGY LTD,21/12/2022,"2,168.50"
"Communities, Customer & Commercial Services",Sport & Leisure,Supplies & Services,Other Expenses,OMNICO GROUP UK LTD,22/12/2022,125.75
"Communities, Customer & Commercial Services",Sport & Leisure,Supplies & Services,Other Expenses,OMNICO GROUP UK LTD,22/12/2022,"1,500.00"
"Communities, Customer & Commercial Services",Sport & Leisure,Supplies & Services,Flex Charges,Bramble Hub Limited,13/12/2022,"4,630.00"
"Communities, Customer & Commercial Services",Sport & Leisure,Supplies & Services,Research Surveys,Community First Partnership LTD,21/12/2022,"12,187.50"
"Communities, Customer & Commercial Services",Sport & Leisure,Supplies & Services,Payment Of Income Collected,Telford Tigers Limited,06/12/2022,"3,400.80"
"Communities, Customer & Commercial Services",Sport & Leisure,Supplies & Services,Payment Of Income Collected,Telford Tigers Limited,13/12/2022,"3,480.96"
"Communities, Customer & Commercial Services",Sport & Leisure,Supplies & Services,Payment Of Income Collected,Telford Tigers Limited,20/12/2022,"8,401.36"
"Communities, Customer & Commercial Services",Sport & Leisure,Supplies & Services,Equipment - Hire,SLIDERS SKATE SHOP,06/12/2022,300.00
"Communities, Customer & Commercial Services",Sport & Leisure,Supplies & Services,Stationery,CCR,14/12/2022,257.00
"Communities, Customer & Commercial Services",Sport & Leisure,Premises-Related Expenditure,R&M -Buildings DLO Charge,GRANVILLE CONSTRUCTION & MAINTENANCE LTD,06/12/2022,"1,597.55"
"Communities, Customer & Commercial Services",Sport & Leisure,Premises-Related Expenditure,Grounds Maint - Sports Pitches,Technical Surfaces Ltd,07/12/2022,475.00
"Communities, Customer & Commercial Services",Sport & Leisure,Premises-Related Expenditure,R&M -Building Other,Security Wise Ltd,13/12/2022,147.00
"Communities, Customer & Commercial Services",Sport & Leisure,Supplies & Services,Chemicals/Cleaning Products,BRENNTAG UK LIMITED,20/12/2022,742.40
"Communities, Customer & Commercial Services",Sport & Leisure,Supplies & Services,Carriage/Delivery Charge,BRENNTAG UK LIMITED,20/12/2022,103.00
"Communities, Customer & Commercial Services",Sport & Leisure,Supplies & Services,Licences,L M Fitness UK Ltd,07/12/2022,"1,145.37"
"Communities, Customer & Commercial Services",Sport & Leisure,Supplies & Services,Licences,L M Fitness UK Ltd,09/12/2022,-100.37
"Communities, Customer & Commercial Services",Sport & Leisure,Supplies & Services,Items For Resale,Splash About International Limited,03/12/2022,996.40
"Communities, Customer & Commercial Services",Sport & Leisure,Supplies & Services,Equipment - Purchase,RLSS UK Shop,03/12/2022,204.16
"Communities, Customer & Commercial Services",Sport & Leisure,Supplies & Services,Equipment - Purchase,J P L LTD,03/12/2022,253.72
"Communities, Customer & Commercial Services",Sport & Leisure,Supplies & Services,Chemicals/Cleaning Products,BRENNTAG UK LIMITED,01/12/2022,"1,113.60"
"Communities, Customer & Commercial Services",Sport & Leisure,Supplies & Services,Stationery,THE TILL ROLL CO LTD,01/12/2022,138.50
"Communities, Customer & Commercial Services",Sport & Leisure,Supplies & Services,Sport Equip - Purchase,Jordan Fitness  Ltd,01/12/2022,157.50
"Communities, Customer & Commercial Services",Sport & Leisure,Supplies & Services,Equipment - Purchase,Rangeball UK LTD,01/12/2022,117.95
"Communities, Customer & Commercial Services",Sport & Leisure,Transport-Related Expenditure,Servicing & Repairs V&P,C STORES LTD,01/12/2022,219.81
"Communities, Customer & Commercial Services",Sport & Leisure,Transport-Related Expenditure,Servicing & Repairs V&P,C STORES LTD,01/12/2022,596.36
"Communities, Customer & Commercial Services",Sport & Leisure,Transport-Related Expenditure,Servicing & Repairs V&P,C STORES LTD,01/12/2022,162.86
"Communities, Customer & Commercial Services",Sport & Leisure,Premises-Related Expenditure,R&M WC Planned,Agrovista UK LTD,09/12/2022,415.00
"Communities, Customer & Commercial Services",Sport & Leisure,Premises-Related Expenditure,R&M WC Planned,Agrovista UK LTD,09/12/2022,"1,150.00"
"Communities, Customer & Commercial Services",Sport & Leisure,Transport-Related Expenditure,Servicing & Repairs V&P,C STORES LTD,09/12/2022,124.86
"Communities, Customer & Commercial Services",Sport & Leisure,Transport-Related Expenditure,Servicing & Repairs V&P,C STORES LTD,21/12/2022,653.71
"Communities, Customer & Commercial Services",Sport & Leisure,Supplies & Services,Chemicals/Cleaning Products,Border Janitorial Supplies Limited,22/12/2022,136.40
"Communities, Customer & Commercial Services",Sport & Leisure,Premises-Related Expenditure,R&M - Mechanical,Precore Fitness Limited,15/12/2022,165.00
"Communities, Customer & Commercial Services",Sport & Leisure,Supplies & Services,Licences,L M Fitness UK Ltd,21/12/2022,255.83
"Communities, Customer & Commercial Services",Sport & Leisure,Supplies & Services,Chemicals/Cleaning Products,Border Janitorial Supplies Limited,05/12/2022,240.48
"Communities, Customer & Commercial Services",Sport & Leisure,Supplies & Services,Chemicals/Cleaning Products,Border Janitorial Supplies Limited,05/12/2022,153.15
"Communities, Customer & Commercial Services",Sport & Leisure,Supplies & Services,Chemicals/Cleaning Products,BRENNTAG UK LIMITED,21/12/2022,567.00
"Communities, Customer & Commercial Services",Sport & Leisure,Supplies & Services,Protective Clothing,CORPORATE TOGS LTD,29/12/2022,123.15
"Communities, Customer & Commercial Services",Sport & Leisure,Supplies & Services,First Aid,SP SERVICES LTD,01/12/2022,204.75
"Communities, Customer & Commercial Services",Sport & Leisure,Supplies & Services,Sport Equip - Purchase,Jordan Fitness  Ltd,01/12/2022,444.32
"Communities, Customer & Commercial Services",Sport & Leisure,Supplies & Services,Other Materials,HAGS-SMP LTD,14/12/2022,150.00
"Communities, Customer & Commercial Services",Sport & Leisure,Supplies & Services,Other Materials,HAGS-SMP LTD,14/12/2022,"2,034.37"
"Communities, Customer & Commercial Services",Sport & Leisure,Supplies & Services,Historic Building Grant,APSE ,02/12/2022,859.40
"Communities, Customer & Commercial Services",Sport & Leisure,Supplies & Services,Sub Contractors,BUSINESS WATCH GUARDING LIMITED,07/12/2022,248.00
"Communities, Customer & Commercial Services",Sport & Leisure,Supplies & Services,Sub Contractors,Id verde,08/12/2022,616.92
"Communities, Customer & Commercial Services",Sport & Leisure,Supplies & Services,Sub Contractors,Id verde,08/12/2022,475.00
"Communities, Customer & Commercial Services",Sport & Leisure,Supplies & Services,Sub Contractors,Id verde,08/12/2022,128.00
"Communities, Customer & Commercial Services",Sport & Leisure,Supplies & Services,Sub Contractors,Id verde,08/12/2022,220.00
"Communities, Customer & Commercial Services",Sport & Leisure,Supplies & Services,Sub Contractors,Id verde,08/12/2022,753.00
"Communities, Customer & Commercial Services",Sport & Leisure,Supplies & Services,Sub Contractors,Id verde,08/12/2022,243.80
"Communities, Customer & Commercial Services",Sport & Leisure,Supplies & Services,Sub Contractors,BUSINESS WATCH GUARDING LIMITED,08/12/2022,519.52
"Communities, Customer & Commercial Services",Sport & Leisure,Supplies & Services,Sub Contractors,BUSINESS WATCH GUARDING LIMITED,08/12/2022,256.20
"Communities, Customer & Commercial Services",Sport & Leisure,Supplies & Services,Equipment - Purchase,RLSS UK Shop,20/12/2022,228.00
"Communities, Customer & Commercial Services",Sport & Leisure,Supplies & Services,Equipment - Purchase,RLSS UK Shop,20/12/2022,230.00
"Communities, Customer & Commercial Services",Sport & Leisure,Supplies & Services,Equipment - Purchase,RLSS UK Shop,20/12/2022,250.00
"Communities, Customer & Commercial Services",Sport & Leisure,Supplies & Services,Equipment - Purchase,RLSS UK Shop,09/12/2022,240.00
"Communities, Customer & Commercial Services",Sport & Leisure,Supplies & Services,Equipment - Purchase,RLSS UK Shop,20/12/2022,290.00
"Communities, Customer & Commercial Services",Sport & Leisure,Supplies & Services,Equipment - Purchase,RLSS UK Shop,20/12/2022,160.00
"Communities, Customer & Commercial Services",Sport & Leisure,Supplies & Services,Equipment - Purchase,RLSS UK Shop,20/12/2022,230.00
"Communities, Customer & Commercial Services",Sport & Leisure,Capital Expenditure,Payments to Contractor,JCE & SONS LTD,13/12/2022,"2,274.65"
"Communities, Customer & Commercial Services",Sport & Leisure,Capital Expenditure,Fixtures & Fittings & Equipment,Hutchison Technologies Ltd.,13/12/2022,"4,555.37"
"Communities, Customer & Commercial Services",Sport & Leisure,Capital Expenditure,Fixtures & Fittings & Equipment,Jordan Fitness  Ltd,01/12/2022,212.80
"Communities, Customer & Commercial Services",Sport & Leisure,Capital Expenditure,Fixtures & Fittings & Equipment,Jordan Fitness  Ltd,01/12/2022,223.44
"Communities, Customer & Commercial Services",Sport & Leisure,Capital Expenditure,Fixtures & Fittings & Equipment,Jordan Fitness  Ltd,01/12/2022,340.48
"Communities, Customer & Commercial Services",Sport & Leisure,Capital Expenditure,Fixtures & Fittings & Equipment,PULSE FITNESS LIMITED,01/12/2022,"5,735.80"
"Communities, Customer & Commercial Services",Sport & Leisure,Capital Expenditure,Fixtures & Fittings & Equipment,B Office Services Ltd,01/12/2022,894.75
"Communities, Customer & Commercial Services",Sport & Leisure,Capital Expenditure,Fixtures & Fittings & Equipment,M H Ltd,15/12/2022,450.00
"Communities, Customer & Commercial Services",Sport & Leisure,Capital Expenditure,Fixtures & Fittings & Equipment,H Technologies Ltd.,19/12/2022,"5,466.44"
"Communities, Customer & Commercial Services",Sport & Leisure,Capital Expenditure,Payments to Contractor,M Property Ltd,12/12/2022,685.00
"Communities, Customer & Commercial Services",Sport & Leisure,Capital Expenditure,Payments to Contractor,SKIPS TELFORD LTD,08/12/2022,210.00
"Communities, Customer & Commercial Services",Sport & Leisure,Capital Expenditure,Fixtures & Fittings & Equipment,PULSE FITNESS LIMITED,13/12/2022,"176,670.47"
"Communities, Customer & Commercial Services",Sport & Leisure,Capital Expenditure,Fixtures & Fittings & Equipment,PULSE FITNESS LIMITED,13/12/2022,"1,396.57"
"Communities, Customer & Commercial Services",Sport & Leisure,Capital Expenditure,Payments to Contractor,BATTLEFIELD LAND SURVEYS LTD,21/12/2022,450.00
"Communities, Customer & Commercial Services",Sport & Leisure,Capital Expenditure,Fixtures & Fittings & Equipment,PULSE FITNESS LIMITED,22/12/2022,"3,347.63"
Corporate Communications,Communications & Marketing,Supplies & Services,Community Newspaper,EMERGE DESIGN LTD,19/12/2022,"3,692.57"
Corporate Communications,Communications & Marketing,Supplies & Services,Community Newspaper,ROYAL MAIL GROUP PLC ,16/12/2022,"2,969.68"
Corporate Communications,Communications & Marketing,Supplies & Services,Community Newspaper,ROYAL MAIL GROUP PLC ,16/12/2022,"8,652.90"
Corporate Communications,Communications & Marketing,Supplies & Services,Community Newspaper,PRECISION COLOUR PRINTING,16/12/2022,"8,858.00"
Corporate Communications,Communications & Marketing,Capital Expenditure,Other Capital Expenditure,SIGNS EXPRESS,16/12/2022,547.00
Corporate Communications,Communications & Marketing,Capital Expenditure,Other Capital Expenditure,CIVICA UK LIMITED ,06/12/2022,"1,480.00"
Corporate Communications,Communications & Marketing,Capital Expenditure,Other Capital Expenditure,Silk Group,06/12/2022,"1,400.00"
Corporate Communications,Communications & Marketing,Capital Expenditure,Other Capital Expenditure,SIGNS EXPRESS,09/12/2022,969.72
Corporate Communications,Communications & Marketing,Capital Expenditure,Other Capital Expenditure,SIGNS EXPRESS ,09/12/2022,392.80
Corporate Items,Corporate Codes,Supplies & Services,Other Services,M FM Ltd,05/12/2022,"1,922.00"
Corporate Items,Corporate Codes,Capital Financing Costs,Penalty Deductions,PYRAMID SCHOOLS LTD,14/12/2022,"-1,160.23"
Corporate Items,Corporate Codes,Capital Financing Costs,Unitary Charge,PYRAMID SCHOOLS LTD,14/12/2022,"931,720.82"
Corporate Items,Corporate Codes,Supplies & Services,Telephones,M FM Ltd,21/12/2022,-113.33
Corporate Items,Corporate Codes,Employees,Agency Supply Costs,Matrix SCM,16/12/2022,"39,419.17"
Corporate Items,Corporate Codes,Employees,Agency Supply Costs,Matrix SCM,08/12/2022,"40,673.18"
Corporate Items,Corporate Codes,Employees,Agency Supply Costs,Matrix SCM,01/12/2022,"36,357.98"
Corporate Items,Corporate Codes,Employees,Agency Supply Costs,Matrix SCM,01/12/2022,"39,640.78"
Corporate Items,Corporate Codes,Employees,Agency Supply Costs,Matrix SCM,23/12/2022,"40,676.81"
Education & Skills,Consultancy & Advisory Services,Employees,Course Fees,GOVNET COMMUNICATIONS,16/12/2022,550.00
Education & Skills,Consultancy & Advisory Services,Premises-Related Expenditure,Hire Of Rooms,MEETING POINT TRUST LTD,11/12/2022,220.00
Education & Skills,Consultancy & Advisory Services,Supplies & Services,Other Grants (Expenses),Twiggys Day Nursery Ltd ,11/12/2022,200.00
Education & Skills,Consultancy & Advisory Services,Supplies & Services,Text Messages,PROCESS FLOWS UK LTD,22/12/2022,140.00
Education & Skills,Consultancy & Advisory Services,Supplies & Services,Mobile Phones,EE LTD EQUIPMENT ,14/12/2022,142.00
Education & Skills,Education & Skills,Capital Expenditure,Payments to Contractor,TAYLORS MECHANICAL H & P SERVICES LTD,07/12/2022,737.00
Education & Skills,Education & Skills,Capital Expenditure,Payments to Contractor,GRANVILLE CONSTRUCTION & MAINTENANCE LTD,12/12/2022,"1,860.00"
Education & Skills,Education & Skills,Capital Expenditure,Payments to Contractor,GRANVILLE CONSTRUCTION & MAINTENANCE LTD,12/12/2022,"1,872.42"
Education & Skills,Education & Skills,Capital Expenditure,Payments to Contractor,C Fire Security Ltd,23/12/2022,281.10
Education & Skills,Education & Skills,Capital Expenditure,Payments to Contractor,R G STONES LTD,16/12/2022,"1,050.00"
Education & Skills,Education & Skills,Capital Expenditure,Legal Fees,W H SOLICITORS,06/12/2022,"3,600.00"
Education & Skills,Education & Skills,Capital Expenditure,Legal Fees,W H SOLICITORS,13/12/2022,212.80
Education & Skills,Education & Skills,Capital Expenditure,Legal Fees,W H SOLICITORS,13/12/2022,608.00
Education & Skills,Education & Skills,Capital Expenditure,Legal Fees,W H SOLICITORS,13/12/2022,152.00
Education & Skills,Education & Skills,Capital Expenditure,Legal Fees,W H SOLICITORS,13/12/2022,121.60
Education & Skills,Education & Skills,Capital Expenditure,Payments to Contractor,SGS United Kingdom Limited,15/12/2022,450.00
Education & Skills,Education & Skills,Capital Expenditure,Payments to Contractor,SGS United Kingdom Limited,15/12/2022,225.00
Education & Skills,Education & Skills,Capital Expenditure,Payments to Contractor,SGS United Kingdom Limited,15/12/2022,225.00
Education & Skills,Education & Skills,Capital Expenditure,Payments to Contractor,SGS United Kingdom Limited,15/12/2022,225.00
Education & Skills,Education & Skills,Capital Expenditure,Payments to Contractor,SGS United Kingdom Limited,15/12/2022,225.00
Education & Skills,Education & Skills,Capital Expenditure,Payments to Contractor,GRANVILLE CONSTRUCTION & MAINTENANCE LTD,21/12/2022,"1,020.00"
Education & Skills,Education & Skills,Capital Expenditure,Payments to Contractor,GRANVILLE CONSTRUCTION & MAINTENANCE LTD,21/12/2022,459.00
Education & Skills,Education & Skills,Capital Expenditure,Payments to Contractor,Security Wise Ltd,07/12/2022,"1,103.00"
Education & Skills,Education & Skills,Capital Expenditure,Payments to Contractor,C & W LTD,16/12/2022,"1,476.60"
Education & Skills,Education & Skills,Capital Expenditure,Payments to Contractor,JCE & SONS LTD,08/12/2022,"25,320.66"
Education & Skills,Education & Skills,Capital Expenditure,Payments to Contractor,MERCIAN MASTERPLAN LTD,16/12/2022,118.80
Education & Skills,Education & Skills,Capital Expenditure,Payments to Contractor,T MECHANICAL H & P SERVICES LTD,20/12/2022,"2,810.00"
Education & Skills,Education & Skills,Capital Expenditure,Payments to Contractor,GRANVILLE CONSTRUCTION & MAINTENANCE LTD,23/12/2022,"2,220.00"
Education & Skills,Education & Skills,Capital Expenditure,Payments to Contractor,GRANVILLE CONSTRUCTION & MAINTENANCE LTD,23/12/2022,"3,216.60"
Education & Skills,Pupil Support Services,Supplies & Services,Other Expenses,Entrust Support Services Ltd,12/12/2022,"5,712.91"
Education & Skills,Pupil Support Services,Supplies & Services,Artistes Fees,REDACTED PERSONAL INFORMATION,20/12/2022,"2,280.00"
Education & Skills,Pupil Support Services,Supplies & Services,Other Grants (Expenses),STIRCHLEY & BROOKSIDE PARISH COUNCIL ,06/12/2022,"1,397.11"
Education & Skills,Pupil Support Services,Supplies & Services,Other Grants (Expenses),STIRCHLEY & BROOKSIDE PARISH COUNCIL ,06/12/2022,150.00
Education & Skills,Pupil Support Services,Supplies & Services,Other Grants (Expenses),Educating Kids Outdoors Ltd,06/12/2022,"1,200.00"
Education & Skills,Pupil Support Services,Supplies & Services,Other Grants (Expenses),CAT - Telford Priory School,06/12/2022,"5,174.30"
Education & Skills,Pupil Support Services,Supplies & Services,Advertising,EMERGE DESIGN LTD,15/12/2022,"1,130.92"
Education & Skills,Pupil Support Services,Third Party Payments,Misc. Education Payments to Non Schools,G Tutoring Ltd,09/12/2022,"4,380.00"
Education & Skills,Pupil Support Services,Supplies & Services,Other Grants (Expenses),THE SMALL WOODS ASSOCIATION,23/12/2022,840.00
Education & Skills,Pupil Support Services,Supplies & Services,Other Grants (Expenses),THE SMALL WOODS ASSOCIATION,23/12/2022,826.39
Education & Skills,Pupil Support Services,Supplies & Services,Other Grants (Expenses),Telford Park School,23/12/2022,"2,518.80"
Education & Skills,Pupil Support Services,Supplies & Services,Other Grants (Expenses),Telford Park School,23/12/2022,"5,174.30"
Education & Skills,Pupil Support Services,Third Party Payments,DSG - High Needs Block,Cygnet Health Ltd,19/12/2022,"3,078.00"
Education & Skills,Pupil Support Services,Supplies & Services,Other Grants (Expenses),Lawley Primary School,23/12/2022,555.00
Education & Skills,Pupil Support Services,Supplies & Services,Other Grants (Expenses),Sutton Hill Community Trust,23/12/2022,"1,060.00"
Education & Skills,SEND (0-25),Transport-Related Expenditure,Taxi Costs,Elite Transport,02/12/2022,"2,160.00"
Education & Skills,SEND (0-25),Transport-Related Expenditure,Taxi Costs,24X7 Ltd,14/12/2022,996.39
Education & Skills,SEND (0-25),Transport-Related Expenditure,Taxi Costs,Telford Taxi Hire Limited,12/12/2022,"1,430.00"
Education & Skills,SEND (0-25),Transport-Related Expenditure,Taxi Costs,Telford Taxi Hire Limited,12/12/2022,"3,230.00"
Education & Skills,SEND (0-25),Transport-Related Expenditure,Taxi Costs,Telford Taxi Hire Limited,12/12/2022,"4,860.00"
Education & Skills,SEND (0-25),Transport-Related Expenditure,Transport Contractors,Telford Taxi Hire Limited,12/12/2022,"5,280.00"
Education & Skills,SEND (0-25),Transport-Related Expenditure,Taxi Costs,Telford Taxi Hire Limited,12/12/2022,"4,840.00"
Education & Skills,SEND (0-25),Transport-Related Expenditure,Taxi Costs,Telford Taxi Hire Limited,12/12/2022,"2,860.00"
Education & Skills,SEND (0-25),Transport-Related Expenditure,Taxi Costs,Telford Taxi Hire Limited,19/12/2022,"4,620.00"
Education & Skills,SEND (0-25),Transport-Related Expenditure,Taxi Costs,Telford Taxi Hire Limited,19/12/2022,"1,760.00"
Education & Skills,SEND (0-25),Transport-Related Expenditure,Taxi Costs,Go Carz,19/12/2022,400.00
Education & Skills,SEND (0-25),Transport-Related Expenditure,Taxi Costs,Go Carz,19/12/2022,772.00
Education & Skills,SEND (0-25),Transport-Related Expenditure,Taxi Costs,Telford and Wrekin Community Enterprise LTD,09/12/2022,"1,200.00"
Education & Skills,SEND (0-25),Transport-Related Expenditure,Taxi Costs,Telford and Wrekin Community Enterprise LTD,09/12/2022,"1,248.00"
Education & Skills,SEND (0-25),Transport-Related Expenditure,Taxi Costs,Telford and Wrekin Community Enterprise LTD,09/12/2022,"2,338.66"
Education & Skills,SEND (0-25),Transport-Related Expenditure,Transport Contractors,A-STAR TRANSPORT MIDLANDS LTD,09/12/2022,"5,200.00"
Education & Skills,SEND (0-25),Transport-Related Expenditure,Taxi Costs,AB & CA H,09/12/2022,"4,483.60"
Education & Skills,SEND (0-25),Transport-Related Expenditure,Transport Contractors,A-STAR TRANSPORT MIDLANDS LTD,09/12/2022,"7,150.00"
Education & Skills,SEND (0-25),Transport-Related Expenditure,Taxi Costs,A2B Transports,14/12/2022,"1,540.00"
Education & Skills,SEND (0-25),Transport-Related Expenditure,Taxi Costs,24X7 Ltd,14/12/2022,"4,954.18"
Education & Skills,SEND (0-25),Transport-Related Expenditure,Taxi Costs,24X7 Ltd,14/12/2022,"9,614.22"
Education & Skills,SEND (0-25),Third Party Payments,DSG - High Needs Block,THE EDUCATION DEVELOPMENT SERVICE LTD,02/12/2022,"66,500.00"
Education & Skills,SEND (0-25),Third Party Payments,DSG - High Needs Block,Nisai Virtual Academy Limited,12/12/2022,"2,000.00"
Education & Skills,SEND (0-25),Employees,Staff Training,SHROPSHIRE COUNCIL,12/12/2022,"3,300.00"
Education & Skills,SEND (0-25),Third Party Payments,Health Funded Services,SHROPSHIRE COMMUNITY HEALTH NHS TRUST,12/12/2022,"4,000.00"
Education & Skills,SEND (0-25),Third Party Payments,DSG - High Needs Block,SHROPSHIRE COUNCIL ,13/12/2022,"45,000.00"
Education & Skills,SEND (0-25),Third Party Payments,DSG - High Needs Block,SHROPSHIRE COUNCIL ,13/12/2022,"27,416.65"
Education & Skills,SEND (0-25),Third Party Payments,DSG - High Needs Block,SHROPSHIRE COUNCIL ,13/12/2022,"55,071.49"
Education & Skills,SEND (0-25),Third Party Payments,DSG - High Needs Block,SHROPSHIRE COUNCIL ,13/12/2022,"69,799.94"
Education & Skills,SEND (0-25),Employees,Agency Supply Costs,Guide Dogs for the Blind,12/12/2022,"3,794.00"
Education & Skills,SEND (0-25),Supplies & Services,Equipment - Purchase,PHONAK UK LTD,12/12/2022,588.71
Education & Skills,SEND (0-25),Supplies & Services,Equipment - Purchase,PHONAK UK LTD,12/12/2022,147.00
Education & Skills,SEND (0-25),Supplies & Services,Mobile Phones,EE LTD EQUIPMENT,23/12/2022,142.00
Education & Skills,SEND (0-25),Third Party Payments,DSG - High Needs Block,The Really NEET Project Ltd,02/12/2022,"79,316.65"
Education & Skills,SEND (0-25),Third Party Payments,DSG - High Needs Block,RED GEORGE RURAL SKILLS PROJECT,12/12/2022,800.00
Education & Skills,SEND (0-25),Third Party Payments,DSG - High Needs Block,CROSSBAR COACHING,12/12/2022,"3,150.00"
Education & Skills,SEND (0-25),Premises-Related Expenditure,Hire Of Rooms,Mercure Telford Centre Hotel,12/12/2022,101.42
Education & Skills,SEND (0-25),Third Party Payments,DSG - High Needs Block,TELFORD COLLEGE,13/12/2022,"405,025.00"
Education & Skills,SEND (0-25),Third Party Payments,DSG - High Needs Block,SHREWSBURY COLLEGES GROUP,13/12/2022,"117,337.80"
Education & Skills,SEND (0-25),Third Party Payments,DSG - High Needs Block,RED GEORGE RURAL SKILLS PROJECT,05/12/2022,700.00
Education & Skills,SEND (0-25),Third Party Payments,DSG - High Needs Block,CROSSBAR COACHING,05/12/2022,"2,250.00"
Education & Skills,SEND (0-25),Third Party Payments,DSG - High Needs Block,CROSSBAR COACHING,05/12/2022,"4,875.00"
Education & Skills,SEND (0-25),Third Party Payments,DSG - High Needs Block,HRP Education,12/12/2022,294.00
Education & Skills,SEND (0-25),Employees,Course Fees,BIRMINGHAM CITY COUNCIL,06/12/2022,900.00
Education & Skills,SEND (0-25),Supplies & Services,Health & Safety Expenses,G & S S LTD,09/12/2022,122.00
Education & Skills,SEND (0-25),Supplies & Services,Health & Safety Expenses,Strive AV Ltd,12/12/2022,"1,895.00"
Education & Skills,SEND (0-25),Supplies & Services,Health & Safety Expenses,Strive AV Ltd,12/12/2022,395.00
Education & Skills,SEND (0-25),Supplies & Services,Health & Safety Expenses,Strive AV Ltd,12/12/2022,195.00
Education & Skills,Skills,Premises-Related Expenditure,Hire Of Rooms,OAKENGATES TOWN COUNCIL,19/12/2022,412.50
Education & Skills,Skills,Premises-Related Expenditure,Hire Of Rooms,OAKENGATES TOWN COUNCIL,19/12/2022,150.00
Education & Skills,Skills,Premises-Related Expenditure,Hire Of Rooms,The Leegate Centre CIC,19/12/2022,300.00
Education & Skills,Skills,Premises-Related Expenditure,Hire Of Rooms,OAKENGATES TOWN COUNCIL,19/12/2022,412.50
Education & Skills,Skills,Premises-Related Expenditure,Hire Of Rooms,Arleston Community Centre,07/12/2022,117.00
Education & Skills,Skills,Third Party Payments,Childminders,CHILDCARE SOS,19/12/2022,352.00
Education & Skills,Skills,Third Party Payments,Childminders,CHILDCARE SOS,19/12/2022,"2,016.00"
Education & Skills,Skills,Supplies & Services,Exam Fees,CITY & GUILDS,01/12/2022,748.80
Education & Skills,Skills,Supplies & Services,Consumable Stores,MHFA England CIC,07/12/2022,900.00
Education & Skills,Skills,Supplies & Services,Registration / Licence Fees,Ecctis,08/12/2022,500.00
Education & Skills,Skills,Supplies & Services,Exam Fees,AIM Qualifications and Assessment Group,08/12/2022,122.00
Education & Skills,Skills,Premises-Related Expenditure,Hire Of Rooms,DONNINGTON PARTNERSHIP,07/12/2022,800.00
Education & Skills,Skills,Supplies & Services,Sub Contractors,PROSPECTS SERVICES LTD,02/12/2022,244.20
Education & Skills,Skills,Employees,Course Fees,QUALSAFE.COM,06/12/2022,204.65
Education & Skills,Skills,Employees,Course Fees,QUALSAFE.COM,06/12/2022,172.05
Education & Skills,Skills,Premises-Related Expenditure,Hire Of Rooms,LANDAU LTD,19/12/2022,"7,000.00"
Finance & Human Resources,Finance,Supplies & Services,External Audit Fees,G THORNTON UK LLP,05/12/2022,"4,500.00"
Finance & Human Resources,Finance,Supplies & Services,External Audit Fees,G THORNTON UK LLP,05/12/2022,"11,500.00"
Finance & Human Resources,"Finance Manager (Business, Education & Care)",Employees,Professional Subs,ASSOCIATION OF CHARTERED CERTIFIED ACCOUNTANTS,16/12/2022,122.00
Finance & Human Resources,"Finance Manager (Business, Education & Care)",Employees,Professional Subs,ASSOCIATION OF CHARTERED CERTIFIED ACCOUNTANTS,20/12/2022,283.00
Finance & Human Resources,"Finance Manager (Business, Education & Care)",Supplies & Services,Comp Software (Purch / Hire),PHOENIX SOFTWARE LTD,22/12/2022,165.00
Finance & Human Resources,Finance Manager (Corporate & Capital),Employees,Professional Subs,C I P F A,20/12/2022,362.00
Finance & Human Resources,Finance Manager (Corporate & Capital),Supplies & Services,Financial Services,First Report Ltd,07/12/2022,249.00
Finance & Human Resources,Finance Manager (Corporate & Capital),Employees,Professional Subs,ASSOCIATION OF CHARTERED CERTIFIED ACCOUNTANTS ,21/12/2022,283.00
Finance & Human Resources,Finance Manager (Corporate & Capital),Supplies & Services,Bank Charges,TALL Security Print Ltd,05/12/2022,105.00
Finance & Human Resources,Finance Manager (Corporate & Capital),Supplies & Services,Bank Charges,TALL Security Print Ltd,05/12/2022,115.00
Finance & Human Resources,Finance Manager (Corporate & Capital),Employees,Staff Training,Severn Financial Training,21/12/2022,506.00
Finance & Human Resources,Human Resources,Employees,Criminal Records Bureau Checks,DISCLOSURE & BARRING SERVICE,02/12/2022,152.00
Finance & Human Resources,Human Resources,Employees,Criminal Records Bureau Checks,DISCLOSURE & BARRING SERVICE,06/12/2022,"10,694.00"
Finance & Human Resources,Human Resources,Employees,Criminal Records Bureau Checks,Capita Recruitment Vetting Service ,01/12/2022,862.52
Finance & Human Resources,Human Resources,Employees,Staff Training,ACAS,02/12/2022,"1,800.00"
Finance & Human Resources,Human Resources,Supplies & Services,Doctors Fees,Get Medic Ltd,22/12/2022,490.00
Finance & Human Resources,Human Resources,Employees,Other Employee Costs,SB Sports Injury & Physiotherapy Clinic,09/12/2022,114.00
Finance & Human Resources,Human Resources,Supplies & Services,Doctors Fees,Ensure Health LTD,14/12/2022,490.00
Finance & Human Resources,Human Resources,Supplies & Services,Doctors Fees,Get Medic Ltd,20/12/2022,490.00
Finance & Human Resources,Human Resources,Employees,Other Employee Costs,SB Sports Injury & Physiotherapy Clinic,20/12/2022,114.00
Finance & Human Resources,Revenues,Employees,Course Fees,NEC Software Solutions UK Ltd,02/12/2022,600.00
Finance & Human Resources,Revenues,Employees,Off site processing,NEC Software Solutions UK Ltd,08/12/2022,"5,218.92"
Finance & Human Resources,Revenues,Supplies & Services,Printing - Other,Financial Data Management plc,21/12/2022,414.03
Finance & Human Resources,Revenues,Supplies & Services,Printing - Other,Financial Data Management plc,21/12/2022,174.92
